Workbook

Sheet TCIA
A1: EMPRESA
A2: NOMBRE | B2: SPORT KENNEX S.A.C.
A3: RUC | B3: 20123456789
A4: PERIODO | B4: 2016
A5: MES | B5: ABRIL | C5: 4
A6: IGV | B6: 0.18
A7: IGV AP | B7: 0.04
A8: REGIMEN | B8: R. GENERAL | C8: RG
A9: PLAN CTA | B9: 01
A10: N F LDS | B10: 57
A11: N F RC | B11: 57
A12: N F RV | B12: 57

Sheet TCOMPROB
A1: TABLA 10: TIPO DE COMPROBANTE DE PAGO O DOCUMENTO
A2: xxx
A3: N° | B3: DESCRIPCIÓN
A4: 00 | B4: Otros
A5: 01 | B5: Factura
A6: 02 | B6: Recibo por Honorarios
A7: 03 | B7: Boleta de Venta
A8: 04 | B8: Liquidación de compra
A9: 05 | B9: Boletos de Transporte Aéreo que emiten las Compañías de Aviación Comercial por el servicio de transporte aéreo regular de pasajeros, emitido de manera manual, mecanizada o por medios electrónicos (BME)
A10: 06 | B10: Carta de porte aéreo por el servicio de transporte de carga aérea
A11: 07 | B11: Nota de crédito
A12: 08 | B12: Nota de débito
A13: 09 | B13: Guía de remisión - Remitente
A14: 10 | B14: Recibo por Arrendamiento
A15: 11 | B15: Póliza emitida por las Bolsas de Valores, Bolsas de Productos o Agentes de Intermediación por operaciones realizadas en las Bolsas de Valores o Productos o fuera de las mismas, autorizadas por SMV
A16: 12 | B16: Ticket o cinta emitido por máquina registradora
A17: 13 | B17: Documentos emitidos por las empresas del sistema financiero y de seguros, y por las cooperativas de ahorro y crédito no autorizadas a captar recursos del público, que se encuentren bajo el control de la Superintendencia de Banca, Seguros y AFP.
A18: 14 | B18: Recibo por servicios públicos de suministro de energía eléctrica, agua, teléfono, telex y telegráficos y otros servicios complementarios que se incluyan en el recibo de servicio público
A19: 15 | B19: Boletos emitidos por el servicio de transporte terrestre regular urbano de pasajeros y el ferroviario público de pasajeros prestado en vía férrea local.
A20: 16 | B20: Boletos de viaje emitidos por las empresas de transporte nacional de pasajeros, siempre que cuenten con la autorización de la autoridad competente, en las rutas autorizadas. Vía terrestre o ferroviario público no emitido por medios electrónicos (BVME)
A21: 17 | B21: Documento emitido por la Iglesia Católica por el arrendamiento de bienes inmuebles
A22: 18 | B22: Documento emitido por las Administradoras Privadas de Fondo de Pensiones que se encuentran bajo la supervisión de la Superintendencia de Banca, Seguros y AFP
A23: 19 | B23: Boleto o entrada por atracciones y espectáculos públicos
A24: 20 | B24: Comprobante de Retención
A25: 21 | B25: Conocimiento de embarque por el servicio de transporte de carga marítima
A26: 22 | B26: Comprobante por Operaciones No Habituales
A27: 23 | B27: Pólizas de Adjudicación emitidas con ocasión del remate o adjudicación de bienes por venta forzada, por los martilleros o las entidades que rematen o subasten bienes por cuenta de terceros
A28: 24 | B28: Certificado de pago de regalías emitidas por PERUPETRO S.A
A29: 25 | B29: Documento de Atribución (Ley del Impuesto General a las Ventas e Impuesto Selectivo al Consumo, Art. 19º, último párrafo, R.S. N° 022-98-SUNAT).
A30: 26 | B30: Recibo por el Pago de la Tarifa por Uso de Agua Superficial con fines agrarios y por el pago de la Cuota para la ejecución de una determinada obra o actividad acordada por la Asamblea General de la Comisión de Regantes o Resolución expedida por el Jefe de la Unidad de Aguas y de Riego (Decreto Supremo N° 003-90-AG, Arts. 28 y 48)
A31: 27 | B31: Seguro Complementario de Trabajo de Riesgo
A32: 28 | B32: Documentos emitidos por los servicios aeroportuarios prestados a favor de los pasajeros, mediante mecanismo de etiquetas autoadhesivas.
A33: 29 | B33: Documentos emitidos por la COFOPRI en calidad de oferta de venta de terrenos, los correspondientes a las subastas públicas y a la retribución de los servicios que presta
A34: 30 | B34: Documentos emitidos por las empresas que desempeñan el rol adquirente en los sistemas de pago mediante tarjetas de crédito y débito, emitidas por bancos e instituciones financieras o crediticias, domiciliados o no en el país.
A35: 31 | B35: Guía de Remisión - Transportista
A36: 32 | B36: Documentos emitidos por las empresas recaudadoras de la denominada Garantía de Red Principal a la que hace referencia el numeral 7.6 del artículo 7° de la Ley N° 27133 – Ley de Promoción del Desarrollo de la Industria del Gas Natural
A37: 33 | B37: Manifiesto de Pasajeros
A38: 34 | B38: Documento del Operador
A39: 35 | B39: Documento del Partícipe
A40: 36 | B40: Recibo de Distribución de Gas Natural
A41: 37 | B41: Documentos que emitan los concesionarios del servicio de revisiones técnicas vehiculares, por la prestación de dicho servicio
A42: 40 | B42: Comprobante de Percepción
A43: 41 | B43: Comprobante de Percepción - Venta interna
A44: 42 | B44: Documentos emitidos por las empresas que desempeñan el rol adquiriente en los sistemas de pago mediante tarjetas de crédito emitidas por ellas mismas
A45: 43 | B45: Boletos emitidos por las Compañías de Aviación Comercial que prestan servicios de transporte aéreo no regular de pasajeros y transporte aéreo especial de pasajeros.
A46: 44 | B46: Billetes de lotería, rifas y apuestas.
A47: 45 | B47: Documentos emitidos por centros educativos y culturales, universidades, asociaciones y fundaciones, en lo referente a actividades no gravadas con tributos administrados por la SUNAT.
A48: 46 | B48: Formulario de Declaración - pago o Boleta de pago de tributos Internos
A49: 48 | B49: Comprobante de Operaciones - Ley N° 29972
A50: 49 | B50: Constancia de Depósito - IVAP (Ley 28211)
A51: 50 | B51: Declaración Única de Aduanas - Importación definitiva
A52: 51 | B52: Póliza o DUI Fraccionada
A53: 52 | B53: Despacho Simplificado - Importación Simplificada
A54: 53 | B54: Declaración de Mensajería o Courier
A55: 54 | B55: Liquidación de Cobranza
A56: 55 | B56: BVME para transporte ferroviario de pasajeros
A57: 56 | B57: Comprobante de pago SEAE
A58: 87 | B58: Nota de Crédito Especial
A59: 88 | B59: Nota de Débito Especial
A60: 89 | B60: Nota de Ajuste de Operaciones - Ley N° 29972
A61: 91 | B61: Comprobante de No Domiciliado
A62: 96 | B62: Exceso de crédito fiscal por retiro de bienes
A63: 97 | B63: Nota de Crédito - No Domiciliado
A64: 98 | B64: Nota de Débito - No Domiciliado
A65: CH | B65: CHEQUE
A66: LET | B66: LETRAS
A67: REC | B67: Recibo de caja

Sheet TDOCENTIDAD
A1: TABLA 2: TIPO DE DOCUMENTO DE IDENTIDAD
A2: xxx
A3: N° | B3: DESCRIPCIÓN
A4: 0 | B4: OTROS TIPOS DE DOCUMENTOS
A5: 1 | B5: DOCUMENTO NACIONAL DE IDENTIDAD (DNI)
A6: 4 | B6: CARNET DE EXTRANJERIA
A7: 6 | B7: REGISTRO ÚNICO DE CONTRIBUYENTES
A8: 7 | B8: PASAPORTE
A9: A | B9: CÉDULA DIPLOMÁTICA DE IDENTIDAD

Sheet TBANCOS
A1: TABLA 3: ENTIDAD FINANCIERA
A2: xxx
A3: N° | B3: DESCRIPCIÓN
A4: 1 | B4: CENTRAL RESERVA DEL PERU
A5: 2 | B5: DE CREDITO DEL PERU
A6: 3 | B6: INTERNACIONAL DEL PERU
A7: 5 | B7: LATINO
A8: 7 | B8: CITIBANK DEL PERU S.A.
A9: 8 | B9: STANDARD CHARTERED
A10: 9 | B10: SCOTIABANK PERU
A11: 11 | B11: CONTINENTAL
A12: 12 | B12: DE LIMA
A13: 16 | B13: MERCANTIL
A14: 18 | B14: NACION
A15: 22 | B15: SANTANDER CENTRAL HISPANO
A16: 23 | B16: DE COMERCIO
A17: 25 | B17: REPUBLICA
A18: 26 | B18: NBK BANK
A19: 29 | B19: BANCOSUR
A20: 35 | B20: FINANCIERO DEL PERU
A21: 37 | B21: DEL PROGRESO
A22: 38 | B22: INTERAMERICANO FINANZAS
A23: 39 | B23: BANEX
A24: 40 | B24: NUEVO MUNDO
A25: 41 | B25: SUDAMERICANO
A26: 42 | B26: DEL LIBERTADOR
A27: 43 | B27: DEL TRABAJO
A28: 44 | B28: SOLVENTA
A29: 45 | B29: SERBANCO SA.
A30: 46 | B30: BANK OF BOSTON
A31: 47 | B31: ORION
A32: 48 | B32: DEL PAIS
A33: 49 | B33: MI BANCO
A34: 50 | B34: BNP PARIBAS
A35: 51 | B35: AGROBANCO
A36: 53 | B36: HSBC BANK PERU S.A.
A37: 54 | B37: BANCO FALABELLA S.A.
A38: 55 | B38: BANCO RIPLEY
A39: 56 | B39: BANCO SANTANDER PERU S.A.
A40: 58 | B40: BANCO AZTECA DEL PERU
A41: 99 | B41: OTROS
A42: 101 | B42: INTERBANK

Sheet TMEDIOPAGO
A1: TABLA 1: TIPO DE MEDIO DE PAGO
A2: xxx
A3: N° | B3: DESCRIPCIÓN
A4: 001 | B4: DEPÓSITO EN CUENTA
A5: 002 | B5: GIRO
A6: 003 | B6: TRANSFERENCIA DE FONDOS
A7: 004 | B7: ORDEN DE PAGO
A8: 005 | B8: TARJETA DE DÉBITO
A9: 006 | B9: TARJETA DE CRÉDITO EMITIDA EN EL PAÍS POR UNA EMPRESA DEL SISTEMA FINANCIERO
A10: 007 | B10: CHEQUES CON LA CLÁUSULA DE "NO NEGOCIABLE", "INTRANSFERIBLES", "NO A LA ORDEN" U OTRA EQUIVALENTE, A QUE SE REFIERE EL INCISO G) DEL ARTICULO 5° DE LA LEY
A11: 008 | B11: EFECTIVO, POR OPERACIONES EN LAS QUE NO EXISTE OBLIGACIÓN DE UTILIZAR MEDIO DE PAGO
A12: 009 | B12: EFECTIVO, EN LOS DEMÁS CASOS
A13: 010 | B13: MEDIOS DE PAGO USADOS EN COMERCIO EXTERIOR
A14: 011 | B14: DOCUMENTOS EMITIDOS POR LAS EDPYMES Y LAS COOPERATIVAS DE AHORRO Y CRÉDITO NO AUTORIZADAS A CAPTAR DEPÓSITOS DEL PÚBLICO
A15: 012 | B15: TARJETA DE CRÉDITO EMITIDA EN EL PAÍS O EN EL EXTERIOR POR UNA EMPRESA NO PERTENECIENTE AL SISTEMA FINANCIERO, CUYO OBJETO PRINCIPAL SEA LA EMISIÓN Y ADMINISTRACIÓN DE TARJETAS DE CRÉDITO
A16: 013 | B16: TARJETAS DE CRÉDITO EMITIDAS EN EL EXTERIOR POR EMPRESAS BANCARIAS O FINANCIERAS NO DOMICILIADAS
A17: 101 | B17: TRANSFERENCIAS - COMERCIO EXTERIOR
A18: 102 | B18: CHEQUES BANCARIOS - COMERCIO EXTERIOR
A19: 103 | B19: ORDEN DE PAGO SIMPLE - COMERCIO EXTERIOR
A20: 104 | B20: ORDEN DE PAGO DOCUMENTARIO - COMERCIO EXTERIOR
A21: 105 | B21: REMESA SIMPLE - COMERCIO EXTERIOR
A22: 106 | B22: REMESA DOCUMENTARIA - COMERCIO EXTERIOR
A23: 107 | B23: CARTA DE CRÉDITO SIMPLE - COMERCIO EXTERIOR
A24: 108 | B24: CARTA DE CRÉDITO DOCUMENTARIO - COMERCIO EXTERIOR
A25: 999 | B25: OTROS MEDIOS DE PAGO

Sheet TBIEN
A1: TABLA 30: CLASIFICACIÓN DE LOS BIENES Y SERVICIOS ADQUIRIDOS
A2: xxx
A3: N° | B3: DESCRIPCIÓN
A4: 1 | B4: MERCADERIA, MATERIA PRIMA, SUMINISTRO, ENVASES Y EMBALAJES
A5: 2 | B5: ACTIVO FIJO
A6: 3 | B6: OTROS ACTIVOS NO CONSIDERADOS EN LOS NUMERALES 1 Y 2
A7: 4 | B7: GASTOS DE EDUCACIÓN, RECREACIÓN, SALUD, CULTURALES. REPRESENTACIÓN, CAPACITACIÓN, DE VIAJE, MANTENIMIENTO DE VEHICULO Y DE PREMIOS
A8: 5 | B8: OTROS GASTOS NO INCLUIDOS EN EL NUMERAL 4

Sheet TVOUCHER
A1: TIPO DE VOUCHERS
A2: CÓDIGO | B2: DETALLE | C2: 0 | D2: 1 | E2: 2 | F2: 3 | G2: 4 | H2: 5 | I2: 6 | J2: 7 | K2: 8 | L2: 9 | M2: 10 | N2: 11 | O2: 12 | P2: 13
A3: 01 | B3: APERTURA
A4: 02 | B4: VENTAS
A5: 03 | B5: COMPRAS
A6: 04 | B6: CAJA
A7: 05 | B7: BANCOS
A8: 06 | B8: DIARIO
R23: 2010 | S23: CÓDIGO | T23: DETALLE | U23: 0 | V23: 1 | W23: 2 | X23: 3 | Y23: 4 | Z23: 5 | AA23: 6 | AB23: 7 | AC23: 8 | AD23: 9 | AE23: 10 | AF23: 11 | AG23: 12 | AH23: 13
R24: 1
R25: 2
R26: 3
R27: 4
R28: 5
R29: 6
R30: 7
R31: 8
R32: 9
R33: 10
R34: 11
R35: 12
R36: 13
R37: 14
R38: 15
R39: 16
R40: 17
R41: 18
R42: 19
R43: 20
R44: 21
R45: 22
R46: 2011
R47: 1
R48: 2
R49: 3
R50: 4
R51: 5
R52: 6
R53: 7
R54: 8
R55: 9
R56: 10
R57: 11
R58: 12
R59: 13
R60: 14
R61: 15
R62: 16
R63: 17
R64: 18
R65: 19
R66: 20
R67: 21
R68: 22
R69: 2012
R70: 1
R71: 2
R72: 3
R73: 4
R74: 5
R75: 6
R76: 7
R77: 8
R78: 9
R79: 10
R80: 11
R81: 12
R82: 13
R83: 14
R84: 15
R85: 16
R86: 17
R87: 18
R88: 19
R89: 20
R90: 21
R91: 22
R92: 2013
R93: 1
R94: 2
R95: 3
R96: 4
R97: 5
R98: 6
R99: 7
R100: 8
R101: 9
R102: 10
R103: 11
R104: 12
R105: 13
R106: 14
R107: 15
R108: 16
R109: 17
R110: 18
R111: 19
R112: 20
R113: 21
R114: 22
R115: =R92+1 -> 2014
R116: 1
R117: 2
R118: 3
R119: 4
R120: 5
R121: 6
R122: 7
R123: 8
R124: 9
R125: 10
R126: 11
R127: 12
R128: 13
R129: 14
R130: 15
R131: 16
R132: 17
R133: 18
R134: 19
R135: 20
R136: 21
R137: 22
R138: =R115+1 -> 2015
R139: 1
R140: 2
R141: 3
R142: 4
R143: 5
R144: 6
R145: 7
R146: 8
R147: 9
R148: 10
R149: 11
R150: 12
R151: 13
R152: 14
R153: 15
R154: 16
R155: 17
R156: 18
R157: 19
R158: 20
R159: 21
R160: 22
R161: =R138+1 -> 2016
R162: 1
R163: 2
R164: 3
R165: 4
R166: 5
R167: 6
R168: 7
R169: 8
R170: 9
R171: 10
R172: 11
R173: 12
R174: 13
R175: 14
R176: 15
R177: 16
R178: 17
R179: 18
R180: 19
R181: 20
R182: 21
R183: 22
R184: =R161+1 -> 2017
R185: 1
R186: 2
R187: 3
R188: 4
R189: 5
R190: 6
R191: 7
R192: 8
R193: 9
R194: 10
R195: 11
R196: 12
R197: 13
R198: 14
R199: 15
R200: 16
R201: 17
R202: 18
R203: 19
R204: 20
R205: 21
R206: 22
R207: =R184+1 -> 2018
R208: 1
R209: 2
R210: 3
R211: 4
R212: 5
R213: 6
R214: 7
... 1901 more rows

Sheet TPLANC
A1: PLAN DE CUENTAS
A2: xxx
A3: CTA | B3: REGISTRO | C3: NOMBRE | D3: AMAR. DEB. | E3: AMAR. HAB. | F3: GRUPO
A4: 10 | C4: ***EFECTIVO Y EQUIVALENTES DE EFECTIVO | F4: 1
A5: 101 | C5: ***Caja
B6: 101000 | C6: Caja | F6: 1
A7: 102 | C7: ***Fondos fijos
B8: 102000 | C8: Fondos fijos | F8: 1
A9: 103 | C9: ***Efectivo en Tránsito
B10: 103000 | C10: Efectivo en Tránsito | F10: 1
A11: 104 | C11: ***Cuentas corrientes en instituciones financieras
A12: 1041 | B12: 104100 | C12: Cuentas corrientes operativas | F12: 1
A13: 1042 | B13: 104200 | C13: Cuentas corrientes para fines específicos | F13: 1
A14: 105 | C14: ***Otros equivalentes de efectivo
A15: 1051 | B15: 105100 | C15: Otros equivalentes de efectivo | F15: 1
A16: 106 | C16: ***Depósitos en instituciones financieras
A17: 1061 | B17: 106100 | C17: Depósitos de ahorro | F17: 1
A18: 1062 | B18: 106200 | C18: Depósitos a plazo | F18: 1
A19: 107 | C19: ***Fondos sujetos a restricción
A20: 1071 | B20: 107100 | C20: Fondos Sujetos a Restricción | F20: 1
A21: 11 | C21: ***INVERSIONES FINANCIERAS | F21: 1
A22: 111 | C22: ***Inversiones mantenidas para negociación
A23: 1111 | C23: ***Valores emitidos o garantizados por el Estado
A24: 11111 | B24: 111110 | C24: Costo | F24: 1
A25: 11112 | B25: 111120 | C25: Valor Razonable | F25: 1
A26: 1112 | C26: ***Valores emitidos por el sistema financiero
A27: 11121 | B27: 111210 | C27: Costo | F27: 1
A28: 11122 | B28: 111220 | C28: Valor Razonable | F28: 1
A29: 1113 | C29: ***Valores emitidos por empresa
A30: 11131 | B30: 111310 | C30: Costo | F30: 1
A31: 11132 | B31: 111320 | C31: Valor Razonable | F31: 1
A32: 1114 | C32: ***Otros títulos representativos de deuda
A33: 11141 | B33: 111410 | C33: Costo | F33: 1
A34: 11142 | B34: 111420 | C34: Valor Razonable | F34: 1
A35: 1115 | C35: ***Participaciones en entidades
A36: 11151 | B36: 111510 | C36: Costo | F36: 1
A37: 11152 | B37: 111520 | C37: Valor Razonable | F37: 1
A38: 112 | C38: ***Inversiones disponibles para la venta
A39: 1121 | C39: ***Valores emitidos o garantizados por el Estado
A40: 11211 | B40: 112110 | C40: Costo | F40: 1
A41: 11212 | B41: 112120 | C41: Valor Razonable | F41: 1
A42: 1122 | C42: ***Valores emitidos por el sistema financiero
A43: 11221 | B43: 112210 | C43: Costo | F43: 1
A44: 11222 | B44: 112220 | C44: Valor Razonable | F44: 1
A45: 1123 | C45: ***Valores emitidos por empresas
A46: 11231 | B46: 112310 | C46: Costo | F46: 1
A47: 11232 | B47: 112320 | C47: Valor Razonable | F47: 1
A48: 1124 | C48: ***Otros títulos representativos de deuda
A49: 11241 | B49: 112410 | C49: Costo | F49: 1
A50: 11242 | B50: 112420 | C50: Valor Razonable | F50: 1
A51: 113 | C51: ***Activos financieros - Acuerdo de compra
A52: 1131 | C52: ***Inversiones mantenidas para negociación – Acuerdo de compra
A53: 11311 | B53: 113110 | C53: Costo | F53: 1
A54: 11312 | B54: 113120 | C54: Valor Razonable | F54: 1
A55: 1132 | C55: ***Inversiones disponibles para la venta – Acuerdo de compra
A56: 11321 | B56: 113210 | C56: Costo | F56: 1
A57: 11322 | B57: 113220 | C57: Valor Razonable | F57: 1
A58: 12 | C58: ***CUENTAS POR COBRAR COMERCIALES – TERCEROS | F58: 1
A59: 121 | C59: ***Facturas, boletas y otros comprobantes por cobrar
A60: 1211 | B60: 121100 | C60: No emitidas | F60: 1
A61: 1212 | B61: 121200 | C61: Emitidas en cartera | F61: 1
A62: 1213 | B62: 121300 | C62: En cobranza | F62: 1
A63: 1214 | B63: 121400 | C63: En descuento | F63: 1
A64: 122 | C64: ***Anticipos de clientes
B65: 122000 | C65: Anticipos de clientes | F65: 1
A66: 123 | C66: ***Letras por cobrar
A67: 1231 | B67: 123100 | C67: En cartera | F67: 1
A68: 1232 | B68: 123200 | C68: En cobranza | F68: 1
A69: 1233 | B69: 123300 | C69: En descuento | F69: 1
A70: 13 | C70: ***CUENTAS POR COBRAR COMERCIALES – RELACIONADAS | F70: 1
A71: 131 | C71: ***Facturas, boletas y otros comprobantes por cobrar
A72: 1311 | C72: ***No emitidas
A73: 13111 | B73: 131110 | C73: Matriz | F73: 1
A74: 13112 | B74: 131120 | C74: Subsidiarias | F74: 1
A75: 13113 | B75: 131130 | C75: Asociadas | F75: 1
A76: 13114 | B76: 131140 | C76: Sucursales | F76: 1
A77: 13115 | B77: 131150 | C77: Otros | F77: 1
A78: 1312 | C78: ***Emitidas en cartera
A79: 13121 | B79: 131210 | C79: Matriz | F79: 1
A80: 13122 | B80: 131220 | C80: Subsidiarias | F80: 1
A81: 13123 | B81: 131230 | C81: Asociadas | F81: 1
A82: 13124 | B82: 131240 | C82: Sucursales | F82: 1
A83: 13125 | B83: 131250 | C83: Otros | F83: 1
A84: 1313 | C84: ***En cobranza
A85: 13131 | B85: 131310 | C85: Matriz | F85: 1
A86: 13132 | B86: 131320 | C86: Subsidiarias | F86: 1
A87: 13133 | B87: 131330 | C87: Asociadas | F87: 1
A88: 13134 | B88: 131340 | C88: Sucursales | F88: 1
A89: 13135 | B89: 131350 | C89: Otros | F89: 1
A90: 1314 | C90: ***En descuento
A91: 13141 | B91: 131410 | C91: Matriz | F91: 1
A92: 13142 | B92: 131420 | C92: Subsidiarias | F92: 1
A93: 13143 | B93: 131430 | C93: Asociadas | F93: 1
A94: 13144 | B94: 131440 | C94: Sucursales | F94: 1
A95: 13145 | B95: 131450 | C95: Otros | F95: 1
A96: 132 | C96: ***Anticipos recibidos
A97: 1321 | C97: ***Anticipos recibidos
A98: 13211 | B98: 132110 | C98: Matriz | F98: 1
A99: 13212 | B99: 132120 | C99: Subsidiarias | F99: 1
A100: 13213 | B100: 132130 | C100: Asociadas | F100: 1
A101: 13214 | B101: 132140 | C101: Sucursales | F101: 1
A102: 13215 | B102: 132150 | C102: Otros | F102: 1
A103: 133 | C103: ***Letras por cobrar
A104: 1331 | C104: ***En cartera
A105: 13311 | B105: 133110 | C105: Matriz | F105: 1
A106: 13312 | B106: 133120 | C106: Subsidiarias | F106: 1
A107: 13313 | B107: 133130 | C107: Asociadas | F107: 1
A108: 13314 | B108: 133140 | C108: Sucursales | F108: 1
A109: 13315 | B109: 133150 | C109: Otros | F109: 1
A110: 1332 | C110: ***En cobranza
A111: 13321 | B111: 133210 | C111: Matriz | F111: 1
A112: 13322 | B112: 133220 | C112: Subsidiarias | F112: 1
A113: 13323 | B113: 133230 | C113: Asociadas | F113: 1
A114: 13324 | B114: 133240 | C114: Sucursales | F114: 1
A115: 13325 | B115: 133250 | C115: Otros | F115: 1
A116: 1333 | C116: ***En descuento
A117: 13331 | B117: 133310 | C117: Matriz | F117: 1
A118: 13332 | B118: 133320 | C118: Subsidiarias | F118: 1
A119: 13333 | B119: 133330 | C119: Asociadas | F119: 1
A120: 13334 | B120: 133340 | C120: Sucursales | F120: 1
A121: 13335 | B121: 133350 | C121: Otros | F121: 1
A122: 14 | C122: ***CUENTAS POR COBRAR AL PERSONAL, A LOS ACCIONISTAS (SOCIOS), DIRECTORES Y GERENTES | F122: 1
A123: 141 | C123: ***Personal
A124: 1411 | B124: 141100 | C124: Préstamos | F124: 1
A125: 1412 | B125: 141200 | C125: Adelanto de remuneraciones | F125: 1
A126: 1413 | B126: 141300 | C126: Entregas a rendir cuenta | F126: 1
A127: 1419 | B127: 141900 | C127: Otras cuentas por cobrar al personal | F127: 1
A128: 142 | C128: ***Accionistas (o socios)
A129: 1421 | B129: 142100 | C129: Suscripciones por cobrar a socios o accionistas | F129: 1
A130: 1422 | B130: 142200 | C130: Préstamos | F130: 1
A131: 143 | C131: ***Directores
A132: 1431 | B132: 143100 | C132: Préstamos | F132: 1
A133: 1432 | B133: 143200 | C133: Adelanto de dietas | F133: 1
A134: 1433 | B134: 143300 | C134: Entregas a rendir cuenta | F134: 1
A135: 144 | C135: ***Gerentes
A136: 1441 | B136: 144100 | C136: Préstamos | F136: 1
A137: 1442 | B137: 144200 | C137: Adelanto de remuneraciones | F137: 1
A138: 1443 | B138: 144300 | C138: Entregas a rendir cuenta | F138: 1
A139: 148 | C139: ***Diversas
A140: 148000 | B140: 148000 | C140: Diversas | F140: 1
A141: 16 | C141: ***CUENTAS POR COBRAR DIVERSAS - TERCEROS | F141: 1
A142: 161 | C142: ***Préstamos
A143: 1611 | B143: 161100 | C143: Con garantía | F143: 1
A144: 1612 | B144: 161200 | C144: Sin garantía | F144: 1
A145: 162 | C145: ***Reclamaciones a terceros
A146: 1621 | B146: 162100 | C146: Compañías aseguradoras | F146: 1
A147: 1622 | B147: 162200 | C147: Transportadoras | F147: 1
A148: 1623 | B148: 162300 | C148: Servicios públicos | F148: 1
A149: 1624 | B149: 162400 | C149: Tributos | F149: 1
A150: 1629 | B150: 162900 | C150: Otras | F150: 1
A151: 163 | C151: ***Intereses, regalías y dividendos
A152: 1631 | B152: 163100 | C152: Intereses | F152: 1
A153: 1632 | B153: 163200 | C153: Regalías | F153: 1
A154: 1633 | B154: 163300 | C154: Dividendos | F154: 1
A155: 164 | C155: ***Depósitos otorgados en garantía
A156: 1641 | B156: 164100 | C156: Préstamos de instituciones financieras | F156: 1
A157: 1642 | B157: 164200 | C157: Préstamos de instituciones no financieras | F157: 1
A158: 1644 | B158: 164400 | C158: Depósitos en garantía por alquileres | F158: 1
A159: 1649 | B159: 164900 | C159: Otros depósitos en garantía | F159: 1
A160: 165 | C160: ***Venta de activo inmovilizado
A161: 1651 | B161: 165100 | C161: Inversión mobiliaria | F161: 1
A162: 1652 | B162: 165200 | C162: Inversión inmobiliaria | F162: 1
A163: 1653 | B163: 165300 | C163: Inmuebles, maquinaria y equipo | F163: 1
A164: 1654 | B164: 165400 | C164: Intangibles | F164: 1
A165: 1655 | B165: 165500 | C165: Activos biológicos | F165: 1
A166: 166 | C166: ***Activos por instrumentos financieros
A167: 1661 | B167: 166100 | C167: Instrumentos financieros primarios | F167: 1
A168: 1662 | C168: ***Instrumentos financieros derivados
A169: 16621 | B169: 166210 | C169: Cartera de negociación | F169: 1
A170: 16622 | B170: 166220 | C170: Instrumentos de cobertura | F170: 1
A171: 168 | C171: ***Otras cuentas por cobrar diversas
A172: 1681 | B172: 168100 | C172: Entregas a rendir cuenta a terceros | F172: 1
A173: 1689 | B173: 168900 | C173: Otras cuentas por cobrar diversas | F173: 1
A174: 17 | C174: ***CUENTAS POR COBRAR DIVERSAS - RELACIONADAS | F174: 1
A175: 171 | C175: ***Préstamos
A176: 1711 | C176: ***Con garantía
A177: 17111 | B177: 171110 | C177: Matriz | F177: 1
A178: 17112 | B178: 171120 | C178: Subsidiarias | F178: 1
A179: 17113 | B179: 171130 | C179: Asociadas | F179: 1
A180: 17114 | B180: 171140 | C180: Sucursales | F180: 1
A181: 17115 | B181: 171150 | C181: Otros | F181: 1
A182: 1712 | C182: ***Sin garantía
A183: 17121 | B183: 171210 | C183: Matriz | F183: 1
A184: 17122 | B184: 171220 | C184: Subsidiarias | F184: 1
A185: 17123 | B185: 171230 | C185: Asociadas | F185: 1
A186: 17124 | B186: 171240 | C186: Sucursales | F186: 1
A187: 17125 | B187: 171250 | C187: Otros | F187: 1
A188: 173 | C188: ***Intereses, regalías y dividendos
A189: 1731 | C189: ***Intereses
A190: 17311 | B190: 173110 | C190: Matriz | F190: 1
A191: 17312 | B191: 173120 | C191: Subsidiarias | F191: 1
A192: 17313 | B192: 173130 | C192: Asociadas | F192: 1
A193: 17314 | B193: 173140 | C193: Sucursales | F193: 1
A194: 17315 | B194: 173150 | C194: Otros | F194: 1
A195: 1732 | C195: ***Regalías
A196: 17321 | B196: 173210 | C196: Matriz | F196: 1
A197: 17322 | B197: 173220 | C197: Subsidiarias | F197: 1
A198: 17323 | B198: 173230 | C198: Asociadas | F198: 1
A199: 17324 | B199: 173240 | C199: Sucursales | F199: 1
A200: 17325 | B200: 173250 | C200: Otros | F200: 1
... 2659 more rows

Sheet TLIBROS
A1: TIPOS DE LIBROS
A2: XXX
A3: CÓDIGO | B3: NOMBRE O DESCRIPCIÓN
A4: 1 | B4: LIBRO CAJA Y BANCOS
A5: 2 | B5: LIBRO DE INGRESOS Y GASTOS
A6: 3 | B6: LIBRO DE INVENTARIOS Y BALANCES
A7: 4 | B7: LIBRO DE RETENCIONES INCISOS E) Y F) DEL ARTICULO 34° DE LA LEY DEL IMPUESTO A LA RENTA
A8: 5 | B8: LIBRO DIARIO
A9: 6 | B9: LIBRO MAYOR
A10: 7 | B10: REGISTRO DE ACTIVOS FIJOS
A11: 8 | B11: REGISTRO DE COMPRAS
A12: 9 | B12: REGISTRO DE CONSIGNACIONES
A13: 10 | B13: REGISTRO DE COSTOS
A14: 11 | B14: REGISTRO DE HUÉSPEDES
A15: 12 | B15: REGISTRO DE INVENTARIO PERMANENTE EN UNIDADES FÍSICAS
A16: 13 | B16: REGISTRO DE INVENTARIO PERMANENTE VALORIZADO
A17: 14 | B17: REGISTRO DE VENTAS E INGRESOS
A18: 15 | B18: REGISTRO DE VENTAS E INGRESOS - ARTÍCULO 23° RESOLUCIÓN DE SUPERINTENDENCIA N° 266-2004/SUNAT
A19: 16 | B19: REGISTRO DEL RÉGIMEN DE PERCEPCIONES
A20: 17 | B20: REGISTRO DEL RÉGIMEN DE RETENCIONES
A21: 18 | B21: REGISTRO DE RETENCIONES ARTÍCULO 77-A DE LA LEY DE IMPUESTO A LA RENTA
A22: 19 | B22: REGISTRO IVAP
A23: 20 | B23: REGISTRO(S) AUXILIAR(ES) DE ADQUISICIONES - ARTÍCULO 8° RESOLUCIÓN DE SUPERINTENDENCIA N° 022-98/SUNAT
A24: 21 | B24: REGISTRO(S) AUXILIAR(ES) DE ADQUISICIONES - INCISO A) PRIMER PÁRRAFO ARTÍCULO 5° RESOLUCIÓN DE SUPERINTENDENCIA N° 021-99/SUNAT
A25: 22 | B25: REGISTRO(S) AUXILIAR(ES) DE ADQUISICIONES - INCISO A) PRIMER PÁRRAFO ARTÍCULO 5° RESOLUCIÓN DE SUPERINTENDENCIA N° 142-2001/SUNAT
A26: 23 | B26: REGISTRO(S) AUXILIAR(ES) DE ADQUISICIONES - INCISO C) PRIMER PÁRRAFO ARTÍCULO 5° RESOLUCIÓN DE SUPERINTENDENCIA N° 256-2004/SUNAT
A27: 24 | B27: REGISTRO(S) AUXILIAR(ES) DE ADQUISICIONES - INCISO A) PRIMER PÁRRAFO ARTÍCULO 5° RESOLUCIÓN DE SUPERINTENDENCIA N° 257-2004/SUNAT
A28: 25 | B28: REGISTRO(S) AUXILIAR(ES) DE ADQUISICIONES - INCISO C) PRIMER PÁRRAFO ARTÍCULO 5° RESOLUCIÓN DE SUPERINTENDENCIA N° 258-2004/SUNAT
A29: 26 | B29: REGISTRO(S) AUXILIAR(ES) DE ADQUISICIONES - INCISO A) PRIMER PÁRRAFO ARTÍCULO 5° RESOLUCIÓN DE SUPERINTENDENCIA N° 259-2004/SUNAT
A30: 27 | B30: LIBRO DE ACTAS DE LA EMPRESA INDIVIDUAL DE RESPONSABILIDAD LIMITADA
A31: 28 | B31: LIBRO DE ACTAS DE LA JUNTA GENERAL DE ACCIONISTAS
A32: 29 | B32: LIBRO DE ACTAS DEL DIRECTORIO
A33: 30 | B33: LIBRO DE MATRÍCULA DE ACCIONES
A34: 31 | B34: LIBRO DE PLANILLAS

Sheet TMONEDA
A1: TABLA 4: TIPO DE MONEDA
A2: XXX
A3: COD. | B3: DESCRIPCIÓN | C3: PAÍS O ZONA DE REFERENCIA
A4: AED | B4: UAE Dirham | C4: Emiratos Árabes Unidos
A5: AFN | B5: Afghani | C5: Afganistán
A6: ALL | B6: Lek | C6: Albania
A7: AMD | B7: Armenian Dram | C7: Armenia
A8: ANG | B8: Netherlands Antillian Guilder | C8: Antillas Holandesas
A9: AOA | B9: Kwanza | C9: Angola
A10: ARS | B10: Argentine Peso | C10: Argentina
A11: AUD | B11: Australian Dollar | C11: Australia
A12: AWG | B12: Aruban Guilder | C12: Aruba
A13: AZN | B13: Azerbaijanian Manat | C13: Azerbaiyán
A14: BAM | B14: Convertible Marks | C14: Bosnia y Herzegovina
A15: BBD | B15: Barbados Dollar | C15: Barbados
A16: BDT | B16: Taka | C16: Bangladesh
A17: BGN | B17: Bulgarian Lev | C17: Bulgaria
A18: BHD | B18: Bahraini Dinar | C18: Bahréin
A19: BIF | B19: Burundi Franc | C19: Burundi
A20: BMD | B20: Bermudian Dollar (customarily known as Bermuda Dollar) | C20: Bermudas
A21: BND | B21: Brunei Dollar | C21: Brunéi Darussalam
A22: BOB | B22: Boliviano | C22: Bolivia
A23: BOV | B23: Mvdol | C23: Bolivia
A24: BRL | B24: Brazilian Real | C24: Brasil
A25: BSD | B25: Bahamian Dollar | C25: Bahamas
A26: BTN | B26: Ngultrum | C26: Bután
A27: BWP | B27: Pula | C27: Botsuana
A28: BYR | B28: Belarussian Ruble | C28: Bielorrusia
A29: BZD | B29: Belize Dollar | C29: Belice
A30: CAD | B30: Canadian Dollar | C30: Canadá
A31: CDF | B31: Congolese Franc | C31: República Democrática del Congo
A32: CHE | B32: WIR Euro | C32: Suiza
A33: CHF | B33: Swiss Franc | C33: Suiza
A34: CHW | B34: WIR Franc | C34: Suiza
A35: CLF | B35: Unidades de fomento | C35: Chile
A36: CLP | B36: Chilean Peso | C36: Chile
A37: CNY | B37: Yuan Renminbi | C37: China (República Popular)
A38: COP | B38: Colombian Peso | C38: Colombia
A39: COU | B39: Unidad de Valor Real | C39: Colombia
A40: CRC | B40: Costa Rican Colon | C40: Costa Rica
A41: CUC | B41: Peso Convertible | C41: Cuba
A42: CUP | B42: Cuban Peso | C42: Cuba
A43: CVE | B43: Cape Verde Escudo | C43: Cabo Verde
A44: CZK | B44: Czech Koruna | C44: República Checa
A45: DJF | B45: Djibouti Franc | C45: Yibuti
A46: DKK | B46: Danish Krone | C46: Dinamarca
A47: DOP | B47: Dominican Peso | C47: República Dominicana
A48: DZD | B48: Algerian Dinar | C48: Argelia
A49: EEK | B49: Kroon | C49: Estonia
A50: EGP | B50: Egyptian Pound | C50: Egipto
A51: ERN | B51: Nakfa | C51: Eritrea
A52: ETB | B52: Ethiopian Birr | C52: Etiopía
A53: EUR | B53: Euro | C53: Unión Europea
A54: FJD | B54: Fiji Dollar | C54: Fiyi
A55: FKP | B55: Falkland Islands Pound | C55: Islas Malvinas
A56: GBP | B56: Pound Sterling | C56: Reino Unido
A57: GEL | B57: Lari | C57: Georgia
A58: GHS | B58: Cedi | C58: Ghana
A59: GIP | B59: Gibraltar Pound | C59: Gibraltar
A60: GMD | B60: Dalasi | C60: Gambia
A61: GNF | B61: Guinea Franc | C61: Guinea
A62: GTQ | B62: Quetzal | C62: Guatemala
A63: GYD | B63: Guyana Dollar | C63: Guyana
A64: HKD | B64: Hong Kong Dollar | C64: Hong Kong
A65: HNL | B65: Lempira | C65: Honduras
A66: HRK | B66: Croatian Kuna | C66: Croacia
A67: HTG | B67: Gourde | C67: Haití
A68: HUF | B68: Forint | C68: Hungría
A69: IDR | B69: Rupiah | C69: Indonesia
A70: ILS | B70: New Israeli Sheqel | C70: Israel
A71: INR | B71: Indian Rupee | C71: India
A72: IQD | B72: Iraqi Dinar | C72: Iraq
A73: IRR | B73: Iranian Rial | C73: Irán
A74: ISK | B74: Iceland Krona | C74: Islandia
A75: JMD | B75: Jamaican Dollar | C75: Jamaica
A76: JOD | B76: Jordanian Dinar | C76: Jordania
A77: JPY | B77: Yen | C77: Japón
A78: KES | B78: Kenyan Shilling | C78: Kenia
A79: KGS | B79: Som | C79: Kirguistán
A80: KHR | B80: Riel | C80: Camboya
A81: KMF | B81: Comoro Franc | C81: Comoras
A82: KPW | B82: North Korean Won | C82: Corea (del Norte)
A83: KRW | B83: Won | C83: Corea (del Sur)
A84: KWD | B84: Kuwaiti Dinar | C84: Kuwait
A85: KYD | B85: Cayman Islands Dollar | C85: Islas Caimán
A86: KZT | B86: Tenge | C86: Kazajistán
A87: LAK | B87: Kip | C87: Laos
A88: LBP | B88: Lebanese Pound | C88: Líbano
A89: LKR | B89: Sri Lanka Rupee | C89: Sri Lanka
A90: LRD | B90: Liberian Dollar | C90: Liberia
A91: LSL | B91: Loti | C91: Lesoto
A92: LTL | B92: Lithuanian Litas | C92: Lituania
A93: LVL | B93: Latvian Lats | C93: Letonia
A94: LYD | B94: Libyan Dinar | C94: Libia
A95: MAD | B95: Moroccan Dirham | C95: Marruecos
A96: MDL | B96: Moldovan Leu | C96: Moldavia
A97: MGA | B97: Malagasy Ariary | C97: Madagascar
A98: MKD | B98: Denar | C98: Macedonia
A99: MMK | B99: Kyat | C99: Myanmar (Birmania)
A100: MNT | B100: Tugrik | C100: Mongolia
A101: MOP | B101: Pataca | C101: Macao
A102: MRO | B102: Ouguiya | C102: Mauritania
A103: MUR | B103: Mauritius Rupee | C103: Mauricio
A104: MVR | B104: Rufiyaa | C104: Maldivas
A105: MWK | B105: Kwacha | C105: Malaui
A106: MXN | B106: Mexican Peso | C106: México
A107: MXV | B107: Mexican Unidad de Inversion (UDI) | C107: México
A108: MYR | B108: Malaysian Ringgit | C108: Malasia
A109: MZN | B109: Metical | C109: Mozambique
A110: NAD | B110: Namibia Dollar | C110: Namibia
A111: NGN | B111: Naira | C111: Nigeria
A112: NIO | B112: Cordoba Oro | C112: Nicaragua
A113: NOK | B113: Norwegian Krone | C113: Noruega
A114: NPR | B114: Nepalese Rupee | C114: Nepal
A115: NZD | B115: New Zealand Dollar | C115: Nueva Zelanda
A116: OMR | B116: Rial Omani | C116: Omán
A117: PAB | B117: Balboa | C117: Panamá
A118: PEN | B118: Nuevo Sol o Sol | C118: Perú
A119: PGK | B119: Kina | C119: Papúa Nueva Guinea
A120: PHP | B120: Philippine Peso | C120: Filipinas
A121: PKR | B121: Pakistan Rupee | C121: Pakistán
A122: PLN | B122: Zloty | C122: Polonia
A123: PYG | B123: Guarani | C123: Paraguay
A124: QAR | B124: Qatari Rial | C124: Qatar
A125: RON | B125: New Leu | C125: Rumania
A126: RSD | B126: Serbian Dinar | C126: Serbia
A127: RUB | B127: Russian Ruble | C127: Rusia
A128: RWF | B128: Rwanda Franc | C128: Ruanda
A129: SAR | B129: Saudi Riyal | C129: Arabia Saudita
A130: SBD | B130: Solomon Islands Dollar | C130: Islas Salomón
A131: SCR | B131: Seychelles Rupee | C131: Seychelles
A132: SDG | B132: Sudanese Pound | C132: Sudán
A133: SEK | B133: Swedish Krona | C133: Suecia
A134: SGD | B134: Singapore Dollar | C134: Singapur
A135: SHP | B135: Saint Helena Pound | C135: Santa Helena
A136: SLL | B136: Leone | C136: Sierra Leona
A137: SOS | B137: Somali Shilling | C137: Somalia
A138: SRD | B138: Surinam Dollar | C138: Surinam
A139: STD | B139: Dobra | C139: Santo Tomé y Príncipe
A140: SVC | B140: El Salvador Colon | C140: El Salvador
A141: SYP | B141: Syrian Pound | C141: Siria
A142: SZL | B142: Lilangeni | C142: Suazilandia
A143: THB | B143: Baht | C143: Tailandia
A144: TJS | B144: Somoni | C144: Tayikistán
A145: TMT | B145: Manat | C145: Turkmenistán
A146: TND | B146: Tunisian Dinar | C146: Túnez
A147: TOP | B147: Pa'anga | C147: Tonga
A148: TRY | B148: Turkish Lira | C148: Turquía
A149: TTD | B149: Trinidad and Tobago Dollar | C149: Trinidad y Tobago
A150: TWD | B150: New Taiwan Dollar | C150: Taiwán
A151: TZS | B151: Tanzanian Shilling | C151: Tanzania
A152: UAH | B152: Hryvnia | C152: Ucrania
A153: UGX | B153: Uganda Shilling | C153: Uganda
A154: USD | B154: US Dollar | C154: Estados Unidos (EEUU)
A155: USN | B155: US Dollar (Next day) | C155: Estados Unidos (EEUU)
A156: USS | B156: US Dollar (Same day) | C156: Estados Unidos (EEUU)
A157: UYI | B157: Uruguay Peso en Unidades Indexadas | C157: Uruguay
A158: UYU | B158: Peso Uruguayo | C158: Uruguay
A159: UZS | B159: Uzbekistan Sum | C159: Uzbekistán
A160: VEF | B160: Bolivar Fuerte | C160: Venezuela
A161: VND | B161: Dong | C161: Vietnam
A162: VUV | B162: Vatu | C162: Vanuatu
A163: WST | B163: Tala | C163: Samoa del Oeste
A164: XAF | B164: CFA Franc BEAC ‡ | C164: -
A165: XAG | B165: Silver | C165: -
A166: XAU | B166: Gold | C166: -
A167: XBA | B167: Bond Markets Units European Composite Unit (EURCO) | C167: -
A168: XBB | B168: European Monetary Unit (E.M.U.-6) | C168: -
A169: XBC | B169: European Unit of Account 9(E.U.A.-9) | C169: -
A170: XBD | B170: European Unit of Account 17(E.U.A.-17) | C170: -
A171: XCD | B171: East Caribbean Dollar | C171: -
A172: XDR | B172: SDR | C172: -
A173: XFU | B173: UIC-Franc | C173: -
A174: XOF | B174: CFA Franc BCEAO † | C174: -
A175: XPD | B175: Palladium | C175: -
A176: XPF | B176: CFP Franc | C176: -
A177: XPT | B177: Platinum | C177: -
A178: YER | B178: Yemeni Rial | C178: Yemen
A179: ZAR | B179: Rand | C179: Sudáfrica
A180: ZMK | B180: Zambian Kwacha | C180: Zambia
A181: ZWL | B181: Zimbabwe Dollar | C181: Zimbabue

Sheet TADUANA
A1: TABLA 11: CÓDIGO DE LA ADUANA
A3: N° | B3: DESCRIPCIÓN
A4: 019 | B4: TUMBES
A5: 028 | B5: TALARA
A6: 046 | B6: PAITA
A7: 055 | B7: CHICLAYO
A8: 082 | B8: SALAVERRY
A9: 091 | B9: CHIMBOTE
A10: 118 | B10: MARÍTIMA DEL CALLAO
A11: 127 | B11: PISCO
A12: 145 | B12: MOLLENDO MATARANI
A13: 154 | B13: AREQUIPA
A14: 163 | B14: ILO
A15: 172 | B15: TACNA
A16: 181 | B16: PUNO
A17: 190 | B17: CUZCO
A18: 217 | B18: PUCALLPA
A19: 226 | B19: IQUITOS
A20: 235 | B20: AÉREA DEL CALLAO
A21: 244 | B21: POSTAL DE LIMA
A22: 262 | B22: DESAGUADERO
A23: 271 | B23: TARAPOTO
A24: 280 | B24: PUERTO MALDONADO
A25: 299 | B25: LA TINA
A26: 884 | B26: DEPENDENCIA FERROVIARIA TACNA
A27: 893 | B27: DEPENDENCIA POSTAL TACNA
A28: 910 | B28: DEPENDENCIA POSTAL AREQUIPA
A29: 929 | B29: COMPLEJO FRONTERIZO STA ROSA TACNA
A30: 938 | B30: TERMINAL TERRESTRE TACNA
A31: 947 | B31: AEROPUERTO TACNA
A32: 956 | B32: CETICOS TACNA

Sheet TENTDAD
A1: COD | B1: TIPO DE ENTIDAD
A2: C | B2: CLIENTES
A3: E | B3: EMPLEADOS
A4: O | B4: OTROS
A5: P | B5: PROVEEDORES
A6: S | B6: SOCIOS

Sheet TTCAMBIO
A1: TIPO DE CAMBIO
A2: XXX
A3: FECHA | B3: T. C. COMPRA | C3: T. C. VENTA
A4: 2015-01-01 | B4: 2.981 | C4: 2.989
A5: 2015-01-02 | B5: 2.981 | C5: 2.989
A6: 2015-01-03 | B6: 2.981 | C6: 2.989
A7: 2015-01-04 | B7: 2.981 | C7: 2.989
A8: 2015-01-05 | B8: 2.981 | C8: 2.989
A9: 2015-01-06 | B9: 2.989 | C9: 2.992
A10: 2015-01-07 | B10: 2.981 | C10: 2.983
A11: 2015-01-08 | B11: 2.984 | C11: 2.987
A12: 2015-01-09 | B12: 2.986 | C12: 2.989
A13: 2015-01-10 | B13: 2.982 | C13: 2.986
A14: 2015-01-11 | B14: 2.982 | C14: 2.986
A15: 2015-01-12 | B15: 2.982 | C15: 2.986
A16: 2015-01-13 | B16: 2.987 | C16: 2.989
A17: 2015-01-14 | B17: 2.983 | C17: 2.985
A18: 2015-01-15 | B18: 2.991 | C18: 2.994
A19: 2015-01-16 | B19: 2.994 | C19: 2.997
A20: 2015-01-17 | B20: 3.007 | C20: 3.013
A21: 2015-01-18 | B21: 3.007 | C21: 3.013
A22: 2015-01-19 | B22: 3.007 | C22: 3.013
A23: 2015-01-20 | B23: 3.007 | C23: 3.012
A24: 2015-01-21 | B24: 3.007 | C24: 3.009
A25: 2015-01-22 | B25: 3.009 | C25: 3.011
A26: 2015-01-23 | B26: 3.002 | C26: 3.004
A27: 2015-01-24 | B27: 3.009 | C27: 3.012
A28: 2015-01-25 | B28: 3.009 | C28: 3.012
A29: 2015-01-26 | B29: 3.009 | C29: 3.012
A30: 2015-01-27 | B30: 3.017 | C30: 3.02
A31: 2015-01-28 | B31: 3.022 | C31: 3.024
A32: 2015-01-29 | B32: 3.027 | C32: 3.029
A33: 2015-01-30 | B33: 3.042 | C33: 3.045
A34: 2015-01-31 | B34: 3.056 | C34: 3.058
A35: 2015-02-01 | B35: 3.056 | C35: 3.058
A36: 2015-02-02 | B36: 3.056 | C36: 3.058
A37: 2015-02-03 | B37: 3.057 | C37: 3.06
A38: 2015-02-04 | B38: 3.057 | C38: 3.059
A39: 2015-02-05 | B39: 3.059 | C39: 3.062
A40: 2015-02-06 | B40: 3.061 | C40: 3.063
A41: 2015-02-07 | B41: 3.065 | C41: 3.068
A42: 2015-02-08 | B42: 3.065 | C42: 3.068
A43: 2015-02-09 | B43: 3.065 | C43: 3.068
A44: 2015-02-10 | B44: 3.064 | C44: 3.065
A45: 2015-02-11 | B45: 3.07 | C45: 3.076
A46: 2015-02-12 | B46: 3.092 | C46: 3.094
A47: 2015-02-13 | B47: 3.079 | C47: 3.082
A48: 2015-02-14 | B48: 3.067 | C48: 3.075
A49: 2015-02-15 | B49: 3.067 | C49: 3.075
A50: 2015-02-16 | B50: 3.067 | C50: 3.075
A51: 2015-02-17 | B51: 3.08 | C51: 3.085
A52: 2015-02-18 | B52: 3.081 | C52: 3.083
A53: 2015-02-19 | B53: 3.083 | C53: 3.086
A54: 2015-02-20 | B54: 3.084 | C54: 3.087
A55: 2015-02-21 | B55: 3.084 | C55: 3.089
A56: 2015-02-22 | B56: 3.084 | C56: 3.089
A57: 2015-02-23 | B57: 3.084 | C57: 3.089
A58: 2015-02-24 | B58: 3.087 | C58: 3.09
A59: 2015-02-25 | B59: 3.092 | C59: 3.095
A60: 2015-02-26 | B60: 3.094 | C60: 3.095
A61: 2015-02-27 | B61: 3.091 | C61: 3.094
A62: 2015-02-28 | B62: 3.091 | C62: 3.095
A63: 2015-03-01 | B63: 3.091 | C63: 3.095
A64: 2015-03-02 | B64: 3.091 | C64: 3.095
A65: 2015-03-03 | B65: 3.093 | C65: 3.097
A66: 2015-03-04 | B66: 3.091 | C66: 3.093
A67: 2015-03-05 | B67: 3.092 | C67: 3.094
A68: 2015-03-06 | B68: 3.097 | C68: 3.098
A69: 2015-03-07 | B69: 3.1 | C69: 3.101
A70: 2015-03-08 | B70: 3.1 | C70: 3.101
A71: 2015-03-09 | B71: 3.1 | C71: 3.101
A72: 2015-03-10 | B72: 3.096 | C72: 3.1
A73: 2015-03-11 | B73: 3.098 | C73: 3.1
A74: 2015-03-12 | B74: 3.098 | C74: 3.101
A75: 2015-03-13 | B75: 3.096 | C75: 3.099
A76: 2015-03-14 | B76: 3.099 | C76: 3.102
A77: 2015-03-15 | B77: 3.099 | C77: 3.102
A78: 2015-03-16 | B78: 3.099 | C78: 3.102
A79: 2015-03-17 | B79: 3.095 | C79: 3.099
A80: 2015-03-18 | B80: 3.094 | C80: 3.098
A81: 2015-03-19 | B81: 3.098 | C81: 3.1
A82: 2015-03-20 | B82: 3.095 | C82: 3.096
A83: 2015-03-21 | B83: 3.087 | C83: 3.091
A84: 2015-03-22 | B84: 3.087 | C84: 3.091
A85: 2015-03-23 | B85: 3.087 | C85: 3.091
A86: 2015-03-24 | B86: 3.077 | C86: 3.08
A87: 2015-03-25 | B87: 3.071 | C87: 3.075
A88: 2015-03-26 | B88: 3.064 | C88: 3.066
A89: 2015-03-27 | B89: 3.075 | C89: 3.077
A90: 2015-03-28 | B90: 3.087 | C90: 3.091
A91: 2015-03-29 | B91: 3.087 | C91: 3.091
A92: 2015-03-30 | B92: 3.087 | C92: 3.091
A93: 2015-03-31 | B93: 3.092 | C93: 3.096
A94: 2015-04-01 | B94: 3.094 | C94: 3.097
A95: 2015-04-02 | B95: 3.093 | C95: 3.095
A96: 2015-04-03 | B96: 3.093 | C96: 3.095
A97: 2015-04-04 | B97: 3.093 | C97: 3.095
A98: 2015-04-05 | B98: 3.093 | C98: 3.095
A99: 2015-04-06 | B99: 3.093 | C99: 3.095
A100: 2015-04-07 | B100: 3.089 | C100: 3.093
A101: 2015-04-08 | B101: 3.096 | C101: 3.099
A102: 2015-04-09 | B102: 3.101 | C102: 3.104
A103: 2015-04-10 | B103: 3.111 | C103: 3.113
A104: 2015-04-11 | B104: 3.12 | C104: 3.123
A105: 2015-04-12 | B105: 3.12 | C105: 3.123
A106: 2015-04-13 | B106: 3.12 | C106: 3.123
A107: 2015-04-14 | B107: 3.124 | C107: 3.125
A108: 2015-04-15 | B108: 3.119 | C108: 3.12
A109: 2015-04-16 | B109: 3.123 | C109: 3.125
A110: 2015-04-17 | B110: 3.122 | C110: 3.125
A111: 2015-04-18 | B111: 3.124 | C111: 3.127
A112: 2015-04-19 | B112: 3.124 | C112: 3.127
A113: 2015-04-20 | B113: 3.124 | C113: 3.127
A114: 2015-04-21 | B114: 3.123 | C114: 3.132
A115: 2015-04-22 | B115: 3.129 | C115: 3.132
A116: 2015-04-23 | B116: 3.132 | C116: 3.134
A117: 2015-04-24 | B117: 3.131 | C117: 3.134
A118: 2015-04-25 | B118: 3.132 | C118: 3.136
A119: 2015-04-26 | B119: 3.132 | C119: 3.136
A120: 2015-04-27 | B120: 3.132 | C120: 3.136
A121: 2015-04-28 | B121: 3.132 | C121: 3.135
A122: 2015-04-29 | B122: 3.126 | C122: 3.128
A123: 2015-04-30 | B123: 3.118 | C123: 3.122
A124: 2015-05-01 | B124: 3.124 | C124: 3.127
A125: 2015-05-02 | B125: 3.124 | C125: 3.127
A126: 2015-05-03 | B126: 3.124 | C126: 3.127
A127: 2015-05-04 | B127: 3.124 | C127: 3.127
A128: 2015-05-05 | B128: 3.135 | C128: 3.138
A129: 2015-05-06 | B129: 3.144 | C129: 3.148
A130: 2015-05-07 | B130: 3.143 | C130: 3.145
A131: 2015-05-08 | B131: 3.152 | C131: 3.153
A132: 2015-05-09 | B132: 3.147 | C132: 3.15
A133: 2015-05-10 | B133: 3.147 | C133: 3.15
A134: 2015-05-11 | B134: 3.147 | C134: 3.15
A135: 2015-05-12 | B135: 3.15 | C135: 3.154
A136: 2015-05-13 | B136: 3.151 | C136: 3.153
A137: 2015-05-14 | B137: 3.151 | C137: 3.153
A138: 2015-05-15 | B138: 3.148 | C138: 3.151
A139: 2015-05-16 | B139: 3.145 | C139: 3.148
A140: 2015-05-17 | B140: 3.145 | C140: 3.148
A141: 2015-05-18 | B141: 3.145 | C141: 3.148
A142: 2015-05-19 | B142: 3.149 | C142: 3.151
A143: 2015-05-20 | B143: 3.151 | C143: 3.155
A144: 2015-05-21 | B144: 3.156 | C144: 3.158
A145: 2015-05-22 | B145: 3.149 | C145: 3.151
A146: 2015-05-23 | B146: 3.146 | C146: 3.148
A147: 2015-05-24 | B147: 3.146 | C147: 3.148
A148: 2015-05-25 | B148: 3.146 | C148: 3.148
A149: 2015-05-26 | B149: 3.149 | C149: 3.151
A150: 2015-05-27 | B150: 3.153 | C150: 3.155
A151: 2015-05-28 | B151: 3.154 | C151: 3.156
A152: 2015-05-29 | B152: 3.156 | C152: 3.158
A153: 2015-05-30 | B153: 3.155 | C153: 3.158
A154: 2015-05-31 | B154: 3.155 | C154: 3.158
A155: 2015-06-01 | B155: 3.155 | C155: 3.158
A156: 2015-06-02 | B156: 3.156 | C156: 3.158
A157: 2015-06-03 | B157: 3.154 | C157: 3.157
A158: 2015-06-04 | B158: 3.153 | C158: 3.154
A159: 2015-06-05 | B159: 3.147 | C159: 3.149
A160: 2015-06-06 | B160: 3.15 | C160: 3.153
A161: 2015-06-07 | B161: 3.15 | C161: 3.153
A162: 2015-06-08 | B162: 3.15 | C162: 3.153
A163: 2015-06-09 | B163: 3.151 | C163: 3.154
A164: 2015-06-10 | B164: 3.151 | C164: 3.153
A165: 2015-06-11 | B165: 3.152 | C165: 3.154
A166: 2015-06-12 | B166: 3.153 | C166: 3.155
A167: 2015-06-13 | B167: 3.153 | C167: 3.156
A168: 2015-06-14 | B168: 3.153 | C168: 3.156
A169: 2015-06-15 | B169: 3.153 | C169: 3.156
A170: 2015-06-16 | B170: 3.156 | C170: 3.158
A171: 2015-06-17 | B171: 3.159 | C171: 3.162
A172: 2015-06-18 | B172: 3.163 | C172: 3.165
A173: 2015-06-19 | B173: 3.161 | C173: 3.163
A174: 2015-06-20 | B174: 3.165 | C174: 3.167
A175: 2015-06-21 | B175: 3.165 | C175: 3.167
A176: 2015-06-22 | B176: 3.165 | C176: 3.167
A177: 2015-06-23 | B177: 3.172 | C177: 3.174
A178: 2015-06-24 | B178: 3.178 | C178: 3.18
A179: 2015-06-25 | B179: 3.176 | C179: 3.177
A180: 2015-06-26 | B180: 3.168 | C180: 3.17
A181: 2015-06-27 | B181: 3.169 | C181: 3.173
A182: 2015-06-28 | B182: 3.169 | C182: 3.173
A183: 2015-06-29 | B183: 3.169 | C183: 3.173
A184: 2015-06-30 | B184: 3.169 | C184: 3.173
A185: 2015-07-01 | B185: 3.174 | C185: 3.179
A186: 2015-07-02 | B186: 3.177 | C186: 3.179
A187: 2015-07-03 | B187: 3.17 | C187: 3.175
A188: 2015-07-04 | B188: 3.169 | C188: 3.174
A189: 2015-07-05 | B189: 3.169 | C189: 3.174
A190: 2015-07-06 | B190: 3.169 | C190: 3.174
A191: 2015-07-07 | B191: 3.176 | C191: 3.178
A192: 2015-07-08 | B192: 3.179 | C192: 3.182
A193: 2015-07-09 | B193: 3.185 | C193: 3.187
A194: 2015-07-10 | B194: 3.179 | C194: 3.182
A195: 2015-07-11 | B195: 3.176 | C195: 3.179
A196: 2015-07-12 | B196: 3.176 | C196: 3.179
A197: 2015-07-13 | B197: 3.176 | C197: 3.179
A198: 2015-07-14 | B198: 3.176 | C198: 3.178
A199: 2015-07-15 | B199: 3.175 | C199: 3.179
A200: 2015-07-16 | B200: 3.18 | C200: 3.182
... 168 more rows

Sheet BCOSCIA
A1: BANCOS EMPRESA
A2: N° CUENTA | B2: MONEDA | C2: CÓDIGO | D2: DESCRIPCIÓN

Sheet CAJASCIA
A1: TIPO DE CAJA
A2: CÓDIGO | B2: DETALLE | C2: MONEDA
A3: 1 | B3: CAJA PRINCIPAL | C3: SOL

Sheet ENTIDADES
A1: TIPO | B1: TD | C1: CÓDIGO | D1: NOMBRE | E1: LÍMITE
A2: C | B2: 0 | C2: 0 | D2: ANULADO | E2: 0 | F2: NO BORRAR ESTE DATO

Sheet EASTOSBASE
A1: Registro | B1: Grupo | C1: Cód_Asiento | D1: Descripción | E1: Tipo_Bien | F1: Tipo_Libro | H1: 0 | I1: 0 | J1: 0 | K1: 0 | L1: 0

Sheet DASTOSBASE
A1: Registro | B1: Orden | C1: Grupo | D1: Cód_astobase | E1: Cuenta | F1: Nombre | G1: Clave | H1: Columna | I1: Repor Cj y Bco

Sheet DASTOSBASED
A1: Registro | B1: Orden | C1: Grupo | D1: Cód_astobase | E1: Cuenta | F1: Nombre | G1: Clave | H1: Columna | I1: Repor Cj y Bco

Sheet BDENCABEZADO
A1: NREGISTRO | B1: AÑO | C1: MES | D1: VOUCHER | E1: CODESTRUC | F1: PERIODO | G1: CUO | H1: CORRELATIVO | I1: FE | J1: FV | K1: CDP | L1: SERIE | M1: DUA | N1: NUMEROI | O1: NUMEROF | P1: NUM_I_Y_F | Q1: TDOC | R1: NUMDOC | S1: NOMBRE | T1: BI1 | U1: IGV1 | V1: BI2 | W1: IGV2 | X1: BI3 | Y1: IGV3 | Z1: NOGRAV | AA1: EXPORT | AB1: DESCTOBI | AC1: DESCTOIGV | AD1: EXONER | AE1: INAFEC | AF1: ISC | AG1: OTROS | AH1: TOTAL | AI1: MONEDA | AJ1: TCAMB | AK1: CDPNODOMIC | AL1: FE_CDP_M | AM1: CDP_M | AN1: SERIE_CDP_M | AO1: ADUANA | AP1: NUM_CDP_M | AQ1: FE_DETRAC | AR1: NUM_DETRAC | AS1: RETENC | AT1: TBIEN | AU1: CONTRATO | AV1: MEDIOPAGO | AW1: ESTADO | AX1: LIBRO | AY1: FC | AZ1: UNID_OPER | BA1: CENT_COSTO | BB1: ESTADOLD | BC1: FORMATO | BD1: GLOSA | BE1: TIPOENTIDAD | BF1: DOC_REFERENCIA | BG1: NUMTRANSAC | BH1: CODCAJABCO | BI1: CODCAJABCO1 | BJ1: CODCAJABCO2 | BK1: -

Sheet BDDETALLEASTO
A1: NREGISTRO | B1: AÑO | C1: MES | D1: VOUCHER | E1: CODESTRUC | F1: PERIODO | G1: CUO | H1: CORRELATIVO | I1: UNID_OPER | J1: CENT_COSTO | K1: LIBRO | L1: MONEDA | M1: TDOC | N1: NUMDOC | O1: NOMBRE | P1: CDP | Q1: SERIE | R1: NUM_I_Y_F | S1: NUM_TRANSAC_BCOS | T1: FC | U1: FV | V1: FE | W1: CUENTA | X1: CTA2D | Y1: NOMBRECTA | Z1: CLAVE | AA1: DEBE | AB1: HABER | AC1: COLUM_RCV | AD1: FILTRO_CAJ_BCOS | AE1: DEBE_CAJ_BCOS | AF1: HABER_CAJ_BCOS | AG1: ELEMENTO | AH1: IMPORT_LDS | AI1: MEDIO_PAGO | AJ1: CUENTA2 | AK1: GLOSA | AL1: GLOSAREF | AM1: ESTADOLD | AN1: TIPOASTO | AO1: ENTIFINANC | AP1: CTABANCARIA | AQ1: -

Sheet BDESTADOCTA
A1: NREGISTRO | B1: TIPO | C1: CÓDIGO | D1: NUMVOUCHER | E1: F. EMISIÓN | F1: T. COMPB. | G1: SERIE | H1: NÚMERO | I1: IMPORTE | J1: SALDO | K1: CARGO/DESCTO. | L1: DETALLE | M1: F. VCTO.

Sheet UC
A1: USUARIO CON ACCESO
A2: USUARIO | B2: Archivo
A3: CLAVE | B3: Excel

Sheet AE
A1: SISTEMA CONTABLE AEXCEL
A2: HECHO POR:
A3: www.archivoexcel.com

Sheet TABLASVARIAS (hidden)
A1: Formato Compras | G1: CLAVE DE CALCULO DE IMPORTES EN ASIENTO | L1: COLUMNAS DEL REGISTRO DE COMPRAS | R1: COLUMNAS DEL REGISTRO DE VENTAS | Z1: GRUPO PLAN DE CUENTAS | AD1: MESES | AG1: TIPO MONEDA | AJ1: REGIMEN | AM1: TIPO DE PLAN DE CUENTAS | AX1: TIPO | BE1: CONTA AE PLUS.xlsm
A2: 080100 | B2: REGISTRO DE COMPRAS | G2: Código | H2: Detalle | L2: Código | M2: Detalle | R2: Código | S2: Detalle | Z2: Código | AA2: Detalle | AD2: Detalle | AE2: Código | AG2: Detalle | AJ2: Detalle | AK2: Código | AM2: Código | AN2: Detalle | AX2: C | BE2: BC20565893174201601.xlsx
A3: 080300 | B3: REGISTRO DE COMPRAS SIMPLIFICADO | G3: BI | H3: BASE IMPONIBLE | I3: DBI | J3: DESTINO BASE IMPONIBLE | L3: 1 | M3: Base imponible de las adquisiciones gravadas que dan derecho a crédito fiscal y/o saldo a favor por exportación, destinadas exclusivamente a operaciones gravadas y/o de exportación | R3: 1 | S3: Valor facturado de la exportación | Z3: 1 | AA3: BALANCE GENERAL | AC3: 0 | AD3: APERTURA | AE3: 0 | AG3: SOL | AH3: SOLES | AJ3: R. GENERAL | AK3: RG | AM3: 01 | AN3: PLAN CONTABLE GENERAL EMPRESARIAL | AX3: CÓDIGO | AY3: NOMBRE | AZ3: LÍMITE
G4: BIA | H4: BASE IMPONIBLE ADICIONAL | I4: DBIA | J4: DESTINO BASE IMPONIBLE | L4: 2 | M4: Monto del Impuesto General a las Ventas y/o Impuesto de Promoción Municipal | R4: 2 | S4: Base imponible de la operación gravada | Z4: 2 | AA4: E. R. FUNCIÓN | AC4: 1 | AD4: ENERO | AE4: 1 | AG4: DÓLARES AMERICANOS | AJ4: R. ESPECIAL | AK4: RER | AM4: 02 | AN4: PLAN CONTABLE GENERAL REVISADO | AX4: 0 | AY4: ANULADO | AZ4: 0
G5: ISC | H5: IMPUESTO SELECTIVO AL CONSUMO | I5: DISC | J5: DESTINO IMPUESTO SELECTIVO AL CONSUMO | L5: 3 | M5: Base imponible de las adquisiciones gravadas que dan derecho a crédito fiscal y/o saldo a favor por exportación, destinadas a operaciones gravadas y/o de exportación y a operaciones no gravadas | R5: 3 | S5: Descuento de la Base Imponible | Z5: 3 | AA5: E. R. NATURALEZA | AC5: 2 | AD5: FEBRERO | AE5: 2 | AG5: EUROS | AM5: 03 | AN5: PLAN DE CUENTAS PARA EMPRESAS DEL SISTEMA FINANCIERO, SUPERVISADAS POR SBS | AX5: 20456789123 | AY5: AMÉRICA EIRL | AZ5: 10000
A6: Formato Ventas | G6: ANG | H6: ADQUISICIONES NO GRAVADAS | I6: DANG | J6: DESTINO ADQUISICIONES NO GRAVADAS | L6: 4 | M6: Monto del Impuesto General a las Ventas y/o Impuesto de Promoción Municipal | R6: 4 | S6: Impuesto General a las Ventas y/o Impuesto de Promoción Municipal | Z6: 4 | AA6: E. R. FUNC. Y NATUR. | AC6: 3 | AD6: MARZO | AE6: 3 | AM6: 04 | AN6: PLAN DE CUENTAS PARA ENTIDADES PRESTADORAS DE SALUD, SUPERVISADAS POR SBS | AX6: 20987654321 | AY6: EL EXCLUSIVO SAC | AZ6: 15000
A7: 140100 | B7: REGISTRO DE VENTAS | G7: EXP | H7: EXPORTACIONES | L7: 5 | M7: Base imponible de las adquisiciones gravadas que no dan derecho a crédito fiscal y/o saldo a favor por exportación, por no estar destinadas a operaciones gravadas y/o de exportación. | R7: 5 | S7: Descuento del Impuesto General a las Ventas y/o Impuesto de Promoción Municipal | AC7: 4 | AD7: ABRIL | AE7: 4 | AM7: 05 | AN7: PLAN DE CUENTAS PARA EMPRESAS DEL SISTEMA ASEGURADOR, SUPERVISADAS POR SBS | AX7: 20557788995 | AY7: FRANCA SAC | AZ7: 8000
A8: 140200 | B8: REGISTRO DE VENTAS SIMPLIFICADO | G8: DBI | H8: DESCUENTO BASE IMPONIBLE | L8: 6 | M8: Monto del Impuesto General a las Ventas y/o Impuesto de Promoción Municipal | R8: 6 | S8: Importe total de la operación exonerada | AC8: 5 | AD8: MAYO | AE8: 5 | AM8: 06 | AN8: PLAN DE CUENTAS DE LAS ADMINISTRADORAS PRIVADAS DE FONDOS DE PENSIONES, SUPERVISADAS POR SBS
A9: Asientos base | G9: EXO | H9: OPERACIÓN EXONERADA | L9: 7 | M9: Valor de las adquisiciones no gravadas | R9: 7 | S9: Importe total de la operación inafecta | AC9: 6 | AD9: JUNIO | AE9: 6 | AM9: 07 | AN9: PLAN CONTABLE GUBERNAMENTAL
A10: 0 | B10: 4 | C10: =IF(ISERROR(VLOOKUP(B10,A12:C16,1,0))=FALSE,VLOOKUP(B10,A12:C16,3,0),0) -> 0 | G10: INA | H10: OPERACIÓN INAFECTA | L10: 8 | M10: Monto del Impuesto Selectivo al Consumo en los casos en que el sujeto pueda utilizarlo como deducción. | R10: 8 | S10: Impuesto Selectivo al Consumo, de ser el caso. | AC10: 7 | AD10: JULIO | AE10: 7 | AM10: 99 | AN10: OTROS
A11: Código | B11: Detalle | C11: Correlativo | G11: BIAP | H11: BASE IMPONIBLE ARROZ PILADO | L11: 9 | M11: Otros conceptos, tributos y cargos que no formen parte de la base imponible. | R11: 9 | S11: Base imponible de la operación gravada con el Impuesto a las Ventas del Arroz Pilado | AC11: 8 | AD11: AGOSTO | AE11: 8
A12: 1 | B12: COMPRAS | C12: =EASTOSBASE!H1 -> 0 | D12: Empezar en cero | G12: IGV | H12: IMPUESTO GENERAL A LAS VENTAS | I12: DIGV | J12: DESTINO IGV | L12: 10 | M12: Importe total de las adquisiciones registradas según comprobante de pago. | R12: 10 | S12: Impuesto a las Ventas del Arroz Pilado | AC12: 9 | AD12: SEPTIEMBRE | AE12: 9
A13: 2 | B13: VENTAS | C13: =EASTOSBASE!I1 -> 0 | G13: IGVAP | H13: IMPUESTO GENERAL A LAS VENTAS ARROZ PILADO | R13: 11 | S13: Otros conceptos, tributos y cargos que no forman parte de la base imponible | AC13: 10 | AD13: OCTUBRE | AE13: 10
A14: 3 | B14: CAJA | C14: =EASTOSBASE!J1 -> 0 | G14: IGV A | H14: IMPUESTO GENERAL A LAS VENTAS ADICIONAL | I14: DIGVA | J14: DESTINO IGV ADICIONAL | R14: 12 | S14: Importe total del comprobante de pago | AC14: 11 | AD14: NOVIEMBRE | AE14: 11
A15: 4 | B15: BANCOS | C15: =EASTOSBASE!K1 -> 0 | G15: DIGV | H15: DESCUENTO IMPUESTO GENERAL A LAS VENTAS | AC15: 12 | AD15: DICIEMBRE | AE15: 12
A16: 5 | B16: DIARIO | C16: =EASTOSBASE!L1 -> 0 | G16: OT | H16: OTROS | I16: DOT | J16: DESTINO OTROS | AC16: 13 | AD16: CIERRE | AE16: 13
G17: TO | H17: TOTAL
A18: NÚMERO DE VOUCHER | G18: ACT | H18: IMPORTE CUENTA ACTIVO
A19: Mes | B19: Voucher | C19: Número | G19: AJ ING | H19: IMPORTE DE AJUSTE - INGRESO | I19: D AJ ING | J19: DESTINO IMPORTE DE AJUSTE - INGRESO
A20: 4 | B20: 06 | C20: =IF(AND(A20>=0,B20>0),INDEX(TVOUCHER!B3:P21,MATCH(B20,TVOUCHER!A3:A21,0),MATCH(A20,TVOUCHER!B2:P2,0)),0)+1 -> 1 | G20: TOT ING | H20: TOTAL INGRESO
A21: 4 | B21: 05 | C21: =IF(AND(A21>=0,B21>0),INDEX(TVOUCHER!B3:P21,MATCH(B21,TVOUCHER!A3:A21,0),MATCH(A21,TVOUCHER!B2:P2,0)),0)+1 -> 1 | G21: PAS | H21: IMPORTE CUENTA PASIVO
A22: Formulario Activo | G22: AJ EGR | H22: IMPORTE DE AJUSTE - EGRESO | I22: D AJ EGR | J22: DESTINO IMPORTE DE AJUSTE - EGRESO
G23: TOT EGR | H23: TOTAL EGRESO
G24: GTO | H24: IMPORTE CUENTA DE GASTO | I24: DGTO | J24: DESTINO IMPORTE CUENTA DE GASTO
G25: GTO4 | H25: CUENTA DE GASTO 4 | I25: DGTO2 | J25: DESTINO CUENTA DE GASTO 4
A28: CODIGO DE ENTIDAD
A29: Voucher | B29: Código
A30: 10 | B30: 20456789123
A33: IMPORTE A CANCELAR
A34: UNI OPER | B34: CENT COSTO | C34: F CONT | D34: F EMIS | E34: MONEDA | F34: T CAMB
A36: TDENTI | B36: COD ENTID | C36: NOMB ENTI | D36: TIPO ENTID | F36: VOUCHER
A38: TCOMP | B38: SERIE | C38: NÚMERO | D38: IMPORTE | E38: AÑO | F38: MES
A40: PERIODO | B40: CORRELATIVO
A44: CORRELATIVO DE VENTAS
A45: TCOMP | B45: SERIE | C45: NÚMERO

Sheet RV
B1: FORMATO 14.1: REGISTRO DE VENTAS E INGRESOS | L1: ENERO | AA1: MES | AB1: VOUCHER | AC1: AÑO
B2: * | AA2: 4 | AB2: 02 | AC2: =IF(año>0,año,0) -> 2016
B3: =CONCATENATE("PERÍODO: ",J1," - ",año) -> PERÍODO: - 2016
B4: =CONCATENATE("RUC: ",ruc) -> RUC: 20123456789
B5: =IF(cia>"",cia,"") -> SPORT KENNEX S.A.C.
B6: *
B7: NÚMERO CORRELATIVO DEL REGISTRO O CÓDIGO UNICO DE LA OPERACIÓN | C7: FECHA DE EMISIÓN DEL COMPROB. DE PAGO O DOCUMENTO | D7: FECHA DE VENCIMTO Y/O PAGO | E7: COMPROBANTE DE PAGO O DOCUMENTO | I7: INFORMACIÓN DEL CLIENTE | L7: VALOR FACTURADO DE LA EXPORTACIÓN | M7: BASE IMPONIBLE DE LA OPERACIÓN GRAVADA | N7: IMPORTE TOTAL DE LA OPERACIÓN EXONERADA O INAFECTA | P7: ISC | Q7: IGV Y/O IPM | R7: OTROS TRIBUTOS Y CARGOS QUE NO FORMAN PARTE DE LA BASE IMPONIBLE | S7: IMPORTE TOTAL DEL COMPROBANTE DE PAGO | T7: TIPO DE CAMBIO | U7: REFERENCIA DEL COMPROBANTE DE PAGO O DOCUMENTO ORIGINAL QUE SE MODIFICA
E8: TIPO | F8: N° SERIE O N° DE SERIE DE LA MAQUINA REGISTRADORA | G8: NÚMERO | I8: DOCUMENTO DE IDENTIDAD | K8: APELLIDOS Y NOMBRES, DENOMINACIÓN O RAZÓN SOCIAL | N8: EXONERADA | O8: INAFECTA | U8: FECHA | V8: TIPO | W8: SERIE | X8: N° DEL COMPROB. DE PAGO O DOCUMENTO
G9: INICIAL | H9: FINAL | I9: TIPO | J9: NÚMERO
A10: 1 | B10: CUO | C10: FE | D10: FV | E10: CDP | F10: SERIE | G10: NUMEROI | H10: NUMEROF | I10: TDOC | J10: NUMDOC | K10: NOMBRE | L10: EXPORT | M10: BI1 | N10: EXONER | O10: INAFEC | P10: ISC | Q10: IGV1 | R10: OTROS | S10: TOTAL | T10: TCAMB | U10: FE_CDP_M | V10: CDP_M | W10: SERIE_CDP_M | X10: NUM_CDP_M
B11: 201604020001 | C11: 2016-04-03 | D11: 2016-04-30 | E11: 01 | F11: 0001 | G11: 3 | I11: 6 | J11: 20987654321 | K11: EL EXCLUSIVO SAC | M11: 4000 | Q11: 720 | S11: 4720
B12: 201604020002 | C12: 2016-04-15 | E12: 01 | F12: 0001 | G12: 4 | I12: 6 | J12: 20557788995 | K12: FRANCA SAC | M12: 10000 | Q12: 1800 | S12: 11800
A13: 1 | K13: TOTAL PÁGINA | L13: 0 | M13: 14000 | N13: 0 | O13: 0 | P13: 0 | Q13: 2520 | R13: 0 | S13: 16520
K15: TOTAL GENERAL | L15: =SUMIF(A:A,1,L:L) -> 0 | M15: =SUMIF(A:A,1,M:M) -> 14000 | N15: =SUMIF(A:A,1,N:N) -> 0 | O15: =SUMIF(A:A,1,O:O) -> 0 | P15: =SUMIF(A:A,1,P:P) -> 0 | Q15: =SUMIF(A:A,1,Q:Q) -> 2520 | R15: =SUMIF(A:A,1,R:R) -> 0 | S15: =SUMIF(A:A,1,S:S) -> 16520

Sheet RC
B1: FORMATO 8.1: REGISTRO DE COMPRAS | I1: ABRIL | AG1: MES | AH1: VOUCHER | AI1: AÑO
B2: * | AG2: 4 | AH2: 03 | AI2: =IF(año>0,año,0) -> 2016
B3: =CONCATENATE("PERÍODO: ",I1," - ",año) -> PERÍODO: ABRIL - 2016
B4: =CONCATENATE("RUC: ",ruc) -> RUC: 20123456789
B5: =IF(cia>"",cia,"") -> SPORT KENNEX S.A.C.
B6: *
B7: NÚMERO CORRELATIVO DEL REGISTRO O CÓDIGO UNICO DE LA OPERACIÓN | C7: FECHA DE EMISIÓN DEL COMPROB. DE PAGO O DOCUMENTO | D7: FECHA DE VENCMTO. O FECHA DE PAGO (1) | E7: COMPROBANTE DE PAGO O DOCUMENTO | H7: N° DEL COMPROBANTE DE PAGO, DOCUMENTO, N° DE ORDEN DEL FORMULARIO FÍSICO O VIRTUAL, N° DE DUA, DSI O LIQUIDACIÓN DE COBRANZA U OTROS DOCUMENTOS EMITIDOS POR SUNAT PARA ACREDITAR EL CRÉDITO FISCAL EN LA IMPORTACIÓN | J7: INFORMACIÓN DEL PROVEEDOR | M7: ADQUISICIONES GRAVADAS DESTINADAS A OPERACIONES GRAVADAS Y/O DE EXPORTACIÓN | O7: ADQUISICIONES GRAVADAS DESTINADAS A OPERACIONES GRAVADAS Y/O DE EXPORTACIÓN Y A OPERACIONES NO GRAVADAS | Q7: ADQUISICIONES GRAVADAS DESTINADAS A OPERACIONES NO GRAVADAS | S7: VALOR DE LAS ADQUISICIONES NO GRAVADAS | T7: ISC | U7: OTROS TRIBUTOS Y CARGOS | V7: IMPORTE TOTAL | W7: N° DE COMPROBANTE DE PAGO EMITIDO POR SUJETO NO DOMICILIADO (2) | X7: CONSTANCIA DE DEPÓSITO DE DETRACCIÓN (3) | Z7: TIPO DE CAMBIO | AA7: REFERENCIA DEL COMPROBANTE DE PAGO O DOCUMENTO ORIGINAL QUE SE MODIFICA
E8: TIPO | F8: SERIE O CÓDIGO DE LA DEPENDENCIA ADUANERA | G8: AÑO DE EMISIÓN DE LA DUA O DSI | J8: DOCUMENTO DE IDENTIDAD | L8: APELLIDOS Y NOMBRES, DENOMINACIÓN O RAZÓN SOCIAL | AA8: FECHA | AB8: TIPO | AC8: SERIE | AD8: N° DEL COMPROBANTE DE PAGO O DOCUMENTO
H9: INICIAL | I9: FINAL | J9: TIPO | K9: NÚMERO | M9: BASE IMPONIBLE | N9: IGV | O9: BASE IMPONIBLE | P9: IGV | Q9: BASE IMPONIBLE | R9: IGV | X9: NÚMERO | Y9: FECHA DE EMISIÓN
A10: 1 | B10: CUO | C10: FE | D10: FV | E10: CDP | F10: SERIE | G10: DUA | H10: NUMEROI | I10: NUMEROF | J10: TDOC | K10: NUMDOC | L10: NOMBRE | M10: BI1 | N10: IGV1 | O10: BI2 | P10: IGV2 | Q10: BI3 | R10: IGV3 | S10: NOGRAV | T10: ISC | U10: OTROS | V10: TOTAL | W10: CDPNODOMIC | X10: NUM_DETRAC | Y10: FE_DETRAC | Z10: TCAMB | AA10: FE_CDP_M | AB10: CDP_M | AC10: SERIE_CDP_M | AD10: NUM_CDP_M
B11: 201604030001 | C11: 2016-04-05 | D11: 2016-05-15 | E11: 01 | F11: 0001 | H11: 16754 | J11: 6 | K11: 20789123654 | L11: LATINA SAC | M11: 8000 | N11: 1440 | V11: 9440
B12: 201604030002 | C12: 2016-04-22 | E12: 01 | F12: E010 | H12: 4587 | J12: 6 | K12: 20564595756 | L12: CRISTAL SAC | M12: 4000 | N12: 720 | V12: 4720
B13: 201604030003 | C13: 2016-04-23 | D13: 2016-04-30 | E13: 14 | F13: 0004 | H13: 913231319 | J13: 6 | K13: 20100034021 | L13: TELEFÓNICA S.A.A. | M13: 100 | N13: 18 | U13: 5 | V13: 123
B14: 201604030004 | C14: 2016-04-24 | D14: 2016-04-29 | E14: 14 | H14: 18422816 | J14: 6 | K14: 20331189808 | L14: LUZ DEL SUR SAA | M14: 200 | N14: 36 | V14: 236
A15: 1 | L15: TOTAL PÁGINA | M15: 12300 | N15: 2214 | O15: 0 | P15: 0 | Q15: 0 | R15: 0 | S15: 0 | T15: 0 | U15: 5 | V15: 14519
L17: TOTAL GENERAL | M17: =SUMIF(A:A,1,M:M) -> 12300 | N17: =SUMIF(A:A,1,N:N) -> 2214 | O17: =SUMIF(A:A,1,O:O) -> 0 | P17: =SUMIF(A:A,1,P:P) -> 0 | Q17: =SUMIF(A:A,1,Q:Q) -> 0 | R17: =SUMIF(A:A,1,R:R) -> 0 | S17: =SUMIF(A:A,1,S:S) -> 0 | T17: =SUMIF(A:A,1,T:T) -> 0 | U17: =SUMIF(A:A,1,U:U) -> 5 | V17: =SUMIF(A:A,1,V:V) -> 14519

Sheet LD
B1: FORMATO 5.1: LIBRO DIARIO | M1: DICIEMBRE
B2: X
B3: =CONCATENATE("PERÍODO: ",F1," - ",año) -> PERÍODO: - 2016
B4: =CONCATENATE("RUC: ",ruc) -> RUC: 20123456789
B5: =IF(cia>"",cia,"") -> SPORT KENNEX S.A.C.
B6: X
B7: NÚMERO CORREL. DE LA OPERAC. | C7: FECHA OPERAC. | D7: GLOSA O DESCRIPCIÓN DE LA OPERACIÓN | E7: REFERENCIA DE LA OPERACIÓN | J7: CUENTA CONTABLE ASOCIADA A LA OPERACIÓN | L7: MOVIMIENTO | N7: ENTIDAD
E8: CÓDIGO DEL LIBRO | F8: NÚMERO CORREL. | G8: NÚMERO DEL DOCUMENTO | J8: CÓDIGO | K8: DENOMINACIÓN | L8: DEBE | M8: HABER
A9: 1 | G9: TIPO | H9: SERIE | I9: NÚMERO
A10: 1 | B10: * | J10: - | K10: SALDO INICIAL | L10: 40980 | M10: 40980

Sheet LDS
B1: FORMATO 5.2: LIBRO DIARIO DE FORMATO SIMPLIFICADO | G1: ABRIL
B2: x
B3: =CONCATENATE("PERÍODO: ",G1," - ",año) -> PERÍODO: ABRIL - 2016
B4: =CONCATENATE("RUC: ",ruc) -> RUC: 20123456789
B5: =IF(cia>"",cia,"") -> SPORT KENNEX S.A.C.
B6: x
B7: NÚMERO CORREL. DE LA OPERAC. | C7: FECHA OPERAC. | D7: GLOSA O DESCRIPCIÓN DE LA OPERACIÓN
B9: ---- | C9: ---- | D9: SALDO INICIAL
A28: 1

Sheet LM
A1: FORMATO 6.1: LIBRO MAYOR | E1: ENERO
A2: X | C2: X
A3: =CONCATENATE("PERÍODO: ",D1," - ",año) -> PERÍODO: - 2016
A4: =CONCATENATE("RUC: ",ruc) -> RUC: 20123456789
A5: =IF(cia>"",cia,"") -> SPORT KENNEX S.A.C.
A6: X
A7: FECHA | B7: NÚM. CORR. | C7: DESCRIPCION O GLOSA DE LA OPERACIÓN | D7: SALDOS Y MOVIMIENTOS | F7: ENTIDAD | G7: NÚMERO DEL DOCUMENTO
A8: OPERAC. | D8: DEUDOR | E8: ACREEDOR | G8: TIPO | H8: SERIE | I8: NÚMERO
A9: CUENTA | B9: 101000 | C9: Caja
A10: - | C10: SALDO INICIAL | D10: 23995.83 | E10: 0
A11: 2015-12-10 | B11: 201512040001 | C11: PAGO AL CONTADO | D11: 0 | E11: 2920 | F11: 10080771156 | G11: 01 | H11: 1 | I11: 50
A12: 2015-12-14 | B12: 201512040002 | C12: PAGO AL CONTADO | D12: 0 | E12: 700 | F12: 20348303636 | G12: 12 | H12: 20 | I12: 2536
A13: 2015-12-23 | B13: 201512040003 | C13: PAGO AL CONTADO | D13: 0 | E13: 1460 | F13: 10080771156 | G13: 01 | H13: 4 | I13: 57
A14: 2015-12-27 | B14: 201512040004 | C14: PAGO AL CONTADO | D14: 0 | E14: 250 | F14: 20516966620 | G14: 01 | H14: 1 | I14: 89249
A15: 2015-12-30 | B15: 201512040005 | C15: PAGO AL CONTADO | D15: 0 | E15: 145 | F15: 20516966620 | G15: 01 | H15: 1 | I15: 89300
A16: 2015-12-07 | B16: 201512040006 | C16: COBRO AL CONTADO | D16: 300 | E16: 0 | F16: 20555925787 | G16: 01 | H16: 4 | I16: 168
A17: 2015-12-09 | B17: 201512040007 | C17: COBRO AL CONTADO | D17: 977.3 | E17: 0 | F17: 20555915986 | G17: 01 | H17: 4 | I17: 169
A18: 2015-12-09 | B18: 201512040008 | C18: COBRO AL CONTADO | D18: 279 | E18: 0 | F18: 20555915986 | G18: 01 | H18: 4 | I18: 170
A19: 2015-01-09 | B19: 201512040009 | C19: COBRO AL CONTADO | D19: 475 | E19: 0 | F19: 10096481778 | G19: 01 | H19: 4 | I19: 171
A20: 2015-12-17 | B20: 201512040010 | C20: COBRO AL CONTADO | D20: 352 | E20: 0 | F20: 10096481778 | G20: 01 | H20: 4 | I20: 172
A21: 2015-12-28 | B21: 201512040011 | C21: COBRO AL CONTADO | D21: 1460.5 | E21: 0 | F21: 20555915986 | G21: 01 | H21: 4 | I21: 173
A22: 2015-12-30 | B22: 201512040012 | C22: COBRO AL CONTADO | D22: 565 | E22: 0 | F22: 10096481778 | G22: 01 | H22: 4 | I22: 175
A23: 2015-12-30 | B23: 201512040013 | C23: COBRO AL CONTADO | D23: 200 | E23: 0 | F23: 20555925787 | G23: 01 | H23: 4 | I23: 176
A24: 2015-12-18 | B24: 201512040014 | C24: PAGO AL CONTADO | D24: 0 | E24: 1314 | F24: 10080771156 | G24: 01 | H24: 4 | I24: 56
A25: 2015-12-31 | B25: 201512040015 | C25: PAGO DE PRÉSTAMO | D25: 0 | E25: 17500 | F25: 28105321 | G25: 00 | H25: 1 | I25: 2015
A26: 2015-12-31 | B26: 201512040016 | C26: PAGO DE PRÉSTAMO | D26: 0 | E26: 500 | F26: 28105321 | G26: 00 | H26: 1 | I26: 201501
A27: 2015-12-31 | B27: 201512040017 | C27: PAGO DE PRÉSTAMOS | D27: 0 | E27: 2000 | F27: 28105321 | G27: 00 | I27: 201501
A28: - | C28: SUBTOTALES | D28: 28604.63 | E28: 26789
A29: - | C29: SALDO FINAL | D29: 0 | E29: 1815.63
A30: - | C30: TOTALES | D30: 28604.63 | E30: 28604.63
A31: -
A32: CUENTA | B32: 121200 | C32: Emitidas en cartera
A33: - | C33: SALDO INICIAL | D33: 0 | E33: 0
A34: 2015-12-07 | B34: 201512040006 | C34: COBRO AL CONTADO | D34: 0 | E34: 300 | F34: 20555925787 | G34: 01 | H34: 4 | I34: 168
A35: 2015-12-07 | B35: 201512020001 | C35: VENTA DE BOCADITOS | D35: 300 | E35: 0 | F35: 20555925787 | G35: 01 | H35: 4 | I35: 168
A36: 2015-12-09 | B36: 201512040007 | C36: COBRO AL CONTADO | D36: 0 | E36: 977.3 | F36: 20555915986 | G36: 01 | H36: 4 | I36: 169
A37: 2015-12-09 | B37: 201512020002 | C37: VENTA DE BOCADITOS | D37: 977.3 | E37: 0 | F37: 20555915986 | G37: 01 | H37: 4 | I37: 169
A38: 2015-12-09 | B38: 201512040008 | C38: COBRO AL CONTADO | D38: 0 | E38: 279 | F38: 20555915986 | G38: 01 | H38: 4 | I38: 170
A39: 2015-12-09 | B39: 201512020003 | C39: VENTA DE BOCADITOS | D39: 279 | E39: 0 | F39: 20555915986 | G39: 01 | H39: 4 | I39: 170
A40: 2015-01-09 | B40: 201512040009 | C40: COBRO AL CONTADO | D40: 0 | E40: 475 | F40: 10096481778 | G40: 01 | H40: 4 | I40: 171
A41: 2015-01-09 | B41: 201512020004 | C41: VENTA DE BOCADITOS | D41: 475 | E41: 0 | F41: 10096481778 | G41: 01 | H41: 4 | I41: 171
A42: 2015-12-17 | B42: 201512040010 | C42: COBRO AL CONTADO | D42: 0 | E42: 352 | F42: 10096481778 | G42: 01 | H42: 4 | I42: 172
A43: 2015-12-17 | B43: 201512020005 | C43: VENTA DE BOCADITOS | D43: 352 | E43: 0 | F43: 10096481778 | G43: 01 | H43: 4 | I43: 172
A44: 2015-12-28 | B44: 201512040011 | C44: COBRO AL CONTADO | D44: 0 | E44: 1460.5 | F44: 20555915986 | G44: 01 | H44: 4 | I44: 173
A45: 2015-12-28 | B45: 201512020006 | C45: VENTA DE BOCADITOS | D45: 1460.5 | E45: 0 | F45: 20555915986 | G45: 01 | H45: 4 | I45: 173
A46: 2015-12-30 | B46: 201512040012 | C46: COBRO AL CONTADO | D46: 0 | E46: 565 | F46: 10096481778 | G46: 01 | H46: 4 | I46: 175
A47: 2015-12-30 | B47: 201512020008 | C47: VENTA DE BOCADITOS | D47: 565 | E47: 0 | F47: 10096481778 | G47: 01 | H47: 4 | I47: 175
A48: 2015-12-30 | B48: 201512040013 | C48: COBRO AL CONTADO | D48: 0 | E48: 200 | F48: 20555925787 | G48: 01 | H48: 4 | I48: 176
A49: 2015-12-30 | B49: 201512020009 | C49: VENTA DE BOCADITOS | D49: 200 | E49: 0 | F49: 20555925787 | G49: 01 | H49: 4 | I49: 176
A50: - | C50: SUBTOTALES | D50: 4608.8 | E50: 4608.8
A51: - | C51: SALDO FINAL | D51: 0 | E51: 0
A52: - | C52: TOTALES | D52: 4608.8 | E52: 4608.8
A53: -
A54: CUENTA | B54: 211000 | C54: Productos manufacturados
A55: - | C55: SALDO INICIAL | D55: 9789.16 | E55: 0
A56: 2015-12-31 | B56: 201512060007 | C56: COSTO DE PRODUCCIÓN DEL MES | D56: 2672.27 | E56: 0 | G56: 00 | I56: 201512
A57: 2015-12-31 | B57: 201512060008 | C57: COSTO DE VENTAS DEL MES | D57: 0 | E57: 3817 | G57: 00 | I57: 201512
A58: - | C58: SUBTOTALES | D58: 12461.43 | E58: 3817
A59: - | C59: SALDO FINAL | D59: 0 | E59: 8644.43
A60: - | C60: TOTALES | D60: 12461.43 | E60: 12461.43
A61: -
A62: CUENTA | B62: 241000 | C62: Materias primas para productos manufacturados
A63: - | C63: SALDO INICIAL | D63: 259.78 | E63: 0
A64: 2015-12-31 | B64: 201512060003 | C64: CONSUMO DE MP | D64: 0 | E64: 259.78 | G64: 00 | I64: 201512
A65: - | C65: SUBTOTALES | D65: 259.78 | E65: 259.78
A66: - | C66: SALDO FINAL | D66: 1.136868377e-12 | E66: 0
A67: - | C67: TOTALES | D67: 259.78 | E67: 259.78
A68: -
A69: CUENTA | B69: 251000 | C69: Materiales auxiliares
A70: - | C70: SALDO INICIAL | D70: 0 | E70: 2566.74
A71: 2015-12-23 | B71: 201512030003 | C71: COMPRA DE ACEITE VEGETAL | D71: 1237.28 | E71: 0 | F71: 10080771156 | G71: 01 | H71: 4 | I71: 57
A72: 2015-12-10 | B72: 201512030001 | C72: COMPRA DE BIDONES | D72: 2474.57 | E72: 0 | F72: 10080771156 | G72: 01 | H72: 1 | I72: 50
A73: 2015-12-18 | B73: 201512060001 | C73: PROVISIÓN DE GASTO DEL PERIODO / IGV A UTILIZAR PERIODO SIGUIENTE | D73: 1113.55 | E73: 0 | F73: 10080771156 | G73: 01 | H73: 0004 | I73: 56
A74: 2015-12-31 | B74: 201512060004 | C74: CONSUMO DE MATERIALES AUXILIARES Y SUMINISTROS | D74: 0 | E74: 1763.74 | G74: 00 | I74: 201512
A75: - | C75: SUBTOTALES | D75: 4825.4 | E75: 4330.48
A76: - | C76: SALDO FINAL | D76: 0 | E76: 494.92
A77: - | C77: TOTALES | D77: 4825.4 | E77: 4825.4
A78: -
A79: CUENTA | B79: 252100 | C79: Combustibles
A80: - | C80: SALDO INICIAL | D80: 385 | E80: 0
A81: 2015-12-14 | B81: 201512030002 | C81: COMPRA DE PETRÓLEO | D81: 593.22 | E81: 0 | F81: 20348303636 | G81: 12 | H81: 20 | I81: 2536
A82: 2015-12-27 | B82: 201512030004 | C82: COMPRA DE PETRÓLEO | D82: 211.86 | E82: 0 | F82: 20516966620 | G82: 01 | H82: 1 | I82: 89249
A83: 2015-12-30 | B83: 201512030005 | C83: COMPRA DE PETRÓLEO | D83: 122.88 | E83: 0 | F83: 20516966620 | G83: 01 | H83: 1 | I83: 89300
A84: 2015-12-31 | B84: 201512060005 | C84: CONSUMO PETRÓLEO | D84: 0 | E84: 385 | G84: 00 | I84: 201512
A85: - | C85: SUBTOTALES | D85: 1312.96 | E85: 385
A86: - | C86: SALDO FINAL | D86: 0 | E86: 927.96
A87: - | C87: TOTALES | D87: 1312.96 | E87: 1312.96
A88: -
A89: CUENTA | B89: 261000 | C89: Envases
A90: - | C90: SALDO INICIAL | D90: 186.44 | E90: 0
A91: 2015-12-31 | B91: 201512060006 | C91: CONSUMO DE ENVASES | D91: 0 | E91: 186.44 | G91: 00 | I91: 201512
A92: - | C92: SUBTOTALES | D92: 186.44 | E92: 186.44
A93: - | C93: SALDO FINAL | D93: 0 | E93: 0
A94: - | C94: TOTALES | D94: 186.44 | E94: 186.44
A95: -
A96: CUENTA | B96: 333110 | C96: Costo de adquisición o construcción
A97: - | C97: SALDO INICIAL | D97: 3550 | E97: 0
A98: - | C98: SUBTOTALES | D98: 3550 | E98: 0
A99: - | C99: SALDO FINAL | D99: 0 | E99: 3550
A100: - | C100: TOTALES | D100: 3550 | E100: 3550
A101: -
A102: CUENTA | B102: 335110 | C102: Costo
A103: - | C103: SALDO INICIAL | D103: 5727.12 | E103: 0
A104: - | C104: SUBTOTALES | D104: 5727.12 | E104: 0
A105: - | C105: SALDO FINAL | D105: 0 | E105: 5727.12
A106: - | C106: TOTALES | D106: 5727.12 | E106: 5727.12
A107: -
A108: CUENTA | B108: 391320 | C108: Maquinarias y equipos de explotación
A109: - | C109: SALDO INICIAL | D109: 0 | E109: 935.34
A110: 2015-12-31 | B110: 201512060002 | C110: DEPRECIACIÓN DEL PERIODO | D110: 0 | E110: 29.58 | G110: 00 | I110: 201512
A111: - | C111: SUBTOTALES | D111: 0 | E111: 964.92
A112: - | C112: SALDO FINAL | D112: 964.92 | E112: 0
A113: - | C113: TOTALES | D113: 964.92 | E113: 964.92
A114: -
A115: CUENTA | B115: 391340 | C115: Muebles y enseres
A116: - | C116: SALDO INICIAL | D116: 0 | E116: 591.11
A117: 2015-12-31 | B117: 201512060002 | C117: DEPRECIACIÓN DEL PERIODO | D117: 0 | E117: 47.73 | G117: 00 | I117: 201512
A118: - | C118: SUBTOTALES | D118: 0 | E118: 638.84
A119: - | C119: SALDO FINAL | D119: 638.84 | E119: 0
A120: - | C120: TOTALES | D120: 638.84 | E120: 638.84
A121: -
A122: CUENTA | B122: 401110 | C122: IGV - Cuenta propia
A123: - | C123: SALDO INICIAL | D123: 0 | E123: 352
A124: 2015-12-14 | B124: 201512030002 | C124: COMPRA DE PETRÓLEO | D124: 106.78 | E124: 0 | F124: 20348303636 | G124: 12 | H124: 20 | I124: 2536
A125: 2015-12-23 | B125: 201512030003 | C125: COMPRA DE ACEITE VEGETAL | D125: 222.72 | E125: 0 | F125: 10080771156 | G125: 01 | H125: 4 | I125: 57
A126: 2015-12-27 | B126: 201512030004 | C126: COMPRA DE PETRÓLEO | D126: 38.14 | E126: 0 | F126: 20516966620 | G126: 01 | H126: 1 | I126: 89249
A127: 2015-12-30 | B127: 201512030005 | C127: COMPRA DE PETRÓLEO | D127: 22.12 | E127: 0 | F127: 20516966620 | G127: 01 | H127: 1 | I127: 89300
A128: 2015-12-10 | B128: 201512030001 | C128: COMPRA DE BIDONES | D128: 445.43 | E128: 0 | F128: 10080771156 | G128: 01 | H128: 1 | I128: 50
A129: 2015-12-07 | B129: 201512020001 | C129: VENTA DE BOCADITOS | D129: 0 | E129: 45.76 | F129: 20555925787 | G129: 01 | H129: 4 | I129: 168
A130: 2015-12-09 | B130: 201512020002 | C130: VENTA DE BOCADITOS | D130: 0 | E130: 149.08 | F130: 20555915986 | G130: 01 | H130: 4 | I130: 169
A131: 2015-12-09 | B131: 201512020003 | C131: VENTA DE BOCADITOS | D131: 0 | E131: 42.56 | F131: 20555915986 | G131: 01 | H131: 4 | I131: 170
A132: 2015-01-09 | B132: 201512020004 | C132: VENTA DE BOCADITOS | D132: 0 | E132: 72.46 | F132: 10096481778 | G132: 01 | H132: 4 | I132: 171
A133: 2015-12-17 | B133: 201512020005 | C133: VENTA DE BOCADITOS | D133: 0 | E133: 53.7 | F133: 10096481778 | G133: 01 | H133: 4 | I133: 172
A134: 2015-12-28 | B134: 201512020006 | C134: VENTA DE BOCADITOS | D134: 0 | E134: 222.79 | F134: 20555915986 | G134: 01 | H134: 4 | I134: 173
A135: 2015-12-30 | B135: 201512020008 | C135: VENTA DE BOCADITOS | D135: 0 | E135: 86.19 | F135: 10096481778 | G135: 01 | H135: 4 | I135: 175
A136: 2015-12-30 | B136: 201512020009 | C136: VENTA DE BOCADITOS | D136: 0 | E136: 30.51 | F136: 20555925787 | G136: 01 | H136: 4 | I136: 176
A137: 2015-12-18 | B137: 201512060001 | C137: PROVISIÓN DE GASTO DEL PERIODO / IGV A UTILIZAR PERIODO SIGUIENTE | D137: 200.45 | E137: 0 | F137: 10080771156 | G137: 01 | H137: 0004 | I137: 56
A138: - | C138: SUBTOTALES | D138: 1035.64 | E138: 1055.05
A139: - | C139: SALDO FINAL | D139: 19.41 | E139: 0
A140: - | C140: TOTALES | D140: 1055.05 | E140: 1055.05
A141: -
A142: CUENTA | B142: 401710 | C142: Renta de tercera categoría
A143: - | C143: SALDO INICIAL | D143: 272 | E143: 0
A144: - | C144: SUBTOTALES | D144: 272 | E144: 0
A145: - | C145: SALDO FINAL | D145: 0 | E145: 272
A146: - | C146: TOTALES | D146: 272 | E146: 272
A147: -
A148: CUENTA | B148: 421200 | C148: Emitidas
A149: - | C149: SALDO INICIAL | D149: 0 | E149: 0
A150: 2015-12-10 | B150: 201512040001 | C150: PAGO AL CONTADO | D150: 2920 | E150: 0 | F150: 10080771156 | G150: 01 | H150: 1 | I150: 50
A151: 2015-12-14 | B151: 201512040002 | C151: PAGO AL CONTADO | D151: 700 | E151: 0 | F151: 20348303636 | G151: 12 | H151: 20 | I151: 2536
A152: 2015-12-14 | B152: 201512030002 | C152: COMPRA DE PETRÓLEO | D152: 0 | E152: 700 | F152: 20348303636 | G152: 12 | H152: 20 | I152: 2536
A153: 2015-12-23 | B153: 201512040003 | C153: PAGO AL CONTADO | D153: 1460 | E153: 0 | F153: 10080771156 | G153: 01 | H153: 4 | I153: 57
A154: 2015-12-23 | B154: 201512030003 | C154: COMPRA DE ACEITE VEGETAL | D154: 0 | E154: 1460 | F154: 10080771156 | G154: 01 | H154: 4 | I154: 57
A155: 2015-12-27 | B155: 201512040004 | C155: PAGO AL CONTADO | D155: 250 | E155: 0 | F155: 20516966620 | G155: 01 | H155: 1 | I155: 89249
A156: 2015-12-27 | B156: 201512030004 | C156: COMPRA DE PETRÓLEO | D156: 0 | E156: 250 | F156: 20516966620 | G156: 01 | H156: 1 | I156: 89249
A157: 2015-12-30 | B157: 201512040005 | C157: PAGO AL CONTADO | D157: 145 | E157: 0 | F157: 20516966620 | G157: 01 | H157: 1 | I157: 89300
A158: 2015-12-30 | B158: 201512030005 | C158: COMPRA DE PETRÓLEO | D158: 0 | E158: 145 | F158: 20516966620 | G158: 01 | H158: 1 | I158: 89300
A159: 2015-12-10 | B159: 201512030001 | C159: COMPRA DE BIDONES | D159: 0 | E159: 2920 | F159: 10080771156 | G159: 01 | H159: 1 | I159: 50
A160: 2015-12-18 | B160: 201512060001 | C160: PROVISIÓN DE GASTO DEL PERIODO / IGV A UTILIZAR PERIODO SIGUIENTE | D160: 0 | E160: 1314 | F160: 10080771156 | G160: 01 | H160: 0004 | I160: 56
A161: 2015-12-18 | B161: 201512040014 | C161: PAGO AL CONTADO | D161: 1314 | E161: 0 | F161: 10080771156 | G161: 01 | H161: 4 | I161: 56
A162: - | C162: SUBTOTALES | D162: 6789 | E162: 6789
A163: - | C163: SALDO FINAL | D163: 0 | E163: 0
A164: - | C164: TOTALES | D164: 6789 | E164: 6789
A165: -
A166: CUENTA | B166: 441100 | C166: Préstamos
A167: - | C167: SALDO INICIAL | D167: 0 | E167: 30000
A168: 2015-12-31 | B168: 201512040015 | C168: PAGO DE PRÉSTAMO | D168: 17500 | E168: 0 | F168: 28105321 | G168: 00 | H168: 1 | I168: 2015
A169: 2015-12-31 | B169: 201512040016 | C169: PAGO DE PRÉSTAMO | D169: 500 | E169: 0 | F169: 28105321 | G169: 00 | H169: 1 | I169: 201501
A170: 2015-12-31 | B170: 201512040017 | C170: PAGO DE PRÉSTAMOS | D170: 2000 | E170: 0 | F170: 28105321 | G170: 00 | I170: 201501
A171: - | C171: SUBTOTALES | D171: 20000 | E171: 30000
A172: - | C172: SALDO FINAL | D172: 10000 | E172: 0
A173: - | C173: TOTALES | D173: 30000 | E173: 30000
A174: -
A175: CUENTA | B175: 501100 | C175: Acciones
A176: - | C176: SALDO INICIAL | D176: 0 | E176: 10350
A177: - | C177: SUBTOTALES | D177: 0 | E177: 10350
A178: - | C178: SALDO FINAL | D178: 10350 | E178: 0
A179: - | C179: TOTALES | D179: 10350 | E179: 10350
A180: -
A181: CUENTA | B181: 591100 | C181: Utilidades acumuladas
A182: - | C182: SALDO INICIAL | D182: 0 | E182: 299.14
A183: - | C183: SUBTOTALES | D183: 0 | E183: 299.14
A184: - | C184: SALDO FINAL | D184: 299.14 | E184: 0
A185: - | C185: TOTALES | D185: 299.14 | E185: 299.14
A186: -
A187: CUENTA | B187: 592100 | C187: Pérdidas acumuladas
A188: - | C188: SALDO INICIAL | D188: 1617.43 | E188: 0
A189: - | C189: SUBTOTALES | D189: 1617.43 | E189: 0
A190: - | C190: SALDO FINAL | D190: 0 | E190: 1617.43
A191: - | C191: TOTALES | D191: 1617.43 | E191: 1617.43
A192: -
A193: CUENTA | B193: 602100 | C193: Materias primas para productos manufacturados
A194: - | C194: SALDO INICIAL | D194: 3994.57 | E194: 0
A195: - | C195: SUBTOTALES | D195: 3994.57 | E195: 0
A196: - | C196: SALDO FINAL | D196: 0 | E196: 3994.57
A197: - | C197: TOTALES | D197: 3994.57 | E197: 3994.57
A198: -
A199: CUENTA | B199: 603100 | C199: Materiales auxiliares
A200: - | C200: SALDO INICIAL | D200: 12555.1 | E200: 0
... 166 more rows

Sheet LC
A1: FORMATO 1.1: LIBRO CAJA Y BANCOS - DETALLE DE LOS MOVIMIENTOS DEL EFECTIVO
A2: X
A3: =CONCATENATE("PERÍODO: ",I1," - ",año) -> PERÍODO: - 2016
A4: =CONCATENATE("RUC: ",ruc) -> RUC: 20123456789
A5: =IF(cia>"",cia,"") -> SPORT KENNEX S.A.C.
A6: X
A7: NÚMERO | B7: FECHA DE LA OPERACIÓN | C7: DESCRIPCIÓN DE LA OPERACIÓN | D7: CUENTA CONTABLE ASOCIADA | F7: SALDOS Y MOVIMIENTOS | H7: ENTIDAD | I7: NÚMERO DEL DOCUMENTO
A8: CORRELATIVO | D8: CÓDIGO | E8: DENOMINACIÓN | F8: DEUDOR | G8: ACREEDOR | H8: ENTIDAD | I8: TIPO | J8: SERIE | K8: NÚMERO
A9: CAJA | B9: 1 | C9: CAJA PRINCIPAL | G9: MONEDA: SOL
A10: - | E10: SALDO INICIAL | F10: 1500 | G10: 0
A11: 201604040001 | B11: 2016-04-23 | C11: PAGO CON CAJA | D11: 421200 | E11: Emitidas | F11: 0 | G11: 123 | H11: 20100034021 | I11: 14 | J11: 4 | K11: 913231319
A12: 201604040002 | B12: 2016-04-24 | C12: PAGO DE LUZ CON CAJA | D12: 421200 | E12: Emitidas | F12: 0 | G12: 236 | H12: 20331189808 | I12: 14 | K12: 18422816
A13: - | E13: SUBTOTALES | F13: 1500 | G13: 359
A14: - | E14: SALDO FINAL | F14: 0 | G14: 1141
A15: - | E15: TOTALES | F15: 1500 | G15: 1500
A16: -

Sheet LB
A1: FORMATO 1.2: "LIBRO CAJA Y BANCOS - DETALLE DE LOS MOVIMIENTOS DE LA CUENTA CORRIENTE" | H1: ABRIL
A2: x | I2: DICIEMBRE
A3: =CONCATENATE("PERÍODO: ",H1," - ",año) -> PERÍODO: ABRIL - 2016
A4: =CONCATENATE("RUC: ",ruc) -> RUC: 20123456789
A5: =IF(cia>"",cia,"") -> SPORT KENNEX S.A.C.
A6: x
A7: NÚMERO | B7: FECHA DE LA OPERACIÓN | C7: OPERACIONES BANCARIAS | G7: CUENTA CONTABLE ASOCIADA | I7: SALDOS Y MOVIMIENTOS | K7: ENTIDAD | L7: NÚMERO DEL DOCUMENTO
A8: CORRELATIVO | C8: MEDIO DE PAGO | D8: DESCRIPCIÓN DE LA OPERACIÓN | E8: APELLIDOS Y NOMBRES, DENOMINACIÓN O RAZÓN SOCIAL | F8: NÚMERO DE TRANSACCIÓN BANCARIA, DE DOCUMENTO O DE LA OPERACIÓN | G8: CÓDIGO | H8: DENOMINACIÓN | I8: DEUDOR | J8: ACREEDOR | K8: ENTIDAD | L8: TIPO | M8: SERIE | N8: NÚMERO
A9: ENTIDAD FINANCIERA: 11 - CONTINENTAL
A10: Nº CUENTA CORRIENTE: 11-0057-02-478596 | F10: MONEDA: SOL
A11: - | H11: SALDO INICIAL | I11: 0 | J11: 0
A12: 201604050003 | B12: 2016-04-16 | C12: 003 | D12: TRANSFERENCIA DE EFECTIVO ENTRE CTAS. CTES. | F12: 1578965 | G12: 104100 | H12: Cuentas corrientes operativas | I12: 2000 | J12: 0 | L12: 00 | N12: 1578965
A13: - | H13: SUBTOTALES | I13: 2000 | J13: 0
A14: - | H14: SALDO FINAL | I14: 0 | J14: 2000
A15: - | H15: TOTALES | I15: 2000 | J15: 2000
A16: -
A17: ENTIDAD FINANCIERA: 02 - DE CREDITO DEL PERU
A18: Nº CUENTA CORRIENTE: 194–2233665–0–71 | F18: MONEDA: SOL
A19: - | H19: SALDO INICIAL | I19: 18250 | J19: 0
A20: 201604050001 | B20: 2016-04-15 | C20: 001 | D20: COBRO CON DEPÓSITO EN CUENTA | E20: EL EXCLUSIVO SAC | F20: 4678513 | G20: 121200 | H20: Emitidas en cartera | I20: 3750 | J20: 0 | K20: 20987654321 | L20: 01 | M20: 1 | N20: 1
A21: 201604050002 | B21: 2016-04-15 | C21: 003 | D21: COBRO DE FACTURA CON TRANSFERENCIA A CTA. CTE | E21: FRANCA SAC | F21: 45879 | G21: 121200 | H21: Emitidas en cartera | I21: 11800 | J21: 0 | K21: 20557788995 | L21: 01 | M21: 1 | N21: 4
A22: 201604050003 | B22: 2016-04-16 | C22: 003 | D22: TRANSFERENCIA DE EFECTIVO ENTRE CTAS. CTES. | F22: 1578965 | G22: 104100 | H22: Cuentas corrientes operativas | I22: 0 | J22: 2000 | L22: 00 | N22: 1578965
A23: 201604050004 | B23: 2016-04-22 | C23: 003 | D23: PAGO CON TRANSFERENCIA A CTA. CTE | E23: CRISTAL SAC | F23: 56322 | G23: 421200 | H23: Emitidas | I23: 0 | J23: 4720 | K23: 20564595756 | L23: 01 | M23: E010 | N23: 4587
A24: 201604050005 | B24: 2016-04-30 | C24: 003 | D24: PAGO DE FACTURA CON TRANSFERENCIA DE CTA. CTE. | E24: CATS SAC | F24: 265478 | G24: 421200 | H24: Emitidas | I24: 0 | J24: 5680 | K24: 20753951852 | L24: 01 | M24: 5 | N24: 54792
A25: 201604050006 | B25: 2016-04-30 | C25: 003 | D25: PAGO DE PLANILLA | F25: 6325478 | G25: 411100 | H25: Sueldos y salarios por pagar | I25: 0 | J25: 4350 | L25: 00 | N25: 6325478
A26: - | H26: SUBTOTALES | I26: 33800 | J26: 16750
A27: - | H27: SALDO FINAL | I27: 0 | J27: 17050
A28: - | H28: TOTALES | I28: 33800 | J28: 33800
A29: -

Sheet HT
A1: X | B1: =CONCATENATE("RUC: ",ruc) -> RUC: 20123456789 | M1: DICIEMBRE | O1: =SUMAR.SI(CONSULHT!D:D,HT!B7,CONSULHT!F:F) | P1: =SUMAR.SI(CONSULHT!D:D,HT!B7,CONSULHT!G:G) | Q1: =SI(D7>E7,D7-E7,0) | R1: =SI(E7>D7,E7-D7,0) | S1: =SI(A7=1,F7,0) | T1: =SI(A7=1,G7,0) | U1: =SI(O(A7=3,A7=4),F7,0) | V1: =SI(O(A7=3,A7=4),G7,0) | W1: =SI(O(A7=2,A7=4),F7,0) | X1: =SI(O(A7=2,A7=4),G7,0) | AD1: 2D
A2: X | B2: =IF(cia>"",cia,"") -> SPORT KENNEX S.A.C. | AD2: 6D
A3: X | B3: =CONCATENATE("HOJA DE TRABAJO A ",L1," DEL ",año) -> HOJA DE TRABAJO A DEL 2016
A4: X | B4: x
A5: X | B5: CTA | C5: NOMBRE | D5: SUMAS | F5: SALDO | H5: BALANCE - INVENTARIO | J5: RESULTA. POR NATUR. | L5: RESULTA. POR FUNC.
A6: X | B6: 6D | D6: DEBE | E6: HABER | F6: DEUDOR | G6: ACREEDOR | H6: ACTIVO | I6: PASIVO | J6: PERDIDA | K6: GANANCIA | L6: PERDIDA | M6: GANANCIA
A7: 1 | B7: 101000 | C7: Caja | D7: 1500 | E7: 359 | F7: 1141 | G7: 0 | H7: 1141 | I7: 0 | J7: 0 | K7: 0 | L7: 0 | M7: 0
A8: 1 | B8: 104100 | C8: Cuentas corrientes operativas | D8: 35800 | E8: 16750 | F8: 19050 | G8: 0 | H8: 19050 | I8: 0 | J8: 0 | K8: 0 | L8: 0 | M8: 0
A9: 1 | B9: 121200 | C9: Emitidas en cartera | D9: 25520 | E9: 20800 | F9: 4720 | G9: 0 | H9: 4720 | I9: 0 | J9: 0 | K9: 0 | L9: 0 | M9: 0
A10: 1 | B10: 123200 | C10: En cobranza | D10: 5400 | E10: 0 | F10: 5400 | G10: 0 | H10: 5400 | I10: 0 | J10: 0 | K10: 0 | L10: 0 | M10: 0
A11: 1 | B11: 141100 | C11: Préstamos | D11: 800 | E11: 0 | F11: 800 | G11: 0 | H11: 800 | I11: 0 | J11: 0 | K11: 0 | L11: 0 | M11: 0
A12: 1 | B12: 201110 | C12: Costo | D12: 17950 | E12: 7500 | F12: 10450 | G12: 0 | H12: 10450 | I12: 0 | J12: 0 | K12: 0 | L12: 0 | M12: 0
A13: 1 | B13: 335110 | C13: Costo | D13: 3640 | E13: 0 | F13: 3640 | G13: 0 | H13: 3640 | I13: 0 | J13: 0 | K13: 0 | L13: 0 | M13: 0
A14: 1 | B14: 335210 | C14: Costo | D14: 1840 | E14: 0 | F14: 1840 | G14: 0 | H14: 1840 | I14: 0 | J14: 0 | K14: 0 | L14: 0 | M14: 0
A15: 1 | B15: 391340 | C15: Muebles y enseres | D15: 0 | E15: 1698 | F15: 0 | G15: 1698 | H15: 0 | I15: 1698 | J15: 0 | K15: 0 | L15: 0 | M15: 0
A16: 1 | B16: 401110 | C16: IGV - Cuenta propia | D16: 2214 | E16: 2520 | F16: 0 | G16: 306 | H16: 0 | I16: 306 | J16: 0 | K16: 0 | L16: 0 | M16: 0
A17: 1 | B17: 403100 | C17: ESSALUD | D17: 0 | E17: 450 | F17: 0 | G17: 450 | H17: 0 | I17: 450 | J17: 0 | K17: 0 | L17: 0 | M17: 0
A18: 1 | B18: 403200 | C18: ONP | D18: 0 | E18: 650 | F18: 0 | G18: 650 | H18: 0 | I18: 650 | J18: 0 | K18: 0 | L18: 0 | M18: 0
A19: 1 | B19: 411100 | C19: Sueldos y salarios por pagar | D19: 4350 | E19: 4350 | F19: 0 | G19: 0 | H19: 0 | I19: 0 | J19: 0 | K19: 0 | L19: 0 | M19: 0
A20: 1 | B20: 421200 | C20: Emitidas | D20: 10759 | E20: 24549 | F20: 0 | G20: 13790 | H20: 0 | I20: 13790 | J20: 0 | K20: 0 | L20: 0 | M20: 0
A21: 1 | B21: 501100 | C21: Acciones | D21: 0 | E21: 28000 | F21: 0 | G21: 28000 | H21: 0 | I21: 28000 | J21: 0 | K21: 0 | L21: 0 | M21: 0
A22: 1 | B22: 591100 | C22: Utilidades acumuladas | D22: 0 | E22: 1800 | F22: 0 | G22: 1800 | H22: 0 | I22: 1800 | J22: 0 | K22: 0 | L22: 0 | M22: 0
A23: 3 | B23: 601100 | C23: Mercaderías manufacturadas - Costo | D23: 12000 | E23: 0 | F23: 12000 | G23: 0 | H23: 0 | I23: 0 | J23: 12000 | K23: 0 | L23: 0 | M23: 0
A24: 3 | B24: 611100 | C24: Mercaderías manufacturadas | D24: 7500 | E24: 12000 | F24: 0 | G24: 4500 | H24: 0 | I24: 0 | J24: 0 | K24: 4500 | L24: 0 | M24: 0
A25: 3 | B25: 621120 | C25: Sueldos y salarios - ADMI. | D25: 5000 | E25: 0 | F25: 5000 | G25: 0 | H25: 0 | I25: 0 | J25: 5000 | K25: 0 | L25: 0 | M25: 0
A26: 3 | B26: 627120 | C26: Régimen de prestaciones de salud - ADMI. | D26: 450 | E26: 0 | F26: 450 | G26: 0 | H26: 0 | I26: 0 | J26: 450 | K26: 0 | L26: 0 | M26: 0
A27: 3 | B27: 636120 | C27: Energía eléctrica - ADMI. | D27: 200 | E27: 0 | F27: 200 | G27: 0 | H27: 0 | I27: 0 | J27: 200 | K27: 0 | L27: 0 | M27: 0
A28: 3 | B28: 636420 | C28: Teléfono - ADMI. | D28: 105 | E28: 0 | F28: 105 | G28: 0 | H28: 0 | I28: 0 | J28: 105 | K28: 0 | L28: 0 | M28: 0
A29: 3 | B29: 681442 | C29: Muebles y enseres - ADMI. | D29: 548 | E29: 0 | F29: 548 | G29: 0 | H29: 0 | I29: 0 | J29: 548 | K29: 0 | L29: 0 | M29: 0
A30: 2 | B30: 691110 | C30: Terceros | D30: 7500 | E30: 0 | F30: 7500 | G30: 0 | H30: 0 | I30: 0 | J30: 0 | K30: 0 | L30: 7500 | M30: 0
A31: 4 | B31: 701110 | C31: Terceros | D31: 0 | E31: 14000 | F31: 0 | G31: 14000 | H31: 0 | I31: 0 | J31: 0 | K31: 14000 | L31: 0 | M31: 14000
A32: 4 | B32: 772200 | C32: Cuentas por cobrar comerciales | D32: 0 | E32: 150 | F32: 0 | G32: 150 | H32: 0 | I32: 0 | J32: 0 | K32: 150 | L32: 0 | M32: 150
A33: 0 | B33: 791000 | C33: Cargas imputables a cuentas de costos y gastos | D33: 0 | E33: 13803 | F33: 0 | G33: 13803 | H33: 0 | I33: 0 | J33: 0 | K33: 0 | L33: 0 | M33: 0
A34: 2 | B34: 946210 | C34: Remuneraciones | D34: 5000 | E34: 0 | F34: 5000 | G34: 0 | H34: 0 | I34: 0 | J34: 0 | K34: 0 | L34: 5000 | M34: 0
A35: 2 | B35: 946270 | C35: Seguridad, previsión social y otras contribuciones | D35: 450 | E35: 0 | F35: 450 | G35: 0 | H35: 0 | I35: 0 | J35: 0 | K35: 0 | L35: 450 | M35: 0
A36: 2 | B36: 946360 | C36: Servicios básicos | D36: 305 | E36: 0 | F36: 305 | G36: 0 | H36: 0 | I36: 0 | J36: 0 | K36: 0 | L36: 305 | M36: 0
A37: 2 | B37: 946810 | C37: Depreciación | D37: 548 | E37: 0 | F37: 548 | G37: 0 | H37: 0 | I37: 0 | J37: 0 | K37: 0 | L37: 548 | M37: 0
B38: - | C38: SUBTOTALES | D38: 149379 | E38: 149379 | F38: 79147 | G38: 79147 | H38: 47041 | I38: 46694 | J38: 18303 | K38: 18650 | L38: 13803 | M38: 14150
B39: - | C39: SALDOS | H39: =IF(I38>H38,I38-H38,0) -> 0 | I39: =IF(H38>I38,H38-I38,0) -> 347 | J39: =IF(K38>J38,K38-J38,0) -> 347 | K39: =IF(J38>K38,J38-K38,0) -> 0 | L39: =IF(M38>L38,M38-L38,0) -> 347 | M39: =IF(L38>M38,L38-M38,0) -> 0
B40: - | C40: TOTALES | H40: 47041 | I40: 47041 | J40: 18650 | K40: 18650 | L40: 14150 | M40: 14150

Sheet BG
A1: =IF(cia>"",cia,"") -> SPORT KENNEX S.A.C.
A2: =CONCATENATE("RUC: ",ruc) -> RUC: 20123456789
A3: BALANCE GENERAL
A4: =CONCATENATE("AL MES DE ",F1," DEL ",año) -> AL MES DE DEL 2016
A5: (Expresado en Soles)
A7: COD | B7: ACTIVO | C7: S/. | D7: COD | E7: PASIVO Y PATRIMONIO | F7: S/.
B8: ACTIVO CORRIENTE | E8: PASIVO CORRIENTE
A9: 01 | B9: BIENES Y VALORES ENTREGADOS | C9: =SUMIF(CONSLD!F:F,A9,CONSLD!C:C)-SUMIF(CONSLD!F:F,A9,CONSLD!D:D) -> 0 | D9: 06 | E9: BIENES Y VALORES RECIBIDOS | F9: =SUMIF(CONSLD!F:F,D9,CONSLD!D:D)-SUMIF(CONSLD!F:F,D9,CONSLD!C:C) -> 0
A10: 02 | B10: DERECHOS SOBRE INSTRUMENTOS FINANCIEROS | C10: =SUMIF(CONSLD!F:F,A10,CONSLD!C:C)-SUMIF(CONSLD!F:F,A10,CONSLD!D:D) -> 0 | D10: 07 | E10: COMPROMISOS SOBRE INSTRUMENTOS FINANCIEROS | F10: =SUMIF(CONSLD!F:F,D10,CONSLD!D:D)-SUMIF(CONSLD!F:F,D10,CONSLD!C:C) -> 0
A11: 03 | B11: OTRAS CUENTAS DE ORDEN DEUDORAS | C11: =SUMIF(CONSLD!F:F,A11,CONSLD!C:C)-SUMIF(CONSLD!F:F,A11,CONSLD!D:D) -> 0 | D11: 08 | E11: OTRAS CUENTAS DE ORDEN ACREEDORAS | F11: =SUMIF(CONSLD!F:F,D11,CONSLD!D:D)-SUMIF(CONSLD!F:F,D11,CONSLD!C:C) -> 0
A12: 04 | B12: DEUDORAS POR CONTRA CUENTAS DE ORDEN ACREEDORAS | C12: =SUMIF(CONSLD!F:F,A12,CONSLD!C:C)-SUMIF(CONSLD!F:F,A12,CONSLD!D:D) -> 0 | D12: 09 | E12: ACREEDORAS POR CONTRA | F12: =SUMIF(CONSLD!F:F,D12,CONSLD!D:D)-SUMIF(CONSLD!F:F,D12,CONSLD!C:C) -> 0
A13: 10 | B13: EFECTIVO Y EQUIVALENTES DE EFECTIVO | C13: =SUMIF(CONSLD!F:F,A13,CONSLD!C:C)-SUMIF(CONSLD!F:F,A13,CONSLD!D:D) -> 0 | D13: 40 | E13: TRIBUTOS, CONTRAPRESTACIONES Y APORTES AL SISTEMA DE PENSIONES Y DE SALUD POR PAGAR | F13: =SUMIF(CONSLD!F:F,D13,CONSLD!D:D)-SUMIF(CONSLD!F:F,D13,CONSLD!C:C) -> 0
A14: 11 | B14: INVERSIONES FINANCIERAS | C14: =SUMIF(CONSLD!F:F,A14,CONSLD!C:C)-SUMIF(CONSLD!F:F,A14,CONSLD!D:D) -> 0 | D14: 41 | E14: REMUNERACIONES Y PARTICIPACIONES POR PAGAR | F14: =SUMIF(CONSLD!F:F,D14,CONSLD!D:D)-SUMIF(CONSLD!F:F,D14,CONSLD!C:C) -> 0
A15: 12 | B15: CUENTAS POR COBRAR COMERCIALES – TERCEROS | C15: =SUMIF(CONSLD!F:F,A15,CONSLD!C:C)-SUMIF(CONSLD!F:F,A15,CONSLD!D:D) -> 0 | D15: 42 | E15: CUENTAS POR PAGAR COMERCIALES – TERCEROS | F15: =SUMIF(CONSLD!F:F,D15,CONSLD!D:D)-SUMIF(CONSLD!F:F,D15,CONSLD!C:C) -> 0
A16: 13 | B16: CUENTAS POR COBRAR COMERCIALES – RELACIONADAS | C16: =SUMIF(CONSLD!F:F,A16,CONSLD!C:C)-SUMIF(CONSLD!F:F,A16,CONSLD!D:D) -> 0 | D16: 43 | E16: CUENTAS POR PAGAR COMERCIALES – RELACIONADAS | F16: =SUMIF(CONSLD!F:F,D16,CONSLD!D:D)-SUMIF(CONSLD!F:F,D16,CONSLD!C:C) -> 0
A17: 14 | B17: CUENTAS POR COBRAR AL PERSONAL, A LOS ACCIONISTAS (SOCIOS), DIRECTORES Y GERENTES | C17: =SUMIF(CONSLD!F:F,A17,CONSLD!C:C)-SUMIF(CONSLD!F:F,A17,CONSLD!D:D) -> 0 | D17: 44 | E17: CUENTAS POR PAGAR A LOS ACCIONISTAS (SOCIOS), DIRECTORES Y GERENTES | F17: =SUMIF(CONSLD!F:F,D17,CONSLD!D:D)-SUMIF(CONSLD!F:F,D17,CONSLD!C:C) -> 0
A18: 16 | B18: CUENTAS POR COBRAR DIVERSAS - TERCEROS | C18: =SUMIF(CONSLD!F:F,A18,CONSLD!C:C)-SUMIF(CONSLD!F:F,A18,CONSLD!D:D) -> 0 | E18: Total Pasivo Corriente | F18: =SUM(F9:F17) -> 0
A19: 17 | B19: CUENTAS POR COBRAR DIVERSAS - RELACIONADAS | C19: =SUMIF(CONSLD!F:F,A19,CONSLD!C:C)-SUMIF(CONSLD!F:F,A19,CONSLD!D:D) -> 0
A20: 18 | B20: SERVICIOS Y OTROS CONTRATADOS POR ANTICIPADO | C20: =SUMIF(CONSLD!F:F,A20,CONSLD!C:C)-SUMIF(CONSLD!F:F,A20,CONSLD!D:D) -> 0
A21: 19 | B21: ESTIMACIÓN DE CUENTAS DE COBRANZA DUDOSA | C21: =SUMIF(CONSLD!F:F,A21,CONSLD!C:C)-SUMIF(CONSLD!F:F,A21,CONSLD!D:D) -> 0 | E21: PASIVO NO CORRIENTE
A22: 20 | B22: MERCADERÍAS | C22: =SUMIF(CONSLD!F:F,A22,CONSLD!C:C)-SUMIF(CONSLD!F:F,A22,CONSLD!D:D) -> 0 | D22: 45 | E22: OBLIGACIONES FINANCIERAS | F22: =SUMIF(CONSLD!F:F,D22,CONSLD!D:D)-SUMIF(CONSLD!F:F,D22,CONSLD!C:C) -> 0
A23: 21 | B23: PRODUCTOS TERMINADOS | C23: =SUMIF(CONSLD!F:F,A23,CONSLD!C:C)-SUMIF(CONSLD!F:F,A23,CONSLD!D:D) -> 0 | D23: 46 | E23: CUENTAS POR PAGAR DIVERSAS – TERCEROS | F23: =SUMIF(CONSLD!F:F,D23,CONSLD!D:D)-SUMIF(CONSLD!F:F,D23,CONSLD!C:C) -> 0
A24: 22 | B24: SUBPRODUCTOS, DESECHOS Y DESPERDICIOS | C24: =SUMIF(CONSLD!F:F,A24,CONSLD!C:C)-SUMIF(CONSLD!F:F,A24,CONSLD!D:D) -> 0 | D24: 47 | E24: CUENTAS POR PAGAR DIVERSAS – RELACIONADAS | F24: =SUMIF(CONSLD!F:F,D24,CONSLD!D:D)-SUMIF(CONSLD!F:F,D24,CONSLD!C:C) -> 0
A25: 23 | B25: PRODUCTOS EN PROCESO | C25: =SUMIF(CONSLD!F:F,A25,CONSLD!C:C)-SUMIF(CONSLD!F:F,A25,CONSLD!D:D) -> 0 | D25: 48 | E25: PROVISIONES | F25: =SUMIF(CONSLD!F:F,D25,CONSLD!D:D)-SUMIF(CONSLD!F:F,D25,CONSLD!C:C) -> 0
A26: 24 | B26: MATERIAS PRIMAS | C26: =SUMIF(CONSLD!F:F,A26,CONSLD!C:C)-SUMIF(CONSLD!F:F,A26,CONSLD!D:D) -> 0 | D26: 49 | E26: PASIVO DIFERIDO | F26: =SUMIF(CONSLD!F:F,D26,CONSLD!D:D)-SUMIF(CONSLD!F:F,D26,CONSLD!C:C) -> 0
A27: 25 | B27: MATERIALES AUXILIARES, SUMINISTROS Y REPUESTOS | C27: =SUMIF(CONSLD!F:F,A27,CONSLD!C:C)-SUMIF(CONSLD!F:F,A27,CONSLD!D:D) -> 0 | E27: Total Pasivo No Corriente | F27: =SUM(F22:F26) -> 0
A28: 26 | B28: ENVASES Y EMBALAJES | C28: =SUMIF(CONSLD!F:F,A28,CONSLD!C:C)-SUMIF(CONSLD!F:F,A28,CONSLD!D:D) -> 0
A29: 27 | B29: ACTIVOS NO CORRIENTES MANTENIDOS PARA LA VENTA | C29: =SUMIF(CONSLD!F:F,A29,CONSLD!C:C)-SUMIF(CONSLD!F:F,A29,CONSLD!D:D) -> 0 | E29: Total Pasivo | F29: =F18+F27 -> 0
A30: 28 | B30: EXISTENCIAS POR RECIBIR | C30: =SUMIF(CONSLD!F:F,A30,CONSLD!C:C)-SUMIF(CONSLD!F:F,A30,CONSLD!D:D) -> 0
A31: 29 | B31: DESVALORIZACIÓN DE EXISTENCIAS | C31: =SUMIF(CONSLD!F:F,A31,CONSLD!C:C)-SUMIF(CONSLD!F:F,A31,CONSLD!D:D) -> 0
B32: Total Activo Corriente | C32: =SUM(C9:C31) -> 0
B34: ACTIVO NO CORRIENTE | E34: PATRIMONIO NETO
A35: 30 | B35: INVERSIONES MOBILIARIAS | C35: =SUMIF(CONSLD!F:F,A35,CONSLD!C:C)-SUMIF(CONSLD!F:F,A35,CONSLD!D:D) -> 0 | D35: 50 | E35: CAPITAL | F35: =SUMIF(CONSLD!F:F,D35,CONSLD!D:D)-SUMIF(CONSLD!F:F,D35,CONSLD!C:C) -> 0
A36: 31 | B36: INVERSIONES INMOBILIARIAS | C36: =SUMIF(CONSLD!F:F,A36,CONSLD!C:C)-SUMIF(CONSLD!F:F,A36,CONSLD!D:D) -> 0 | D36: 51 | E36: ACCIONES DE INVERSIÓN | F36: =SUMIF(CONSLD!F:F,D36,CONSLD!D:D)-SUMIF(CONSLD!F:F,D36,CONSLD!C:C) -> 0
A37: 32 | B37: ACTIVOS ADQUIRIDOS EN ARRENDAMIENTO FINANCIERO | C37: =SUMIF(CONSLD!F:F,A37,CONSLD!C:C)-SUMIF(CONSLD!F:F,A37,CONSLD!D:D) -> 0 | D37: 52 | E37: CAPITAL ADICIONAL | F37: =SUMIF(CONSLD!F:F,D37,CONSLD!D:D)-SUMIF(CONSLD!F:F,D37,CONSLD!C:C) -> 0
A38: 33 | B38: INMUEBLES, MAQUINARIA Y EQUIPO | C38: =SUMIF(CONSLD!F:F,A38,CONSLD!C:C)-SUMIF(CONSLD!F:F,A38,CONSLD!D:D) -> 0 | D38: 56 | E38: RESULTADOS NO REALIZADOS | F38: =SUMIF(CONSLD!F:F,D38,CONSLD!D:D)-SUMIF(CONSLD!F:F,D38,CONSLD!C:C) -> 0
A39: 34 | B39: INTANGIBLES | C39: =SUMIF(CONSLD!F:F,A39,CONSLD!C:C)-SUMIF(CONSLD!F:F,A39,CONSLD!D:D) -> 0 | D39: 57 | E39: EXCEDENTE DE REVALUACIÓN | F39: =SUMIF(CONSLD!F:F,D39,CONSLD!D:D)-SUMIF(CONSLD!F:F,D39,CONSLD!C:C) -> 0
A40: 35 | B40: ACTIVOS BIOLÓGICOS | C40: =SUMIF(CONSLD!F:F,A40,CONSLD!C:C)-SUMIF(CONSLD!F:F,A40,CONSLD!D:D) -> 0 | D40: 58 | E40: RESERVAS | F40: =SUMIF(CONSLD!F:F,D40,CONSLD!D:D)-SUMIF(CONSLD!F:F,D40,CONSLD!C:C) -> 0
A41: 36 | B41: DESVALORIZACIÓN DE ACTIVO INMOVILIZADO | C41: =SUMIF(CONSLD!F:F,A41,CONSLD!C:C)-SUMIF(CONSLD!F:F,A41,CONSLD!D:D) -> 0 | D41: 59 | E41: RESULTADOS ACUMULADOS | F41: =SUMIF(CONSLD!F:F,D41,CONSLD!D:D)-SUMIF(CONSLD!F:F,D41,CONSLD!C:C) -> 0
A42: 37 | B42: ACTIVO DIFERIDO | C42: =SUMIF(CONSLD!F:F,A42,CONSLD!C:C)-SUMIF(CONSLD!F:F,A42,CONSLD!D:D) -> 0 | E42: RESULTADO DEL EJERCICIO | F42: =ER!C27 -> 0
A43: 38 | B43: OTROS ACTIVOS | C43: =SUMIF(CONSLD!F:F,A43,CONSLD!C:C)-SUMIF(CONSLD!F:F,A43,CONSLD!D:D) -> 0 | E43: Total Patrimonio Neto | F43: =SUM(F35:F42) -> 0
A44: 39 | B44: DEPRECIACIÓN, AMORTIZACIÓN Y AGOTAMIENTO ACUMULADOS | C44: =SUMIF(CONSLD!F:F,A44,CONSLD!C:C)-SUMIF(CONSLD!F:F,A44,CONSLD!D:D) -> 0
B45: Total Activo No Corriente | C45: =SUM(C35:C44) -> 0
B47: TOTAL ACTIVO | C47: =C32+C45 -> 0 | E47: TOTAL PASIVO Y PATRIMONIO | F47: =F29+F43 -> 0

Sheet ER
A1: =IF(cia>"",cia,"") -> SPORT KENNEX S.A.C.
A2: =CONCATENATE("RUC: ",ruc) -> RUC: 20123456789
A3: ESTADO DE GANANCIAS Y PERDIDAS POR FUNCIÓN
A4: =CONCATENATE("A ",BG!F1," DEL ",año) -> A DEL 2016
A5: (Expresado en Soles)
A7: COD | B7: CUENTA | C7: S/.
A8: 70 | B8: VENTAS | C8: =SUMIF(CONSLD!F:F,A8,CONSLD!D:D)-SUMIF(CONSLD!F:F,A8,CONSLD!C:C) -> 0
A9: 74 | B9: DESCUENTOS, REBAJAS Y BONIFICACIONES CONCEDIDOS | C9: =(SUMIF(CONSLD!F:F,A9,CONSLD!C:C)-SUMIF(CONSLD!F:F,A9,CONSLD!D:D))*-1 -> 0
B10: VENTAS NETAS | C10: =SUM(C8:C9) -> 0
A12: 69 | B12: COSTO DE VENTAS | C12: =(SUMIF(CONSLD!F:F,A12,CONSLD!C:C)-SUMIF(CONSLD!F:F,A12,CONSLD!D:D))*-1 -> 0
B13: UTILIDAD BRUTA | C13: =SUM(C10:C12) -> 0
B15: Gastos de Operación
A16: 91 | B16: COSTO DEL SERVICIO | C16: =(SUMIF(CONSLD!F:F,A16,CONSLD!C:C)-SUMIF(CONSLD!F:F,A16,CONSLD!D:D))*-1 -> 0
A17: 94 | B17: GASTOS DE ADMINISTRACIÓN | C17: =(SUMIF(CONSLD!F:F,A17,CONSLD!C:C)-SUMIF(CONSLD!F:F,A17,CONSLD!D:D))*-1 -> 0
A18: 95 | B18: GASTOS DE VENTA | C18: =(SUMIF(CONSLD!F:F,A18,CONSLD!C:C)-SUMIF(CONSLD!F:F,A18,CONSLD!D:D))*-1 -> 0
A19: 97 | B19: GASTOS FINANCIEROS | C19: =(SUMIF(CONSLD!F:F,A19,CONSLD!C:C)-SUMIF(CONSLD!F:F,A19,CONSLD!D:D))*-1 -> 0
B20: UTILIDAD DE OPERACIÓN | C20: =SUM(C13:C19) -> 0
A22: 73 | B22: DESCUENTOS, REBAJAS Y BONIFICACIONES OBTENIDOS | C22: =SUMIF(CONSLD!F:F,A22,CONSLD!D:D)-SUMIF(CONSLD!F:F,A22,CONSLD!C:C) -> 0
A23: 75 | B23: OTROS INGRESOS DE GESTIÓN | C23: =SUMIF(CONSLD!F:F,A23,CONSLD!D:D)-SUMIF(CONSLD!F:F,A23,CONSLD!C:C) -> 0
A24: 76 | B24: GANANCIA POR MEDICIÓN DE ACTIVOS NO FINANCIEROS AL VALOR RAZONABLE | C24: =SUMIF(CONSLD!F:F,A24,CONSLD!D:D)-SUMIF(CONSLD!F:F,A24,CONSLD!C:C) -> 0
A25: 77 | B25: INGRESOS FINANCIEROS | C25: =SUMIF(CONSLD!F:F,A25,CONSLD!D:D)-SUMIF(CONSLD!F:F,A25,CONSLD!C:C) -> 0
A26: 66 | B26: PÉRDIDA POR MEDICIÓN DE ACTIVOS NO FINANCIEROS AL VALOR RAZONABLE | C26: =(SUMIF(CONSLD!F:F,A26,CONSLD!C:C)-SUMIF(CONSLD!F:F,A26,CONSLD!D:D))*-1 -> 0
B27: UTILIDAD ANTES DE PARTICIPACIONES E IMPUESTOS | C27: =SUM(C20:C26) -> 0
A30: ESTADO DE GANANCIAS Y PERDIDAS POR NATURALEZA
A31: =CONCATENATE("A ",BG!F1," DEL ",año) -> A DEL 2016
A32: (Expresado en Soles)
A34: COD | B34: CUENTA | C34: S/.
A35: 70 | B35: VENTAS | C35: =SUMIF(CONSLD!F:F,A35,CONSLD!D:D)-SUMIF(CONSLD!F:F,A35,CONSLD!C:C) -> 0
A36: 74 | B36: DESCUENTOS, REBAJAS Y BONIFICACIONES CONCEDIDOS | C36: =(SUMIF(CONSLD!F:F,A36,CONSLD!C:C)-SUMIF(CONSLD!F:F,A36,CONSLD!D:D))*-1 -> 0
B37: MARGEN COMERCIAL | C37: =SUM(C35:C36) -> 0
A39: 71 | B39: VARIACIÓN DE LA PRODUCCIÓN ALMACENADA | C39: =SUMIF(CONSLD!F:F,A39,CONSLD!D:D)-SUMIF(CONSLD!F:F,A39,CONSLD!C:C) -> 0
A40: 72 | B40: PRODUCCIÓN DE ACTIVO INMOVILIZADO | C40: =SUMIF(CONSLD!F:F,A40,CONSLD!D:D)-SUMIF(CONSLD!F:F,A40,CONSLD!C:C) -> 0
B41: PRODUCCIÓN DEL EJERCICIO | C41: =SUM(C37:C40) -> 0
A43: 60 | B43: COMPRAS | C43: =(SUMIF(CONSLD!F:F,A43,CONSLD!C:C)-SUMIF(CONSLD!F:F,A43,CONSLD!D:D))*-1 -> 0
A44: 61 | B44: VARIACIÓN DE EXISTENCIAS | C44: =(SUMIF(CONSLD!F:F,A44,CONSLD!C:C)-SUMIF(CONSLD!F:F,A44,CONSLD!D:D))*-1 -> 0
A45: 63 | B45: GASTOS DE SERVICIOS PRESTADOS POR TERCEROS | C45: =(SUMIF(CONSLD!F:F,A45,CONSLD!C:C)-SUMIF(CONSLD!F:F,A45,CONSLD!D:D))*-1 -> 0
B46: VALOR AGREGADO | C46: =SUM(C41:C45) -> 0
A48: 62 | B48: GASTOS DE PERSONAL, DIRECTORES Y GERENTES | C48: =(SUMIF(CONSLD!F:F,A48,CONSLD!C:C)-SUMIF(CONSLD!F:F,A48,CONSLD!D:D))*-1 -> 0
A49: 64 | B49: GASTOS POR TRIBUTOS | C49: =(SUMIF(CONSLD!F:F,A49,CONSLD!C:C)-SUMIF(CONSLD!F:F,A49,CONSLD!D:D))*-1 -> 0
B50: EXCEDENTE BRUTO DE EXPLOTACIÓN | C50: =SUM(C46:C49) -> 0
A52: 65 | B52: OTROS GASTOS DE GESTIÓN | C52: =(SUMIF(CONSLD!F:F,A52,CONSLD!C:C)-SUMIF(CONSLD!F:F,A52,CONSLD!D:D))*-1 -> 0
A53: 68 | B53: VALUACIÓN Y DETERIORO DE ACTIVOS Y PROVISIONES | C53: =(SUMIF(CONSLD!F:F,A53,CONSLD!C:C)-SUMIF(CONSLD!F:F,A53,CONSLD!D:D))*-1 -> 0
A54: 73 | B54: DESCUENTOS, REBAJAS Y BONIFICACIONES OBTENIDOS | C54: =SUMIF(CONSLD!F:F,A54,CONSLD!D:D)-SUMIF(CONSLD!F:F,A54,CONSLD!C:C) -> 0
A55: 75 | B55: OTROS INGRESOS DE GESTIÓN | C55: =SUMIF(CONSLD!F:F,A55,CONSLD!D:D)-SUMIF(CONSLD!F:F,A55,CONSLD!C:C) -> 0
A56: 78 | B56: CARGAS CUBIERTAS POR PROVISIONES | C56: =SUMIF(CONSLD!F:F,A56,CONSLD!D:D)-SUMIF(CONSLD!F:F,A56,CONSLD!C:C) -> 0
B57: RESULTADO DE EXPLOTACION | C57: =SUM(C50:C56) -> 0
A59: 76 | B59: GANANCIA POR MEDICIÓN DE ACTIVOS NO FINANCIEROS AL VALOR RAZONABLE | C59: =SUMIF(CONSLD!F:F,A59,CONSLD!D:D)-SUMIF(CONSLD!F:F,A59,CONSLD!C:C) -> 0
A60: 77 | B60: INGRESOS FINANCIEROS | C60: =SUMIF(CONSLD!F:F,A60,CONSLD!D:D)-SUMIF(CONSLD!F:F,A60,CONSLD!C:C) -> 0
A61: 66 | B61: PÉRDIDA POR MEDICIÓN DE ACTIVOS NO FINANCIEROS AL VALOR RAZONABLE | C61: =(SUMIF(CONSLD!F:F,A61,CONSLD!C:C)-SUMIF(CONSLD!F:F,A61,CONSLD!D:D))*-1 -> 0
A62: 67 | B62: GASTOS FINANCIEROS | C62: =(SUMIF(CONSLD!F:F,A62,CONSLD!C:C)-SUMIF(CONSLD!F:F,A62,CONSLD!D:D))*-1 -> 0
B63: UTILIDAD ANTES DE PARTICIPACIONES E IMPUESTOS | C63: =SUM(C57:C62) -> 0

Sheet AC
A1: =CONCATENATE("ANÁLISIS DE CUENTA - ",año) -> ANÁLISIS DE CUENTA - 2016 | L1: ENERO | M1: AÑO | N1: MES | O1: CUENTA | P1: AÑO | Q1: MES | R1: MES | S1: CUENTA
A2: =CONCATENATE("RUC : ",ruc) -> RUC : 20123456789 | C2: =IF(cia>"",cia,"") -> SPORT KENNEX S.A.C. | I2: =CONCATENATE("PERIODO DE : ",mesi," A : ",mesf) -> PERIODO DE : ENERO A : ENERO | L2: ENERO | M2: =IF(año>0,año,"") -> 2016 | N2: <1 | O2: =IF(B3>"",B3,IF(B3>0,B3,"")) -> 104100 | P2: =IF(año>0,año,"") -> 2016 | Q2: >0 | R2: <2 | S2: =IF(B3>"",B3,IF(B3>0,B3,"")) -> 104100
A3: CUENTA: | B3: 104100 | C3: =IF(ISERROR(VLOOKUP(B3,TPLANC!B:C,1,0))=FALSE,VLOOKUP(B3,TPLANC!B:C,2,0),"") -> Cuentas corrientes operativas | G3: SALDO INICIAL | H3: =IF(SUM(U:U)>SUM(V:V),SUM(U:U)-SUM(V:V),0) -> 12500 | I3: =IF(SUM(V:V)>SUM(U:U),SUM(V:V)-SUM(U:U),0) -> 0
A5: FECHA | B5: NÚMERO DE | C5: ENTIDAD | D5: NÚMERO DEL DOCUMENTO | G5: DESCRIPCION O GLOSA DE LA OPERACIÓN | H5: SALDOS Y MOVIMIENTOS | J5: MES
A6: EMISIÓN | B6: VOUCHER | D6: TIPO | E6: SERIE | F6: NUMERO | H6: DEBE | I6: HABER
A7: FE | B7: NREGISTRO | C7: NUMDOC | D7: CDP | E7: SERIE | F7: NUM_I_Y_F | G7: GLOSA | H7: DEBE | I7: HABER | J7: MES | U7: DEBE | V7: HABER
A8: 2016-01-05 | B8: 201601050002 | C8: 20123456789 | D8: 01 | E8: 1 | F8: 2 | G8: CANCELADO CON TRANSFERENCIA | H8: 4130 | I8: 0 | J8: 1 | U8: 12500 | V8: 0
A9: 2016-01-15 | B9: 201601050008 | G9: TRANSFERENCIA DE FONDOS ENTRE CTAS. CTES | H9: 500 | I9: 0 | J9: 1
A10: 2016-01-15 | B10: 201601050008 | G10: TRANSFERENCIA DE FONDOS ENTRE CTAS. CTES | H10: 0 | I10: 500 | J10: 1
A11: 2016-01-18 | B11: 201601050003 | C11: 20123456789 | D11: 01 | E11: 1 | F11: 67 | G11: DEPOSITO EN CTA CTE | H11: 3500 | I11: 0 | J11: 1
A12: 2016-01-18 | B12: 201601050004 | C12: 20784512361 | D12: 01 | E12: 5 | F12: 157 | G12: PAGO CON TRANSFERENCIA A CTA CTE | H12: 0 | I12: 1180 | J12: 1
A13: 2016-01-18 | B13: 201601050005 | D13: 00 | F13: 201512 | G13: PAGO DE RENTA DE 3RA 201512 | H13: 0 | I13: 165 | J13: 1
A14: 2016-01-31 | B14: 201601050006 | G14: PAGO DE MANTENIMIENTO DE CTA CTE | H14: 0 | I14: 15 | J14: 1
G15: SUB TOTALES | H15: 20630 | I15: 1860
G16: SALDO FINAL | H16: =IF(I15>H15,I15-H15,0) -> 0 | I16: =IF(H15>I15,H15-I15,0) -> 18770
G17: TOTALES | H17: 20630 | I17: 20630

Sheet CONSLD
A1: AÑO | B1: MES | C1: CTA2D | G1: AÑO | H1: MES | I1: X | AF1: 6D
A2: =IF(año>0,año,0) -> 2016 | B2: <4 | C2: >"" | G2: =IF(año>0,año,0) -> 2016 | H2: 4 | I2: NREGISTRO | J2: FE | K2: GLOSA | L2: LIBRO | M2: CUO | N2: CDP | O2: SERIE | P2: NUM_I_Y_F | Q2: CUENTA | R2: NOMBRECTA | S2: DEBE | T2: HABER | U2: NUMDOC | V2: IMPORT_LDS | W2: ELEMENTO | X2: CUENTA2 | Y2: CTA2D
A3: ELEMENTO | B3: CUENTA2 | C3: DEBE | D3: HABER | E3: IMPORT_LDS | F3: CTA2D | G3: NOMBRECTA | AA3: 1 | AB3: 101000 | AC3: 101000 | AG3: 1 | AH3: 101000 | AI3: Caja | AL3: 1 | AM3: 0
G4: Caja | AA4: 1 | AB4: 104100 | AC4: 121200 | AG4: 1 | AH4: 104100 | AI4: Cuentas corrientes operativas | AL4: 1 | AM4: 0
G5: Cuentas corrientes operativas | AA5: 1 | AB5: 121200 | AC5: 211000 | AG5: 1 | AH5: 121200 | AI5: Emitidas en cartera | AL5: 1 | AM5: 0
G6: Emitidas en cartera | AA6: 1 | AB6: 123200 | AC6: 231000 | AG6: 1 | AH6: 123200 | AI6: En cobranza | AL6: 1 | AM6: 0
G7: Emitidas en cartera | AA7: 1 | AB7: 141100 | AC7: 241000 | AG7: 1 | AH7: 141100 | AI7: Préstamos | AL7: 1 | AM7: 0
G8: Préstamos | AA8: 1 | AB8: 201110 | AC8: 251000 | AG8: 1 | AH8: 201110 | AI8: Costo | AL8: 1 | AM8: 0
G9: Costo | AA9: 1 | AB9: 335110 | AC9: 252100 | AG9: 1 | AH9: 335110 | AI9: Costo | AL9: 1 | AM9: 0
G10: Costo | AA10: 1 | AB10: 335210 | AC10: 261000 | AG10: 1 | AH10: 335210 | AI10: Costo | AL10: 1 | AM10: 0
G11: Costo | AA11: 1 | AB11: 391340 | AC11: 333110 | AG11: 1 | AH11: 391340 | AI11: Muebles y enseres | AL11: 1 | AM11: 0
G12: Muebles y enseres | AA12: 2 | AB12: 401110 | AC12: 335110 | AG12: 1 | AH12: 401110 | AI12: IGV - Cuenta propia | AL12: 1 | AM12: 0
G13: Emitidas | AA13: 2 | AB13: 403100 | AC13: 391320 | AG13: 1 | AH13: 403100 | AI13: ESSALUD | AL13: 1 | AM13: 0
G14: Emitidas | AA14: 2 | AB14: 403200 | AC14: 391340 | AG14: 1 | AH14: 403200 | AI14: ONP | AL14: 1 | AM14: 0
G15: Acciones | AA15: 2 | AB15: 411100 | AC15: 401110 | AG15: 1 | AH15: 411100 | AI15: Sueldos y salarios por pagar | AL15: 1 | AM15: 0
G16: Utilidades acumuladas | AA16: 2 | AB16: 421200 | AC16: 401710 | AG16: 1 | AH16: 421200 | AI16: Emitidas | AL16: 1 | AM16: 0
AA17: 3 | AB17: 501100 | AC17: 421200 | AG17: 1 | AH17: 501100 | AI17: Acciones | AL17: 1 | AM17: 0
G18: Emitidas en cartera | AA18: 3 | AB18: 591100 | AC18: 441100 | AG18: 1 | AH18: 591100 | AI18: Utilidades acumuladas | AL18: 1 | AM18: 0
G19: IGV - Cuenta propia | AA19: 4 | AB19: 601100 | AC19: 465400 | AG19: 3 | AH19: 601100 | AI19: Mercaderías manufacturadas - Costo | AL19: 3 | AM19: 0
G20: Terceros | AA20: 4 | AB20: 611100 | AC20: 501100 | AG20: 3 | AH20: 611100 | AI20: Mercaderías manufacturadas | AL20: 3 | AM20: 0
AA21: 4 | AB21: 621120 | AC21: 591100 | AG21: 3 | AH21: 621120 | AI21: Sueldos y salarios - ADMI. | AL21: 3 | AM21: 0
G22: Mercaderías manufacturadas - Costo | AA22: 4 | AB22: 627120 | AC22: 592100 | AG22: 3 | AH22: 627120 | AI22: Régimen de prestaciones de salud - ADMI. | AL22: 3 | AM22: 0
G23: IGV - Cuenta propia | AA23: 4 | AB23: 636120 | AC23: 602100 | AG23: 3 | AH23: 636120 | AI23: Energía eléctrica - ADMI. | AL23: 3 | AM23: 0
G24: Emitidas | AA24: 4 | AB24: 636420 | AC24: 603100 | AG24: 3 | AH24: 636420 | AI24: Teléfono - ADMI. | AL24: 3 | AM24: 0
G25: Costo | AA25: 4 | AB25: 681442 | AC25: 603200 | AG25: 3 | AH25: 681442 | AI25: Muebles y enseres - ADMI. | AL25: 3 | AM25: 0
G26: Mercaderías manufacturadas | AA26: 4 | AB26: 691110 | AC26: 604100 | AG26: 2 | AH26: 691110 | AI26: Terceros | AL26: 2 | AM26: 0
AA27: 5 | AB27: 701110 | AC27: 612100 | AG27: 4 | AH27: 701110 | AI27: Terceros | AL27: 4 | AM27: 0
G28: Cuentas corrientes operativas | AA28: 5 | AB28: 772200 | AC28: 613100 | AG28: 4 | AH28: 772200 | AI28: Cuentas por cobrar comerciales | AL28: 4 | AM28: 0
G29: Emitidas en cartera | AA29: 5 | AB29: 791000 | AC29: 613200 | AG29: 0 | AH29: 791000 | AI29: Cargas imputables a cuentas de costos y gastos | AL29: 0 | AM29: 0
AA30: 7 | AB30: 946210 | AC30: 614100 | AG30: 2 | AH30: 946210 | AI30: Remuneraciones | AL30: 2 | AM30: 0
G31: Cuentas corrientes operativas | AA31: 7 | AB31: 946270 | AC31: 656000 | AG31: 2 | AH31: 946270 | AI31: Seguridad, previsión social y otras contribuciones | AL31: 2 | AM31: 0
G32: Emitidas en cartera | AA32: 7 | AB32: 946360 | AC32: 659220 | AG32: 2 | AH32: 946360 | AI32: Servicios básicos | AL32: 2 | AM32: 0
AA33: 7 | AB33: 946810 | AC33: 681420 | AG33: 2 | AH33: 946810 | AI33: Depreciación | AL33: 2 | AM33: 0
G34: Emitidas en cartera | AC34: 681440 | AG34: 0 | AL34: 0 | AM34: 0
G35: IGV - Cuenta propia | AC35: 692110
G36: Terceros | AC36: 702110
AC37: 711100
G38: Cuentas corrientes operativas | AC38: 791000
G39: Cuentas corrientes operativas | AC39: 906120
AC40: 906130
G41: Emitidas | AC41: 906140
G42: Cuentas corrientes operativas | AC42: 906560
AC43: 906810
G44: Emitidas | AC44: 946590
G45: Caja
G47: Teléfono - ADMI.
G48: Teléfono - ADMI.
G49: IGV - Cuenta propia
G50: Emitidas
G51: Servicios básicos
G52: Cargas imputables a cuentas de costos y gastos
G53: Servicios básicos
G54: Cargas imputables a cuentas de costos y gastos
G56: Mercaderías manufacturadas - Costo
G57: IGV - Cuenta propia
G58: Emitidas
G59: Costo
G60: Mercaderías manufacturadas
G62: Emitidas
G63: Caja
G65: Energía eléctrica - ADMI.
G66: IGV - Cuenta propia
G67: Emitidas
G68: Servicios básicos
G69: Cargas imputables a cuentas de costos y gastos
G71: Emitidas
G72: Cuentas corrientes operativas
G74: Muebles y enseres - ADMI.
G75: Muebles y enseres
G76: Depreciación
G77: Cargas imputables a cuentas de costos y gastos
G79: Sueldos y salarios - ADMI.
G80: Régimen de prestaciones de salud - ADMI.
G81: ESSALUD
G82: ONP
G83: Sueldos y salarios por pagar
G84: Remuneraciones
G85: Cargas imputables a cuentas de costos y gastos
G86: Seguridad, previsión social y otras contribuciones
G87: Cargas imputables a cuentas de costos y gastos
G89: Sueldos y salarios por pagar
G90: Cuentas corrientes operativas
G92: En cobranza
G93: En cobranza
G94: Cuentas por cobrar comerciales
G95: Emitidas en cartera
G97: Terceros
G98: Costo
G99: Mercaderías manufacturadas
G100: Cargas imputables a cuentas de costos y gastos

Sheet CONSLM
A1: CUENTA | E1: CUENTA
A2: 101000 | D2: CUENTA | E2: 946590 | F2: =IF(K2>"",K2,IF(L2>"",L2,"")) -> Otros gastos de gestión | K2: =IF(ISERROR(VLOOKUP(VALUE(E2),TPLANC!B:C,1,0))=FALSE,VLOOKUP(VALUE(E2),TPLANC!B:C,2,0),"") -> Otros gastos de gestión | L2: =IF(ISERROR(VLOOKUP(E2,TPLANC!B:C,1,0))=FALSE,VLOOKUP(E2,TPLANC!B:C,2,0),"") -> 
A3: 121200 | D3: - | F3: SALDO INICIAL | G3: =IF(SUMIF(CONSLD!B:B,E2,CONSLD!C:C)>SUMIF(CONSLD!B:B,E2,CONSLD!D:D),SUMIF(CONSLD!B:B,E2,CONSLD!C:C)-SUMIF(CONSLD!B:B,E2,CONSLD!D:D),0) -> 0 | H3: =IF(SUMIF(CONSLD!B:B,E2,CONSLD!D:D)>SUMIF(CONSLD!B:B,E2,CONSLD!C:C),SUMIF(CONSLD!B:B,E2,CONSLD!D:D)-SUMIF(CONSLD!B:B,E2,CONSLD!C:C),0) -> 0
A4: 211000 | D4: FE | E4: CUO | F4: GLOSA | G4: DEBE | H4: HABER | I4: NUMDOC | J4: CDP | K4: SERIE | L4: NUM_I_Y_F
A5: 231000 | D5: - | F5: SUBTOTALES | G5: 178.31 | H5: 0
A6: 241000 | D6: - | F6: SALDO FINAL | G6: =IF(H5>G5,H5-G5,0) -> 0 | H6: =IF(G5>H5,G5-H5,0) -> 178.31
A7: 251000 | D7: - | F7: TOTALES | G7: 178.31 | H7: 178.31
A8: 252100 | D8: -
A9: 261000
A10: 333110
A11: 335110
A12: 391320
A13: 391340
A14: 401110
A15: 401710
A16: 421200
A17: 441100
A18: 465400
A19: 501100
A20: 591100
A21: 592100
A22: 602100
A23: 603100
A24: 603200
A25: 604100
A26: 612100
A27: 613100
A28: 613200
A29: 614100
A30: 656000
A31: 659220
A32: 681420
A33: 681440
A34: 692110
A35: 702110
A36: 711100
A37: 791000
A38: 906120
A39: 906130
A40: 906140
A41: 906560
A42: 906810
A43: 946590

Sheet CONSLC
A1: CAJA | C1: - | D1: CTABANCARIA | L1: =IF(ISERROR(VLOOKUP(VALUE(D2),CAJASCIA!A:C,1,0))=FALSE,VLOOKUP(VALUE(D2),CAJASCIA!A:C,3,0),"") -> SOL | M1: =IF(ISERROR(VLOOKUP(D2,CAJASCIA!A:C,1,0))=FALSE,VLOOKUP(D2,CAJASCIA!A:C,3,0),"") -> SOL
A2: 1 | C2: CAJA | D2: 1 | E2: =IF(L2>"",L2,IF(M2>"",M2,"")) -> CAJA PRINCIPAL | I2: =IF(L1>"",CONCATENATE("MONEDA: ",L1),IF(M1>"",CONCATENATE("MONEDA: ",M1),"")) -> MONEDA: SOL | L2: =IF(ISERROR(VLOOKUP(VALUE(D2),CAJASCIA!A:C,1,0))=FALSE,VLOOKUP(VALUE(D2),CAJASCIA!A:C,2,0),"") -> CAJA PRINCIPAL | M2: =IF(ISERROR(VLOOKUP(D2,CAJASCIA!A:C,1,0))=FALSE,VLOOKUP(D2,CAJASCIA!A:C,2,0),"") -> CAJA PRINCIPAL | O2: 1
C3: - | G3: SALDO INICIAL | H3: =IF(SUMIF(DATACJBCO!B:B,D2,DATACJBCO!H:H)>SUMIF(DATACJBCO!B:B,D2,DATACJBCO!I:I),SUMIF(DATACJBCO!B:B,D2,DATACJBCO!H:H)-SUMIF(DATACJBCO!B:B,D2,DATACJBCO!I:I),0) -> 1500 | I3: =IF(SUMIF(DATACJBCO!B:B,D2,DATACJBCO!I:I)>SUMIF(DATACJBCO!B:B,D2,DATACJBCO!H:H),SUMIF(DATACJBCO!B:B,D2,DATACJBCO!I:I)-SUMIF(DATACJBCO!B:B,D2,DATACJBCO!H:H),0) -> 0
C4: CUO | D4: FE | E4: GLOSA | F4: CUENTA | G4: NOMBRECTA | H4: DEBE_CAJ_BCOS | I4: HABER_CAJ_BCOS | J4: NUMDOC | K4: CDP | L4: SERIE | M4: NUM_I_Y_F
C5: 201604040001 | D5: 2016-04-23 | E5: PAGO CON CAJA | F5: 421200 | G5: Emitidas | H5: 0 | I5: 123 | J5: 20100034021 | K5: 14 | L5: 4 | M5: 913231319
C6: 201604040002 | D6: 2016-04-24 | E6: PAGO DE LUZ CON CAJA | F6: 421200 | G6: Emitidas | H6: 0 | I6: 236 | J6: 20331189808 | K6: 14 | M6: 18422816
C7: - | G7: SUBTOTALES | H7: 1500 | I7: 359
C8: - | G8: SALDO FINAL | H8: =IF(I7>H7,I7-H7,0) -> 0 | I8: =IF(H7>I7,H7-I7,0) -> 1141
C9: - | G9: TOTALES | H9: 1500 | I9: 1500
C10: -

Sheet CONSLB
A1: BANCO | D1: CTABANCARIA | L1: =IF(ISERROR(VLOOKUP(VALUE(D2),BCOSCIA!A:D,1,0))=FALSE,VLOOKUP(VALUE(D2),BCOSCIA!A:D,3,0),"") ->  | M1: =IF(ISERROR(VLOOKUP(D2,BCOSCIA!A:D,1,0))=FALSE,VLOOKUP(D2,BCOSCIA!A:D,3,0),"") -> 
A2: 11-0057-02-478596 | C2: BANCO | D2: 194–2233665–0–71 | L2: =IF(ISERROR(VLOOKUP(VALUE(D2),BCOSCIA!A:D,1,0))=FALSE,VLOOKUP(VALUE(D2),BCOSCIA!A:D,4,0),"") ->  | M2: =IF(ISERROR(VLOOKUP(D2,BCOSCIA!A:D,1,0))=FALSE,VLOOKUP(D2,BCOSCIA!A:D,4,0),"") -> 
A3: 194–2233665–0–71 | C3: =IF(AND(L1>0,M1=""),CONCATENATE("ENTIDAD FINANCIERA: ",L1," - ",L2),IF(AND(M1>0,L1=""),CONCATENATE("ENTIDAD FINANCIERA: ",M1," - ",M2),"")) -> ENTIDAD FINANCIERA: - | L3: =IF(ISERROR(VLOOKUP(VALUE(D2),BCOSCIA!A:D,1,0))=FALSE,VLOOKUP(VALUE(D2),BCOSCIA!A:D,2,0),"") ->  | M3: =IF(ISERROR(VLOOKUP(D2,BCOSCIA!A:D,1,0))=FALSE,VLOOKUP(D2,BCOSCIA!A:D,2,0),"") -> 
C4: =CONCATENATE("Nº CUENTA CORRIENTE: ",D2) -> Nº CUENTA CORRIENTE: 194–2233665–0–71 | H4: =IF(L3>"",CONCATENATE("MONEDA: ",L3),IF(M3>"",CONCATENATE("MONEDA: ",M3),"")) -> 
C5: - | J5: SALDO INICIAL | K5: =IF(SUMIF(DATACJBCO!B:B,D2,DATACJBCO!H:H)>SUMIF(DATACJBCO!B:B,D2,DATACJBCO!I:I),SUMIF(DATACJBCO!B:B,D2,DATACJBCO!H:H)-SUMIF(DATACJBCO!B:B,D2,DATACJBCO!I:I),0) -> 18250 | L5: =IF(SUMIF(DATACJBCO!B:B,D2,DATACJBCO!I:I)>SUMIF(DATACJBCO!B:B,D2,DATACJBCO!H:H),SUMIF(DATACJBCO!B:B,D2,DATACJBCO!I:I)-SUMIF(DATACJBCO!B:B,D2,DATACJBCO!H:H),0) -> 0
C6: CUO | D6: FE | E6: MEDIO_PAGO | F6: GLOSA | G6: NOMBRE | H6: NUM_TRANSAC_BCOS | I6: CUENTA | J6: NOMBRECTA | K6: DEBE_CAJ_BCOS | L6: HABER_CAJ_BCOS | M6: NUMDOC | N6: CDP | O6: SERIE | P6: NUM_I_Y_F
C7: 201604050001 | D7: 2016-04-15 | E7: 001 | F7: COBRO CON DEPÓSITO EN CUENTA | G7: EL EXCLUSIVO SAC | H7: 4678513 | I7: 121200 | J7: Emitidas en cartera | K7: 3750 | L7: 0 | M7: 20987654321 | N7: 01 | O7: 1 | P7: 1
C8: 201604050002 | D8: 2016-04-15 | E8: 003 | F8: COBRO DE FACTURA CON TRANSFERENCIA A CTA. CTE | G8: FRANCA SAC | H8: 45879 | I8: 121200 | J8: Emitidas en cartera | K8: 11800 | L8: 0 | M8: 20557788995 | N8: 01 | O8: 1 | P8: 4
C9: 201604050003 | D9: 2016-04-16 | E9: 003 | F9: TRANSFERENCIA DE EFECTIVO ENTRE CTAS. CTES. | H9: 1578965 | I9: 104100 | J9: Cuentas corrientes operativas | K9: 0 | L9: 2000 | N9: 00 | P9: 1578965
C10: 201604050004 | D10: 2016-04-22 | E10: 003 | F10: PAGO CON TRANSFERENCIA A CTA. CTE | G10: CRISTAL SAC | H10: 56322 | I10: 421200 | J10: Emitidas | K10: 0 | L10: 4720 | M10: 20564595756 | N10: 01 | O10: E010 | P10: 4587
C11: 201604050005 | D11: 2016-04-30 | E11: 003 | F11: PAGO DE FACTURA CON TRANSFERENCIA DE CTA. CTE. | G11: CATS SAC | H11: 265478 | I11: 421200 | J11: Emitidas | K11: 0 | L11: 5680 | M11: 20753951852 | N11: 01 | O11: 5 | P11: 54792
C12: 201604050006 | D12: 2016-04-30 | E12: 003 | F12: PAGO DE PLANILLA | H12: 6325478 | I12: 411100 | J12: Sueldos y salarios por pagar | K12: 0 | L12: 4350 | N12: 00 | P12: 6325478
C13: - | J13: SUBTOTALES | K13: 33800 | L13: 16750
C14: - | J14: SALDO FINAL | K14: =IF(L13>K13,L13-K13,0) -> 0 | L14: =IF(K13>L13,K13-L13,0) -> 17050
C15: - | J15: TOTALES | K15: 33800 | L15: 33800
C16: -

Sheet DATACJBCO
A1: AÑO | B1: MES | C1: FILTRO_CAJ_BCOS | K1: AÑO | L1: MES | M1: FILTRO_CAJ_BCOS
A2: =IF(año>0,año,0) -> 2016 | B2: <3 | C2: 1 | K2: =IF(año>0,año,0) -> 2016 | L2: 3 | M2: 1 | N2: CUO | O2: MES | P2: CUENTA | Q2: NOMBRECTA | R2: DEBE | S2: HABER | T2: DEBE_CAJ_BCOS | U2: HABER_CAJ_BCOS | V2: FILTRO_CAJ_BCOS | W2: CTABANCARIA | X2: FE | Y2: GLOSA | Z2: CDP | AA2: SERIE | AB2: NUM_I_Y_F | AC2: ENTIFINANC | AD2: MEDIO_PAGO | AE2: NOMBRE | AF2: NUM_TRANSAC_BCOS | AG2: NUMDOC
A3: CUO | B3: CTABANCARIA | C3: MES | D3: CUENTA | E3: NOMBRECTA | F3: DEBE | G3: HABER | H3: DEBE_CAJ_BCOS | I3: HABER_CAJ_BCOS | N3: 201604050001 | O3: 4 | P3: 121200 | Q3: Emitidas en cartera | R3: 0 | S3: 3750 | T3: 3750 | U3: 0 | V3: 1 | W3: 194–2233665–0–71 | X3: 2016-04-15 | Y3: COBRO CON DEPÓSITO EN CUENTA | Z3: 01 | AA3: 1 | AB3: 1 | AC3: 2 | AD3: 001 | AE3: EL EXCLUSIVO SAC | AF3: 4678513 | AG3: 20987654321
A4: 201600010001 | B4: 1 | C4: 0 | D4: 101000 | E4: Caja | F4: 1500 | G4: 0 | H4: 1500 | I4: 0 | N4: 201604050002 | O4: 4 | P4: 121200 | Q4: Emitidas en cartera | R4: 0 | S4: 11800 | T4: 11800 | U4: 0 | V4: 1 | W4: 194–2233665–0–71 | X4: 2016-04-15 | Y4: COBRO DE FACTURA CON TRANSFERENCIA A CTA. CTE | Z4: 01 | AA4: 1 | AB4: 4 | AC4: 2 | AD4: 003 | AE4: FRANCA SAC | AF4: 45879 | AG4: 20557788995
A5: 201600010001 | B5: 194–2233665–0–71 | C5: 0 | D5: 104100 | E5: Cuentas corrientes operativas | F5: 18250 | G5: 0 | H5: 18250 | I5: 0 | N5: 201604050003 | O5: 4 | P5: 104100 | Q5: Cuentas corrientes operativas | R5: 2000 | S5: 0 | T5: 2000 | U5: 0 | V5: 1 | W5: 11-0057-02-478596 | X5: 2016-04-16 | Y5: TRANSFERENCIA DE EFECTIVO ENTRE CTAS. CTES. | Z5: 00 | AB5: 1578965 | AC5: 11 | AD5: 003 | AF5: 1578965
N6: 201604050003 | O6: 4 | P6: 104100 | Q6: Cuentas corrientes operativas | R6: 0 | S6: 2000 | T6: 0 | U6: 2000 | V6: 1 | W6: 194–2233665–0–71 | X6: 2016-04-16 | Y6: TRANSFERENCIA DE EFECTIVO ENTRE CTAS. CTES. | Z6: 00 | AB6: 1578965 | AC6: 2 | AD6: 003 | AF6: 1578965
N7: 201604050004 | O7: 4 | P7: 421200 | Q7: Emitidas | R7: 4720 | S7: 0 | T7: 0 | U7: 4720 | V7: 1 | W7: 194–2233665–0–71 | X7: 2016-04-22 | Y7: PAGO CON TRANSFERENCIA A CTA. CTE | Z7: 01 | AA7: E010 | AB7: 4587 | AC7: 2 | AD7: 003 | AE7: CRISTAL SAC | AF7: 56322 | AG7: 20564595756
N8: 201604040001 | O8: 4 | P8: 421200 | Q8: Emitidas | R8: 123 | S8: 0 | T8: 0 | U8: 123 | V8: 1 | W8: 1 | X8: 2016-04-23 | Y8: PAGO CON CAJA | Z8: 14 | AA8: 4 | AB8: 913231319 | AE8: TELEFÓNICA S.A.A. | AG8: 20100034021
N9: 201604040002 | O9: 4 | P9: 421200 | Q9: Emitidas | R9: 236 | S9: 0 | T9: 0 | U9: 236 | V9: 1 | W9: 1 | X9: 2016-04-24 | Y9: PAGO DE LUZ CON CAJA | Z9: 14 | AB9: 18422816 | AE9: LUZ DEL SUR SAA | AG9: 20331189808
N10: 201604050005 | O10: 4 | P10: 421200 | Q10: Emitidas | R10: 5680 | S10: 0 | T10: 0 | U10: 5680 | V10: 1 | W10: 194–2233665–0–71 | X10: 2016-04-30 | Y10: PAGO DE FACTURA CON TRANSFERENCIA DE CTA. CTE. | Z10: 01 | AA10: 5 | AB10: 54792 | AC10: 2 | AD10: 003 | AE10: CATS SAC | AF10: 265478 | AG10: 20753951852
N11: 201604050006 | O11: 4 | P11: 411100 | Q11: Sueldos y salarios por pagar | R11: 4350 | S11: 0 | T11: 0 | U11: 4350 | V11: 1 | W11: 194–2233665–0–71 | X11: 2016-04-30 | Y11: PAGO DE PLANILLA | Z11: 00 | AB11: 6325478 | AC11: 2 | AD11: 003 | AF11: 6325478

Sheet REC1
A1: =IF(cia>"",cia,"") -> SPORT KENNEX S.A.C. | K1: TIPO
A2: DEUDA TOTAL POR TIPO DE ENTIDAD | K2: P
A3: PROVEEDORES | D3: Fecha de Reporte | E3: =NOW() -> 2016-04-10T01:05:53.540
C4: Total Deuda | D4: =SUM(D6:D1048576) -> 13790
A5: CÓDIGO | B5: NOMBRE | C5: LÍMITE | D5: DEUDA | E5: EXCESO
A6: 20789123654 | B6: LATINA SAC | C6: 12000 | D6: 13790 | E6: 1790

Sheet REC2
A1: =IF(cia>"",cia,"") -> SPORT KENNEX S.A.C. | K1: CÓDIGO | L1: CARGO/DESCTO.
A2: DEUDA TOTAL POR ENTIDAD | K2: 20564595756 | L2: C
A3: CLIENTES | F3: Fecha de Reporte | G3: 2016-01-31
A4: 20564595756 | F4: Total Deuda | G4: =SUM(F8:F1048576) -> 5400
A5: CRISTAL SAC | F5: Límite de Crédito | G5: 9500
F6: =IF(G6>0,"Exceso de Línea de Crédito","") ->  | G6: =IF(G4>G5,G4-G5,0) -> 0
A7: NREGISTRO | B7: F. VCTO. | C7: T. COMPB. | D7: SERIE | E7: NÚMERO | F7: IMPORTE | G7: ANTIGÜEDAD
A8: LET - - - 012016 | B8: 2016-05-30 | C8: LET | E8: 012016 | F8: 2675 | G8: 0 Días
A9: LET - - - 022016 | B9: 2016-06-30 | C9: LET | E9: 022016 | F9: 2725 | G9: 0 Días

Sheet REC3
A1: =IF(cia>"",cia,"") -> SPORT KENNEX S.A.C. | M1: CÓDIGO
A2: DETALLE DE DEUDA POR ENTIDAD Y COMPROBANTES
C3: CLIENTES | H3: Fecha de Reporte | I3: =NOW() -> 2016-04-10T01:05:53.540
C4: 20456789123 | H4: Total Deuda | I4: =SUM(H8:H1048576) -> 5400
C5: AMÉRICA EIRL | H5: Límite de Crédito | I5: 10000
H6: =IF(I6>0,"Exceso de Línea de Crédito","") ->  | I6: =IF(I4>I5,I4-I5,0) -> 0
A7: NREGISTRO | B7: CARGO/DESCTO. | C7: NUMVOUCHER | D7: F. EMISIÓN | E7: T. COMPB. | F7: SERIE | G7: NÚMERO | H7: IMPORTE | I7: SALDO | J7: DETALLE
A8: 01 - 0001 - - 2 | B8: C | C8: 01 - 0001 - - 2 | D8: 2016-04-01 | E8: 01 | F8: 0001 | G8: 2 | H8: 5250 | I8: 0 | J8: POR EL ACTIVO, PASIVO Y PATRIMONIO AL INICIO DE OPERACIONES
A9: 01 - 0001 - - 2 | B9: D | D9: 2016-04-30 | E9: 01 | F9: 0001 | G9: 2 | H9: -5250 | J9: CANDE FACTURA POR LETRAS
A10: LET - - - 012016 | B10: C | C10: LET - - - 012016 | D10: 2016-04-30 | E10: LET | G10: 012016 | H10: 2675 | I10: 2675 | J10: CANDE FACTURA POR LETRAS
A11: LET - - - 022016 | B11: C | C11: LET - - - 022016 | D11: 2016-04-30 | E11: LET | G11: 022016 | H11: 2725 | I11: 2725 | J11: CANDE FACTURA POR LETRAS

Sheet REC4
A1: =IF(cia>"",cia,"") -> SPORT KENNEX S.A.C. | K1: TIPO | L1: CARGO/DESCTO. | M1: SALDO
A2: REPORTE DE DEUDAS VENCIDAS A LA FECHA DE CONSULTA | K2: C | L2: C | M2: >0
A3: CLIENTES | F3: Fecha de Corte | G3: 2016-01-25
F4: Total Deuda Vencida | G4: =SUM(G8:G1048576) -> 14680
A7: CÓDIGO | B7: F. VCTO. | C7: F. EMISIÓN | D7: T. COMPB. | E7: SERIE | F7: NÚMERO | G7: SALDO | H7: ANTIGÜEDAD
A8: 20123456789 | B8: 2016-01-15 | C8: 2015-12-15 | D8: 01 | E8: 0001 | F8: 52 | G8: 10000 | H8: 9 Días | I8: 0
A9: 20123456789 | B9: 2016-01-25 | C9: 2015-12-25 | D9: 01 | E9: 0001 | F9: 67 | G9: 3500 | H9: 0 Días | I9: 0
A10: 20123456789 | B10: 2016-01-31 | C10: 2016-01-05 | D10: 01 | E10: 0001 | F10: 1 | G10: 1180 | H10: 0 Días | I10: 1

Sheet RV141
A1: 14.1 REGISTRO DE VENTAS E INGRESOS | AN1: AÑO | AO1: MES | AP1: VOUCHER | AR1: 1 | AS1: Indicador de operaciones | AY1: Indicador del contenido del libro o registro | BD1: Indicador de la moneda utilizada | BM1: 2
A2: =IF(año>0,año,"") -> 2016 | AN2: =IF(año>0,año,"") -> 2016 | AP2: 02 | AQ2: 14 | AR2: 1 | AS2: 1 | AT2: Empresa o entidad operativa | AY2: 1 | AZ2: Con Información | BD2: 1 | BE2: Nuevos soles o Soles
AQ3: 01 | AR3: 1 | AS3: 2 | AT3: Cierre del libro – no obligado a llevarlo | AY3: 0 | AZ3: Sin Información | BD3: 2 | BE3: Dólares
A4: Fila / Campo | B4: 0 | C4: 1 | D4: 2 | E4: 3 | F4: 4 | G4: 5 | H4: 6 | I4: 7 | J4: 8 | K4: 9 | L4: 10 | M4: 11 | N4: 12 | O4: 13 | P4: 14 | Q4: 15 | R4: 16 | S4: 17 | T4: 18 | U4: 19 | V4: 20 | W4: 21 | X4: 22 | Y4: 23 | Z4: 24 | AA4: 25 | AB4: 26 | AC4: 27 | AD4: 28 | AE4: 29 | AF4: 30 | AG4: 31 | AH4: 32 | AI4: 33 | AJ4: 34 | AQ4: 00 | AS4: 0 | AT4: Cierre de operaciones – baja de inscripción en el RUC
B5: Para los códigos de Estado 8 y 9 El ingreso es manual | C5: Periodo | D5: Núm. Correlativo (CUO) | E5: Núm. Correlativo del Asiento Contable | F5: Fecha de emisión del CdP | G5: Fecha de Vencimiento o Fecha de Pago (1) | H5: Tipo de CdP o Documento | I5: Número de Serie | J5: Número del CdP (Inicial) | K5: Número del CdP (Final) | L5: Tipo de Documento de Identidad del cliente | M5: Número de documento de Identidad | N5: Apellidos y nombres denominación o razón social del proveedor | O5: Valor facturado de la exportación | P5: Base imponible de la operación gravada (4) | Q5: Descuento de la Base Imponible | R5: Impuesto General a las Ventas y/o Impuesto de Promoción Municipal | S5: Descuento del Impuesto General a las Ventas y/o Impuesto de Promoción Municipal | T5: Importe total de la operación exonerada | U5: Importe total de la operación inafecta | V5: Impuesto Selectivo al Consumo, de ser el caso. | W5: B. I. Op. Grav. con el Impuesto a las Ventas del Arroz Pilado | X5: Impuesto a las Ventas del Arroz Pilado | Y5: Otros tributos y cargos | Z5: Importe total del comprobante de pago | AA5: Código de la Moneda (Tabla 4) | AB5: Tipo de cambio (5) | AC5: Fecha de emisión del comprobante de pago original que se modifica (6) | AD5: Tipo del comprobante de pago que se modifica (6) | AE5: Número de serie del comprobante de pago que se modifica (6) | AF5: Número del comprobante de pago que se modifica (6) o Número de la DUA, de corresponder | AG5: Identificación del Contrato o del proyecto en el caso de los Operadores de las sociedades irregulares, consorcios, joint ventures u otras formas de contratos de colaboración empresarial, que no lleven contabilidad independiente. | AH5: Error tipo 1: inconsistencia en el tipo de cambio | AI5: Indicador de Comprobantes de pago cancelados con medios de pago | AJ5: Estado que identifica la oportunidad de la anotación o indicación si ésta corresponde a alguna de las situaciones previstas en el inciso e) del artículo 8° de la Resolución de Superintendencia N.° 286-2009/SUNAT
A6: =ROW()-6 -> 0 | C6: PERIODO | D6: CUO | E6: CORRELATIVO | F6: FE | G6: FV | H6: CDP | I6: SERIE | J6: NUMEROI | K6: NUMEROF | L6: TDOC | M6: NUMDOC | N6: NOMBRE | O6: EXPORT | P6: BI1 | Q6: DESCTOBI | R6: IGV1 | S6: DESCTOIGV | T6: EXONER | U6: INAFEC | V6: ISC | W6: BI2 | X6: IGV2 | Y6: OTROS | Z6: TOTAL | AA6: MONEDA | AB6: TCAMB | AC6: FE_CDP_M | AD6: CDP_M | AE6: SERIE_CDP_M | AF6: NUM_CDP_M | AG6: CONTRATO | AH6: - | AI6: MEDIOPAGO | AJ6: ESTADO
A7: 1 | C7: 20160400 | D7: 201604020001 | E7: M1 | F7: 2016-04-03 | G7: 2016-04-30 | H7: 01 | I7: 0001 | J7: 3 | L7: 6 | M7: 20987654321 | N7: EL EXCLUSIVO SAC | P7: 4000 | R7: 720 | Z7: 4720 | AA7: PEN | AJ7: 1
A8: 2 | C8: 20160400 | D8: 201604020002 | E8: M1 | F8: 2016-04-15 | H8: 01 | I8: 0001 | J8: 4 | L8: 6 | M8: 20557788995 | N8: FRANCA SAC | P8: 10000 | R8: 1800 | Z8: 11800 | AA8: PEN | AI8: 1 | AJ8: 1

Sheet RV142
A1: 14.2 REGISTRO DE VENTAS E INGRESOS SIMPLIFICADO | AN1: AÑO | AO1: MES | AP1: VOUCHER | AR1: 1 | BM1: 1
A2: =IF(año>0,año,"") -> 2016 | AN2: =IF(año>0,año,"") -> 2016 | AP2: 02 | AQ2: 14 | AR2: 1
AQ3: 02 | AR3: 1
A4: Fila / Campo | B4: 0 | C4: 1 | D4: 2 | E4: 3 | F4: 4 | G4: 5 | H4: 6 | I4: 7 | J4: 8 | K4: 9 | L4: 10 | M4: 11 | N4: 12 | O4: 13 | P4: 14 | Q4: 15 | R4: 16 | S4: 17 | T4: 18 | U4: 19 | V4: 20 | W4: 21 | X4: 22 | Y4: 23 | Z4: 24 | AA4: 25 | AQ4: 00
B5: Para los códigos de Estado 8 y 9 El ingreso es manual | C5: Periodo | D5: Núm. Correlativo (CUO) | E5: Núm. Correlativo del Asiento Contable | F5: Fecha de emisión del CdP | G5: Fecha de Vencimiento o Fecha de Pago (1) | H5: Tipo de CdP o Documento | I5: Número de Serie | J5: Número del CdP (Inicial) | K5: Número del CdP (Final) | L5: Tipo de Documento de Identidad del cliente | M5: Número de documento de Identidad | N5: Apellidos y nombres denominación o razón social del proveedor | O5: Base imponible de la operación gravada (4) | P5: Impuesto General a las Ventas y/o Impuesto de Promoción Municipal | Q5: Otros tributos y cargos | R5: Importe total del comprobante de pago | S5: Código de la Moneda (Tabla 4) | T5: Tipo de cambio (5) | U5: Fecha de emisión del comprobante de pago original que se modifica (6) | V5: Tipo del comprobante de pago que se modifica (6) | W5: Número de serie del comprobante de pago que se modifica (6) | X5: Número del comprobante de pago que se modifica (6) o Número de la DUA, de corresponder | Y5: Error tipo 1: inconsistencia en el tipo de cambio | Z5: Indicador de Comprobantes de pago cancelados con medios de pago | AA5: Estado que identifica la oportunidad de la anotación o indicación si ésta corresponde a alguna de las situaciones previstas en el inciso e) del artículo 8° de la Resolución de Superintendencia N.° 286-2009/SUNAT
C6: PERIODO | D6: CUO | E6: CORRELATIVO | F6: FE | G6: FV | H6: CDP | I6: SERIE | J6: NUMEROI | K6: NUMEROF | L6: TDOC | M6: NUMDOC | N6: NOMBRE | O6: BI1 | P6: IGV1 | Q6: OTROS | R6: TOTAL | S6: MONEDA | T6: TCAMB | U6: FE_CDP_M | V6: CDP_M | W6: SERIE_CDP_M | X6: NUM_CDP_M | Y6: - | Z6: MEDIOPAGO | AA6: ESTADO
A7: 1 | C7: 20160400 | D7: 201604020001 | E7: M1 | F7: 2016-04-03 | G7: 2016-04-30 | H7: 01 | I7: 0001 | J7: 3 | L7: 6 | M7: 20987654321 | N7: EL EXCLUSIVO SAC | O7: 4000 | P7: 720 | R7: 4720 | S7: PEN | AA7: 1
A8: 2 | C8: 20160400 | D8: 201604020002 | E8: M1 | F8: 2016-04-15 | H8: 01 | I8: 0001 | J8: 4 | L8: 6 | M8: 20557788995 | N8: FRANCA SAC | O8: 10000 | P8: 1800 | R8: 11800 | S8: PEN | Z8: 1 | AA8: 1

Sheet RC81
A1: 08.1 REGISTRO DE COMPRAS | AV1: AÑO | AW1: MES | AX1: VOUCHER | AY1: 08 | AZ1: 1
A2: =IF(año>0,año,"") -> 2016 | AV2: =IF(año>0,año,"") -> 2016 | AX2: 03 | AY2: 01 | AZ2: 1
AY3: 00 | AZ3: 1
A4: Fila / Campo | B4: 0 | C4: 1 | D4: 2 | E4: 3 | F4: 4 | G4: 5 | H4: 6 | I4: 7 | J4: 8 | K4: 9 | L4: 10 | M4: 11 | N4: 12 | O4: 13 | P4: 14 | Q4: 15 | R4: 16 | S4: 17 | T4: 18 | U4: 19 | V4: 20 | W4: 21 | X4: 22 | Y4: 23 | Z4: 24 | AA4: 25 | AB4: 26 | AC4: 27 | AD4: 28 | AE4: 29 | AF4: 30 | AG4: 31 | AH4: 32 | AI4: 33 | AJ4: 34 | AK4: 35 | AL4: 36 | AM4: 37 | AN4: 38 | AO4: 39 | AP4: 40 | AQ4: 41
B5: Para el código de Estado 9 El ingreso es manual | C5: Periodo | D5: Núm. Correlativo (CUO) | E5: Núm. Correlativo del Asiento Contable | F5: Fecha de emisión del CdP | G5: Fecha de Vencimiento o Fecha de Pago (1) | H5: Tipo de CdP o Documento | I5: Número de Serie | J5: Año de emisión de la DUA o DSI | K5: Número del CdP (Inicial) | L5: Número del CdP (Final) | M5: Tipo de Documento de Identidad del proveedor | N5: Número de documento de Identidad | O5: Apellidos y nombres denominación o razón social del proveedor | P5: B. I. 1 | Q5: IGV 1 | R5: B. I. 2 | S5: IGV 2 | T5: B. I. 3 | U5: IGV 3 | V5: Valor de las adquisiciones no gravadas | W5: I. S. C. | X5: Otros tributos y cargos | Y5: Importe total | Z5: Código de la Moneda | AA5: Tipo de cambio (3). | AB5: Fecha de emisión del comprobante de pago que se modifica (4). | AC5: Tipo de comprobante de pago que se modifica (4). | AD5: Número de serie del comprobante de pago que se modifica (4). | AE5: Código de la dependencia Aduanera | AF5: Número del comprobante de pago que se modifica (4). | AG5: Fecha de emisión de la Constancia de Depósito de Detracción (6) | AH5: Número de la Constancia de Depósito de Detracción (6) | AI5: Marca del comprobante de pago sujeto a retención | AJ5: Clasificación de los bienes y servicios adquiridos | AK5: Identificación del Contrato o del proyecto | AL5: Error tipo 1: inconsistencia en el tipo de cambio | AM5: Error tipo 2: inconsistencia por proveedores no habidos | AN5: Error tipo 3 | AO5: Error tipo 4 | AP5: Indicador de Comprobantes de pago cancelados con medios de pago | AQ5: Estado que identifica la oportunidad de la anotación
C6: PERIODO | D6: CUO | E6: CORRELATIVO | F6: FE | G6: FV | H6: CDP | I6: SERIE | J6: DUA | K6: NUMEROI | L6: NUMEROF | M6: TDOC | N6: NUMDOC | O6: NOMBRE | P6: BI1 | Q6: IGV1 | R6: BI2 | S6: IGV2 | T6: BI3 | U6: IGV3 | V6: NOGRAV | W6: ISC | X6: OTROS | Y6: TOTAL | Z6: MONEDA | AA6: TCAMB | AB6: FE_CDP_M | AC6: CDP_M | AD6: SERIE_CDP_M | AE6: ADUANA | AF6: NUM_CDP_M | AG6: FE_DETRAC | AH6: NUM_DETRAC | AI6: RETENC | AJ6: TBIEN | AK6: CONTRATO | AL6: - | AM6: - | AN6: - | AO6: - | AP6: MEDIOPAGO | AQ6: ESTADO
A7: 1 | C7: 20160400 | D7: 201604030001 | E7: M1 | F7: 2016-04-05 | G7: 2016-05-15 | H7: 01 | I7: 0001 | K7: 16754 | M7: 6 | N7: 20789123654 | O7: LATINA SAC | P7: 8000 | Q7: 1440 | Y7: 9440 | Z7: PEN | AJ7: 1 | AQ7: 1
A8: 2 | C8: 20160400 | D8: 201604030003 | E8: M1 | F8: 2016-04-23 | G8: 2016-04-30 | H8: 14 | I8: 0004 | K8: 913231319 | M8: 6 | N8: 20100034021 | O8: TELEFÓNICA S.A.A. | P8: 100 | Q8: 18 | X8: 5 | Y8: 123 | Z8: PEN | AJ8: 5 | AQ8: 1
A9: 3 | C9: 20160400 | D9: 201604030002 | E9: M1 | F9: 2016-04-22 | H9: 01 | I9: E010 | K9: 4587 | M9: 6 | N9: 20564595756 | O9: CRISTAL SAC | P9: 4000 | Q9: 720 | Y9: 4720 | Z9: PEN | AJ9: 1 | AP9: 1 | AQ9: 1
A10: 4 | C10: 20160400 | D10: 201604030004 | E10: M1 | F10: 2016-04-24 | G10: 2016-04-29 | H10: 14 | K10: 18422816 | M10: 6 | N10: 20331189808 | O10: LUZ DEL SUR SAA | P10: 200 | Q10: 36 | Y10: 236 | Z10: PEN | AJ10: 5 | AQ10: 1

Sheet RC82
A1: 08.2 REGISTRO DE COMPRAS - OPERACIONES CON SUJETOS NO DOMICILIAOS | AV1: AÑO | AW1: MES | AY1: 08 | AZ1: 1
A2: =IF(año>0,año,"") -> 2016 | AV2: =IF(año>0,año,"") -> 2016 | AY2: 02 | AZ2: 0
AY3: 00 | AZ3: 1
A4: Campo | B4: 0 | C4: 1 | D4: 2 | E4: 3 | F4: 4 | G4: 5 | H4: 6 | I4: 7 | J4: 8 | K4: 9 | L4: 10 | M4: 11 | N4: 12 | O4: 13 | P4: 14 | Q4: 15 | R4: 16 | S4: 17 | T4: 18 | U4: 19 | V4: 20 | W4: 21 | X4: 22 | Y4: 23 | Z4: 24 | AA4: 25 | AB4: 26 | AC4: 27 | AD4: 28 | AE4: 29 | AF4: 30 | AG4: 31 | AH4: 32 | AI4: 33 | AJ4: 34 | AK4: 35 | AL4: 36
A5: =ROW()-5 | B5: Para el código de Estado 9 El ingreso es manual | C5: Periodo | D5: Núm. Correlativo (CUO) | E5: Núm. Correlativo del Asiento Contable | F5: Fecha de emisión del CdP | G5: Tipo de CdP o Documento del sujeto no domiciliado | H5: Número de Serie | I5: Número del CdP | J5: Valor de las adquisiciones | K5: Otros tributos y cargos | L5: Importe total | M5: Tipo de Comprobante de Pago o Documento que sustenta el crédito fiscal | N5: Número de serie del CdP | O5: Año de emisión de la DUA o DSI que sustenta el crédito fiscal | P5: Número del comprobante de pago | Q5: Monto de retención del IGV | R5: Código de la Moneda | S5: Tipo de cambio | T5: Pais de la residencia del sujeto no domiciliado | U5: Apellidos y nombres denominación o razón social del sujeto no domiciliado | V5: Domicilio en el extranjero del sujeto no domiciliado | W5: Número de identificación del sujeto no domiciliado | X5: Número de identificación fiscal del beneficiario efectivo de los pagos | Y5: Apellidos y nombres denominación o razón social del beneficiario efectivo de los pagos | Z5: Pais de la residencia del beneficiario efectivo de los pagos | AA5: Vínculo entre el contribuyente y el residente en el extranjero | AB5: Renta Bruta | AC5: Deducción / Costo de Enajenación de bienes de capital | AD5: Renta Neta | AE5: Tasa de retención | AF5: Impuesto retenido | AG5: Convenios para evitar la doble imposición | AH5: Exoneración aplicada | AI5: Tipo de Renta | AJ5: Modalidad del servicio prestado por el no domiciliado | AK5: Aplicación del penultimo parrafo del Art. 76° de la Ley del Impuesto a la Renta

Sheet RC83
A1: 08.3 REGISTRO DE COMPRAS SIMPLIFICADO | AV1: AÑO | AW1: MES | AX1: VOUCHER | AY1: 08 | AZ1: 1
A2: =IF(año>0,año,"") -> 2016 | AV2: =IF(año>0,año,"") -> 2016 | AX2: 03 | AY2: 03 | AZ2: 1
AY3: 00 | AZ3: 1
A4: Fila / Campo | B4: 0 | C4: 1 | D4: 2 | E4: 3 | F4: 4 | G4: 5 | H4: 6 | I4: 7 | J4: 8 | K4: 9 | L4: 10 | M4: 11 | N4: 12 | O4: 13 | P4: 14 | Q4: 15 | R4: 16 | S4: 17 | T4: 18 | U4: 19 | V4: 20 | W4: 21 | X4: 22 | Y4: 23 | Z4: 24 | AA4: 25 | AB4: 26 | AC4: 27 | AD4: 28 | AE4: 29 | AF4: 30 | AG4: 31
B5: Para el código de Estado 9 El ingreso es manual | C5: Periodo | D5: Núm. Correlativo (CUO) | E5: Núm. Correlativo del Asiento Contable | F5: Fecha de emisión del CdP | G5: Fecha de Vencimiento o Fecha de Pago (1) | H5: Tipo de CdP o Documento | I5: Número de Serie | J5: Número del CdP (Inicial) | K5: Número del CdP (Final) | L5: Tipo de Documento de Identidad del proveedor | M5: Número de documento de Identidad | N5: Apellidos y nombres denominación o razón social del proveedor | O5: Base Imponible | P5: IGV | Q5: Otros tributos y cargos | R5: Importe total | S5: Código de la Moneda | T5: Tipo de cambio (3). | U5: Fecha de emisión del comprobante de pago que se modifica (4). | V5: Tipo de comprobante de pago que se modifica (4). | W5: Número de serie del comprobante de pago que se modifica (4). | X5: Número del comprobante de pago que se modifica (4). | Y5: Fecha de emisión de la Constancia de Depósito de Detracción (6) | Z5: Número de la Constancia de Depósito de Detracción (6) | AA5: Marca del comprobante de pago sujeto a retención | AB5: Clasificación de los bienes y servicios adquiridos | AC5: Error tipo 1: inconsistencia en el tipo de cambio | AD5: Error tipo 2: inconsistencia por proveedores no habidos | AE5: Error tipo 3 | AF5: Indicador de Comprobantes de pago cancelados con medios de pago | AG5: Estado que identifica la oportunidad de la anotación
C6: PERIODO | D6: CUO | E6: CORRELATIVO | F6: FE | G6: FV | H6: CDP | I6: SERIE | J6: NUMEROI | K6: NUMEROF | L6: TDOC | M6: NUMDOC | N6: NOMBRE | O6: BI1 | P6: IGV1 | Q6: OTROS | R6: TOTAL | S6: MONEDA | T6: TCAMB | U6: FE_CDP_M | V6: CDP_M | W6: SERIE_CDP_M | X6: NUM_CDP_M | Y6: FE_DETRAC | Z6: NUM_DETRAC | AA6: RETENC | AB6: TBIEN | AC6: - | AD6: - | AE6: - | AF6: MEDIOPAGO | AG6: ESTADO
A7: 1 | C7: 20160400 | D7: 201604030001 | E7: M1 | F7: 2016-04-05 | G7: 2016-05-15 | H7: 01 | I7: 0001 | J7: 16754 | L7: 6 | M7: 20789123654 | N7: LATINA SAC | O7: 8000 | P7: 1440 | R7: 9440 | S7: PEN | AB7: 1 | AG7: 1
A8: 2 | C8: 20160400 | D8: 201604030003 | E8: M1 | F8: 2016-04-23 | G8: 2016-04-30 | H8: 14 | I8: 0004 | J8: 913231319 | L8: 6 | M8: 20100034021 | N8: TELEFÓNICA S.A.A. | O8: 100 | P8: 18 | Q8: 5 | R8: 123 | S8: PEN | AB8: 5 | AG8: 1
A9: 3 | C9: 20160400 | D9: 201604030002 | E9: M1 | F9: 2016-04-22 | H9: 01 | I9: E010 | J9: 4587 | L9: 6 | M9: 20564595756 | N9: CRISTAL SAC | O9: 4000 | P9: 720 | R9: 4720 | S9: PEN | AB9: 1 | AF9: 1 | AG9: 1
A10: 4 | C10: 20160400 | D10: 201604030004 | E10: M1 | F10: 2016-04-24 | G10: 2016-04-29 | H10: 14 | J10: 18422816 | L10: 6 | M10: 20331189808 | N10: LUZ DEL SUR SAA | O10: 200 | P10: 36 | R10: 236 | S10: PEN | AB10: 5 | AG10: 1

Sheet LD5152
A1: 5.2 LIBRO DIARIO DE FORMATO SIMPLIFICADO | AV1: AÑO | AW1: MES | AY1: 05 | AZ1: 1 | BA1: =DATE(AV2,AW3,1) -> 2016-04-01 | BB1: =DAY(DATE(YEAR(BA1),MONTH(BA1)+1,0)) -> 30 | BC1: LIBRO DIARIO
A2: =IF(año>0,año,"") -> 2016 | AV2: =IF(año>0,año,"") -> 2016 | AY2: 02 | AZ2: 1 | BC2: LIBRO DIARIO SIMPLIFICADO
AW3: 4 | AY3: 00 | AZ3: 1
A4: Fila / Campo | B4: 0 | C4: 1 | D4: 2 | E4: 3 | F4: 4 | G4: 5 | H4: 6 | I4: 7 | J4: 8 | K4: 9 | L4: 10 | M4: 11 | N4: 12 | O4: 13 | P4: 14 | Q4: 15 | R4: 16 | S4: 17 | T4: 18 | U4: 19 | V4: 20 | W4: 21 | AY4: 04 | AZ4: 1
B5: Para los códigos de Estado 8 y 9 El ingreso es manual | C5: Periodo | D5: Núm. Correlativo (CUO) | E5: Núm. Correlativo del Asiento Contable | F5: Código de la cuenta contable | G5: Código de la Unidad de Operación | H5: Código del Centro de Costos, Centro de Utilidades o Centro de Inversión, de corresponder | I5: Tipo de Moneda de origen | J5: Tipo de documento de identidad del emisor | K5: Número de documento de identidad del emisor | L5: Tipo de Comprobante de Pago o Documento asociada a la operación, de corresponder | M5: Número de serie del comprobante de pago o documento asociada a la operación, de corresponder | N5: Número del comprobante de pago o documento asociada a la operación | O5: Fecha contable | P5: Fecha de vencimiento | Q5: Fecha de la operación | R5: Glosa o descripción de la naturaleza de la operación registrada, de ser el caso. | S5: Glosa referencial, de ser el caso | T5: Movimientos del Debe | U5: Movimientos del Haber | V5: Dato Estructurado: Código del libro, campo 1, campo 2 y campo 3 del Registro de Ventas e Ingresos o del Registro de Compras, separados con el carácter "&", de corresponder | W5: Indica el estado de la operación
C6: PERIODO | D6: CUO | E6: CORRELATIVO | F6: CUENTA | G6: UNID_OPER | H6: CENT_COSTO | I6: MONEDA | J6: TDOC | K6: NUMDOC | L6: CDP | M6: SERIE | N6: NUM_I_Y_F | O6: FC | P6: FV | Q6: FE | R6: GLOSA | S6: - | T6: DEBE | U6: HABER | V6: CODESTRUC | W6: ESTADOLD
A7: 1 | C7: 20160400 | D7: 201600010001 | E7: A1 | F7: 101000 | I7: PEN | L7: 00 | N7: 0 | O7: 2016-04-01 | Q7: 2016-04-01 | R7: POR EL ACTIVO PASIVO Y PATRIMONIO AL INICIO DE OPERACIONES | T7: 1500 | U7: 0 | W7: 1
A8: 2 | C8: 20160400 | D8: 201600010001 | E8: A2 | F8: 104100 | I8: PEN | L8: 00 | N8: 0 | O8: 2016-04-01 | Q8: 2016-04-01 | R8: POR EL ACTIVO PASIVO Y PATRIMONIO AL INICIO DE OPERACIONES | T8: 18250 | U8: 0 | W8: 1
A9: 3 | C9: 20160400 | D9: 201600010001 | E9: A3 | F9: 121200 | I9: PEN | J9: 6 | K9: 20987654321 | L9: 01 | M9: 0001 | N9: 1 | O9: 2016-04-01 | Q9: 2016-04-01 | R9: POR EL ACTIVO PASIVO Y PATRIMONIO AL INICIO DE OPERACIONES | T9: 3750 | U9: 0 | W9: 1
A10: 4 | C10: 20160400 | D10: 201600010001 | E10: A4 | F10: 121200 | I10: PEN | J10: 6 | K10: 20456789123 | L10: 01 | M10: 0001 | N10: 2 | O10: 2016-04-01 | Q10: 2016-04-01 | R10: POR EL ACTIVO PASIVO Y PATRIMONIO AL INICIO DE OPERACIONES | T10: 5250 | U10: 0 | W10: 1
A11: 5 | C11: 20160400 | D11: 201600010001 | E11: A5 | F11: 141100 | I11: PEN | J11: 1 | K11: 08745612 | L11: REC | N11: 15287 | O11: 2016-04-01 | Q11: 2016-04-01 | R11: POR EL ACTIVO PASIVO Y PATRIMONIO AL INICIO DE OPERACIONES | T11: 800 | U11: 0 | W11: 1
A12: 6 | C12: 20160400 | D12: 201600010001 | E12: A6 | F12: 201110 | I12: PEN | L12: 00 | N12: 0 | O12: 2016-04-01 | Q12: 2016-04-01 | R12: POR EL ACTIVO PASIVO Y PATRIMONIO AL INICIO DE OPERACIONES | T12: 5950 | U12: 0 | W12: 1
A13: 7 | C13: 20160400 | D13: 201600010001 | E13: A7 | F13: 335110 | I13: PEN | L13: 00 | N13: 0 | O13: 2016-04-01 | Q13: 2016-04-01 | R13: POR EL ACTIVO PASIVO Y PATRIMONIO AL INICIO DE OPERACIONES | T13: 3640 | U13: 0 | W13: 1
A14: 8 | C14: 20160400 | D14: 201600010001 | E14: A8 | F14: 335210 | I14: PEN | L14: 00 | N14: 0 | O14: 2016-04-01 | Q14: 2016-04-01 | R14: POR EL ACTIVO PASIVO Y PATRIMONIO AL INICIO DE OPERACIONES | T14: 1840 | U14: 0 | W14: 1
A15: 9 | C15: 20160400 | D15: 201600010001 | E15: A9 | F15: 391340 | I15: PEN | L15: 00 | N15: 0 | O15: 2016-04-01 | Q15: 2016-04-01 | R15: POR EL ACTIVO PASIVO Y PATRIMONIO AL INICIO DE OPERACIONES | T15: 0 | U15: 1150 | W15: 1
A16: 10 | C16: 20160400 | D16: 201600010001 | E16: A10 | F16: 421200 | I16: PEN | J16: 6 | K16: 20753951852 | L16: 01 | M16: 0005 | N16: 54792 | O16: 2016-04-01 | Q16: 2016-04-01 | R16: POR EL ACTIVO PASIVO Y PATRIMONIO AL INICIO DE OPERACIONES | T16: 0 | U16: 5680 | W16: 1
A17: 11 | C17: 20160400 | D17: 201600010001 | E17: A11 | F17: 421200 | I17: PEN | J17: 6 | K17: 20789123654 | L17: 01 | M17: 0001 | N17: 15789 | O17: 2016-04-01 | Q17: 2016-04-01 | R17: POR EL ACTIVO PASIVO Y PATRIMONIO AL INICIO DE OPERACIONES | T17: 0 | U17: 4350 | W17: 1
A18: 12 | C18: 20160400 | D18: 201600010001 | E18: A12 | F18: 501100 | I18: PEN | L18: 00 | N18: 0 | O18: 2016-04-01 | Q18: 2016-04-01 | R18: POR EL ACTIVO PASIVO Y PATRIMONIO AL INICIO DE OPERACIONES | T18: 0 | U18: 28000 | W18: 1
A19: 13 | C19: 20160400 | D19: 201600010001 | E19: A13 | F19: 591100 | I19: PEN | L19: 00 | N19: 0 | O19: 2016-04-01 | Q19: 2016-04-01 | R19: POR EL ACTIVO PASIVO Y PATRIMONIO AL INICIO DE OPERACIONES | T19: 0 | U19: 1800 | W19: 1
A20: 14 | C20: 20160400 | D20: 201604020001 | E20: M1 | F20: 121200 | I20: PEN | J20: 6 | K20: 20987654321 | L20: 01 | M20: 1 | N20: 3 | O20: 2016-04-03 | P20: 2016-04-30 | Q20: 2016-04-03 | R20: VENTA DE MERCADERÍA AL CRÉDITO | T20: 4720 | U20: 0 | V20: 140100&20160400&201604020001&M1 | W20: 1
A21: 15 | C21: 20160400 | D21: 201604020001 | E21: M2 | F21: 401110 | I21: PEN | J21: 6 | K21: 20987654321 | L21: 01 | M21: 1 | N21: 3 | O21: 2016-04-03 | P21: 2016-04-30 | Q21: 2016-04-03 | R21: VENTA DE MERCADERÍA AL CRÉDITO | T21: 0 | U21: 720 | V21: 140100&20160400&201604020001&M1 | W21: 1
A22: 16 | C22: 20160400 | D22: 201604020001 | E22: M3 | F22: 701110 | I22: PEN | J22: 6 | K22: 20987654321 | L22: 01 | M22: 1 | N22: 3 | O22: 2016-04-03 | P22: 2016-04-30 | Q22: 2016-04-03 | R22: VENTA DE MERCADERÍA AL CRÉDITO | T22: 0 | U22: 4000 | V22: 140100&20160400&201604020001&M1 | W22: 1
A23: 17 | C23: 20160400 | D23: 201604030001 | E23: M1 | F23: 601100 | I23: PEN | J23: 6 | K23: 20789123654 | L23: 01 | M23: 1 | N23: 16754 | O23: 2016-04-05 | P23: 2016-05-15 | Q23: 2016-04-05 | R23: COMPRA DE MERCADERÍA AL CRÉDITO | T23: 8000 | U23: 0 | V23: 080100&20160400&201604030001&M1 | W23: 1
A24: 18 | C24: 20160400 | D24: 201604030001 | E24: M2 | F24: 401110 | I24: PEN | J24: 6 | K24: 20789123654 | L24: 01 | M24: 1 | N24: 16754 | O24: 2016-04-05 | P24: 2016-05-15 | Q24: 2016-04-05 | R24: COMPRA DE MERCADERÍA AL CRÉDITO | T24: 1440 | U24: 0 | V24: 080100&20160400&201604030001&M1 | W24: 1
A25: 19 | C25: 20160400 | D25: 201604030001 | E25: M3 | F25: 421200 | I25: PEN | J25: 6 | K25: 20789123654 | L25: 01 | M25: 1 | N25: 16754 | O25: 2016-04-05 | P25: 2016-05-15 | Q25: 2016-04-05 | R25: COMPRA DE MERCADERÍA AL CRÉDITO | T25: 0 | U25: 9440 | V25: 080100&20160400&201604030001&M1 | W25: 1
A26: 20 | C26: 20160400 | D26: 201604030001 | E26: M4 | F26: 201110 | I26: PEN | J26: 6 | K26: 20789123654 | L26: 01 | M26: 1 | N26: 16754 | O26: 2016-04-05 | P26: 2016-05-15 | Q26: 2016-04-05 | R26: COMPRA DE MERCADERÍA AL CRÉDITO | T26: 8000 | U26: 0 | V26: 080100&20160400&201604030001&M1 | W26: 1
A27: 21 | C27: 20160400 | D27: 201604030001 | E27: M5 | F27: 611100 | I27: PEN | J27: 6 | K27: 20789123654 | L27: 01 | M27: 1 | N27: 16754 | O27: 2016-04-05 | P27: 2016-05-15 | Q27: 2016-04-05 | R27: COMPRA DE MERCADERÍA AL CRÉDITO | T27: 0 | U27: 8000 | V27: 080100&20160400&201604030001&M1 | W27: 1
A28: 22 | C28: 20160400 | D28: 201604050001 | E28: M1 | F28: 104100 | I28: PEN | J28: 6 | K28: 20987654321 | L28: 01 | M28: 1 | N28: 1 | O28: 2016-04-15 | Q28: 2016-04-15 | R28: COBRO CON DEPÓSITO EN CUENTA | T28: 3750 | U28: 0 | W28: 1
A29: 23 | C29: 20160400 | D29: 201604050001 | E29: M2 | F29: 121200 | I29: PEN | J29: 6 | K29: 20987654321 | L29: 01 | M29: 1 | N29: 1 | O29: 2016-04-15 | Q29: 2016-04-15 | R29: COBRO CON DEPÓSITO EN CUENTA | T29: 0 | U29: 3750 | W29: 1
A30: 24 | C30: 20160400 | D30: 201604050002 | E30: M1 | F30: 104100 | I30: PEN | J30: 6 | K30: 20557788995 | L30: 01 | M30: 1 | N30: 4 | O30: 2016-04-15 | Q30: 2016-04-15 | R30: COBRO DE FACTURA CON TRANSFERENCIA A CTA. CTE | T30: 11800 | U30: 0 | W30: 1
A31: 25 | C31: 20160400 | D31: 201604050002 | E31: M2 | F31: 121200 | I31: PEN | J31: 6 | K31: 20557788995 | L31: 01 | M31: 1 | N31: 4 | O31: 2016-04-15 | Q31: 2016-04-15 | R31: COBRO DE FACTURA CON TRANSFERENCIA A CTA. CTE | T31: 0 | U31: 11800 | W31: 1
A32: 26 | C32: 20160400 | D32: 201604020002 | E32: M1 | F32: 121200 | I32: PEN | J32: 6 | K32: 20557788995 | L32: 01 | M32: 1 | N32: 4 | O32: 2016-04-15 | Q32: 2016-04-15 | R32: VENTA DE MERCADERIA AL CONTADO | T32: 11800 | U32: 0 | V32: 140100&20160400&201604020002&M1 | W32: 1
A33: 27 | C33: 20160400 | D33: 201604020002 | E33: M2 | F33: 401110 | I33: PEN | J33: 6 | K33: 20557788995 | L33: 01 | M33: 1 | N33: 4 | O33: 2016-04-15 | Q33: 2016-04-15 | R33: VENTA DE MERCADERIA AL CONTADO | T33: 0 | U33: 1800 | V33: 140100&20160400&201604020002&M1 | W33: 1
A34: 28 | C34: 20160400 | D34: 201604020002 | E34: M3 | F34: 701110 | I34: PEN | J34: 6 | K34: 20557788995 | L34: 01 | M34: 1 | N34: 4 | O34: 2016-04-15 | Q34: 2016-04-15 | R34: VENTA DE MERCADERIA AL CONTADO | T34: 0 | U34: 10000 | V34: 140100&20160400&201604020002&M1 | W34: 1
A35: 29 | C35: 20160400 | D35: 201604050003 | E35: M1 | F35: 104100 | I35: PEN | L35: 00 | N35: 1578965 | O35: 2016-04-16 | Q35: 2016-04-16 | R35: TRANSFERENCIA DE EFECTIVO ENTRE CTAS. CTES. | T35: 2000 | U35: 0 | W35: 1
A36: 30 | C36: 20160400 | D36: 201604050003 | E36: M2 | F36: 104100 | I36: PEN | L36: 00 | N36: 1578965 | O36: 2016-04-16 | Q36: 2016-04-16 | R36: TRANSFERENCIA DE EFECTIVO ENTRE CTAS. CTES. | T36: 0 | U36: 2000 | W36: 1
A37: 31 | C37: 20160400 | D37: 201604050004 | E37: M1 | F37: 421200 | I37: PEN | J37: 6 | K37: 20564595756 | L37: 01 | M37: E010 | N37: 4587 | O37: 2016-04-22 | Q37: 2016-04-22 | R37: PAGO CON TRANSFERENCIA A CTA. CTE | T37: 4720 | U37: 0 | W37: 1
A38: 32 | C38: 20160400 | D38: 201604050004 | E38: M2 | F38: 104100 | I38: PEN | J38: 6 | K38: 20564595756 | L38: 01 | M38: E010 | N38: 4587 | O38: 2016-04-22 | Q38: 2016-04-22 | R38: PAGO CON TRANSFERENCIA A CTA. CTE | T38: 0 | U38: 4720 | W38: 1
A39: 33 | C39: 20160400 | D39: 201604040001 | E39: M1 | F39: 421200 | I39: PEN | J39: 6 | K39: 20100034021 | L39: 14 | M39: 4 | N39: 913231319 | O39: 2016-04-23 | Q39: 2016-04-23 | R39: PAGO CON CAJA | T39: 123 | U39: 0 | W39: 1
A40: 34 | C40: 20160400 | D40: 201604040001 | E40: M2 | F40: 101000 | I40: PEN | J40: 6 | K40: 20100034021 | L40: 14 | M40: 4 | N40: 913231319 | O40: 2016-04-23 | Q40: 2016-04-23 | R40: PAGO CON CAJA | T40: 0 | U40: 123 | W40: 1
A41: 35 | C41: 20160400 | D41: 201604030003 | E41: M1 | F41: 636420 | I41: PEN | J41: 6 | K41: 20100034021 | L41: 14 | M41: 4 | N41: 913231319 | O41: 2016-04-23 | P41: 2016-04-30 | Q41: 2016-04-23 | R41: CONSUMO DE TELÉFONO | T41: 100 | U41: 0 | V41: 080100&20160400&201604030003&M1 | W41: 1
A42: 36 | C42: 20160400 | D42: 201604030003 | E42: M2 | F42: 636420 | I42: PEN | J42: 6 | K42: 20100034021 | L42: 14 | M42: 4 | N42: 913231319 | O42: 2016-04-23 | P42: 2016-04-30 | Q42: 2016-04-23 | R42: CONSUMO DE TELÉFONO | T42: 5 | U42: 0 | V42: 080100&20160400&201604030003&M1 | W42: 1
A43: 37 | C43: 20160400 | D43: 201604030003 | E43: M3 | F43: 401110 | I43: PEN | J43: 6 | K43: 20100034021 | L43: 14 | M43: 4 | N43: 913231319 | O43: 2016-04-23 | P43: 2016-04-30 | Q43: 2016-04-23 | R43: CONSUMO DE TELÉFONO | T43: 18 | U43: 0 | V43: 080100&20160400&201604030003&M1 | W43: 1
A44: 38 | C44: 20160400 | D44: 201604030003 | E44: M4 | F44: 421200 | I44: PEN | J44: 6 | K44: 20100034021 | L44: 14 | M44: 4 | N44: 913231319 | O44: 2016-04-23 | P44: 2016-04-30 | Q44: 2016-04-23 | R44: CONSUMO DE TELÉFONO | T44: 0 | U44: 123 | V44: 080100&20160400&201604030003&M1 | W44: 1
A45: 39 | C45: 20160400 | D45: 201604030003 | E45: M5 | F45: 946360 | I45: PEN | J45: 6 | K45: 20100034021 | L45: 14 | M45: 4 | N45: 913231319 | O45: 2016-04-23 | P45: 2016-04-30 | Q45: 2016-04-23 | R45: CONSUMO DE TELÉFONO | T45: 100 | U45: 0 | V45: 080100&20160400&201604030003&M1 | W45: 1
A46: 40 | C46: 20160400 | D46: 201604030003 | E46: M6 | F46: 791000 | I46: PEN | J46: 6 | K46: 20100034021 | L46: 14 | M46: 4 | N46: 913231319 | O46: 2016-04-23 | P46: 2016-04-30 | Q46: 2016-04-23 | R46: CONSUMO DE TELÉFONO | T46: 0 | U46: 100 | V46: 080100&20160400&201604030003&M1 | W46: 1
A47: 41 | C47: 20160400 | D47: 201604030003 | E47: M7 | F47: 946360 | I47: PEN | J47: 6 | K47: 20100034021 | L47: 14 | M47: 4 | N47: 913231319 | O47: 2016-04-23 | P47: 2016-04-30 | Q47: 2016-04-23 | R47: CONSUMO DE TELÉFONO | T47: 5 | U47: 0 | V47: 080100&20160400&201604030003&M1 | W47: 1
A48: 42 | C48: 20160400 | D48: 201604030003 | E48: M8 | F48: 791000 | I48: PEN | J48: 6 | K48: 20100034021 | L48: 14 | M48: 4 | N48: 913231319 | O48: 2016-04-23 | P48: 2016-04-30 | Q48: 2016-04-23 | R48: CONSUMO DE TELÉFONO | T48: 0 | U48: 5 | V48: 080100&20160400&201604030003&M1 | W48: 1
A49: 43 | C49: 20160400 | D49: 201604030002 | E49: M1 | F49: 601100 | I49: PEN | J49: 6 | K49: 20564595756 | L49: 01 | M49: E010 | N49: 4587 | O49: 2016-04-22 | Q49: 2016-04-22 | R49: COMPRA DE MERCADERÍA AL CONTADO | T49: 4000 | U49: 0 | V49: 080100&20160400&201604030002&M1 | W49: 1
A50: 44 | C50: 20160400 | D50: 201604030002 | E50: M2 | F50: 401110 | I50: PEN | J50: 6 | K50: 20564595756 | L50: 01 | M50: E010 | N50: 4587 | O50: 2016-04-22 | Q50: 2016-04-22 | R50: COMPRA DE MERCADERÍA AL CONTADO | T50: 720 | U50: 0 | V50: 080100&20160400&201604030002&M1 | W50: 1
A51: 45 | C51: 20160400 | D51: 201604030002 | E51: M3 | F51: 421200 | I51: PEN | J51: 6 | K51: 20564595756 | L51: 01 | M51: E010 | N51: 4587 | O51: 2016-04-22 | Q51: 2016-04-22 | R51: COMPRA DE MERCADERÍA AL CONTADO | T51: 0 | U51: 4720 | V51: 080100&20160400&201604030002&M1 | W51: 1
A52: 46 | C52: 20160400 | D52: 201604030002 | E52: M4 | F52: 201110 | I52: PEN | J52: 6 | K52: 20564595756 | L52: 01 | M52: E010 | N52: 4587 | O52: 2016-04-22 | Q52: 2016-04-22 | R52: COMPRA DE MERCADERÍA AL CONTADO | T52: 4000 | U52: 0 | V52: 080100&20160400&201604030002&M1 | W52: 1
A53: 47 | C53: 20160400 | D53: 201604030002 | E53: M5 | F53: 611100 | I53: PEN | J53: 6 | K53: 20564595756 | L53: 01 | M53: E010 | N53: 4587 | O53: 2016-04-22 | Q53: 2016-04-22 | R53: COMPRA DE MERCADERÍA AL CONTADO | T53: 0 | U53: 4000 | V53: 080100&20160400&201604030002&M1 | W53: 1
A54: 48 | C54: 20160400 | D54: 201604040002 | E54: M1 | F54: 421200 | I54: PEN | J54: 6 | K54: 20331189808 | L54: 14 | N54: 18422816 | O54: 2016-04-24 | Q54: 2016-04-24 | R54: PAGO DE LUZ CON CAJA | T54: 236 | U54: 0 | W54: 1
A55: 49 | C55: 20160400 | D55: 201604040002 | E55: M2 | F55: 101000 | I55: PEN | J55: 6 | K55: 20331189808 | L55: 14 | N55: 18422816 | O55: 2016-04-24 | Q55: 2016-04-24 | R55: PAGO DE LUZ CON CAJA | T55: 0 | U55: 236 | W55: 1
A56: 50 | C56: 20160400 | D56: 201604030004 | E56: M1 | F56: 636120 | I56: PEN | J56: 6 | K56: 20331189808 | L56: 14 | N56: 18422816 | O56: 2016-04-24 | P56: 2016-04-29 | Q56: 2016-04-24 | R56: CONSUMO DE LUZ DELMES | T56: 200 | U56: 0 | V56: 080100&20160400&201604030004&M1 | W56: 1
A57: 51 | C57: 20160400 | D57: 201604030004 | E57: M2 | F57: 401110 | I57: PEN | J57: 6 | K57: 20331189808 | L57: 14 | N57: 18422816 | O57: 2016-04-24 | P57: 2016-04-29 | Q57: 2016-04-24 | R57: CONSUMO DE LUZ DELMES | T57: 36 | U57: 0 | V57: 080100&20160400&201604030004&M1 | W57: 1
A58: 52 | C58: 20160400 | D58: 201604030004 | E58: M3 | F58: 421200 | I58: PEN | J58: 6 | K58: 20331189808 | L58: 14 | N58: 18422816 | O58: 2016-04-24 | P58: 2016-04-29 | Q58: 2016-04-24 | R58: CONSUMO DE LUZ DELMES | T58: 0 | U58: 236 | V58: 080100&20160400&201604030004&M1 | W58: 1
A59: 53 | C59: 20160400 | D59: 201604030004 | E59: M4 | F59: 946360 | I59: PEN | J59: 6 | K59: 20331189808 | L59: 14 | N59: 18422816 | O59: 2016-04-24 | P59: 2016-04-29 | Q59: 2016-04-24 | R59: CONSUMO DE LUZ DELMES | T59: 200 | U59: 0 | V59: 080100&20160400&201604030004&M1 | W59: 1
A60: 54 | C60: 20160400 | D60: 201604030004 | E60: M5 | F60: 791000 | I60: PEN | J60: 6 | K60: 20331189808 | L60: 14 | N60: 18422816 | O60: 2016-04-24 | P60: 2016-04-29 | Q60: 2016-04-24 | R60: CONSUMO DE LUZ DELMES | T60: 0 | U60: 200 | V60: 080100&20160400&201604030004&M1 | W60: 1
A61: 55 | C61: 20160400 | D61: 201604050005 | E61: M1 | F61: 421200 | I61: PEN | J61: 6 | K61: 20753951852 | L61: 01 | M61: 5 | N61: 54792 | O61: 2016-04-30 | Q61: 2016-04-30 | R61: PAGO DE FACTURA CON TRANSFERENCIA DE CTA. CTE. | T61: 5680 | U61: 0 | W61: 1
A62: 56 | C62: 20160400 | D62: 201604050005 | E62: M2 | F62: 104100 | I62: PEN | J62: 6 | K62: 20753951852 | L62: 01 | M62: 5 | N62: 54792 | O62: 2016-04-30 | Q62: 2016-04-30 | R62: PAGO DE FACTURA CON TRANSFERENCIA DE CTA. CTE. | T62: 0 | U62: 5680 | W62: 1
A63: 57 | C63: 20160400 | D63: 201604060001 | E63: M1 | F63: 681442 | I63: PEN | L63: 00 | N63: 0 | O63: 2016-04-30 | Q63: 2016-04-30 | R63: DEPRECIACIÓN DEL MES | T63: 548 | U63: 0 | W63: 1
A64: 58 | C64: 20160400 | D64: 201604060001 | E64: M2 | F64: 391340 | I64: PEN | L64: 00 | N64: 0 | O64: 2016-04-30 | Q64: 2016-04-30 | R64: DEPRECIACIÓN DEL MES | T64: 0 | U64: 548 | W64: 1
A65: 59 | C65: 20160400 | D65: 201604060001 | E65: M3 | F65: 946810 | I65: PEN | L65: 00 | N65: 0 | O65: 2016-04-30 | Q65: 2016-04-30 | R65: DEPRECIACIÓN DEL MES | T65: 548 | U65: 0 | W65: 1
A66: 60 | C66: 20160400 | D66: 201604060001 | E66: M4 | F66: 791000 | I66: PEN | L66: 00 | N66: 0 | O66: 2016-04-30 | Q66: 2016-04-30 | R66: DEPRECIACIÓN DEL MES | T66: 0 | U66: 548 | W66: 1
A67: 61 | C67: 20160400 | D67: 201604060002 | E67: M1 | F67: 621120 | I67: PEN | L67: 00 | N67: 0 | O67: 2016-04-30 | Q67: 2016-04-30 | R67: PLANILLA DEL MES | T67: 5000 | U67: 0 | W67: 1
A68: 62 | C68: 20160400 | D68: 201604060002 | E68: M2 | F68: 627120 | I68: PEN | L68: 00 | N68: 0 | O68: 2016-04-30 | Q68: 2016-04-30 | R68: PLANILLA DEL MES | T68: 450 | U68: 0 | W68: 1
A69: 63 | C69: 20160400 | D69: 201604060002 | E69: M3 | F69: 403100 | I69: PEN | L69: 00 | N69: 0 | O69: 2016-04-30 | Q69: 2016-04-30 | R69: PLANILLA DEL MES | T69: 0 | U69: 450 | W69: 1
A70: 64 | C70: 20160400 | D70: 201604060002 | E70: M4 | F70: 403200 | I70: PEN | L70: 00 | N70: 0 | O70: 2016-04-30 | Q70: 2016-04-30 | R70: PLANILLA DEL MES | T70: 0 | U70: 650 | W70: 1
A71: 65 | C71: 20160400 | D71: 201604060002 | E71: M5 | F71: 411100 | I71: PEN | L71: 00 | N71: 0 | O71: 2016-04-30 | Q71: 2016-04-30 | R71: PLANILLA DEL MES | T71: 0 | U71: 4350 | W71: 1
A72: 66 | C72: 20160400 | D72: 201604060002 | E72: M6 | F72: 946210 | I72: PEN | L72: 00 | N72: 0 | O72: 2016-04-30 | Q72: 2016-04-30 | R72: PLANILLA DEL MES | T72: 5000 | U72: 0 | W72: 1
A73: 67 | C73: 20160400 | D73: 201604060002 | E73: M7 | F73: 791000 | I73: PEN | L73: 00 | N73: 0 | O73: 2016-04-30 | Q73: 2016-04-30 | R73: PLANILLA DEL MES | T73: 0 | U73: 5000 | W73: 1
A74: 68 | C74: 20160400 | D74: 201604060002 | E74: M8 | F74: 946270 | I74: PEN | L74: 00 | N74: 0 | O74: 2016-04-30 | Q74: 2016-04-30 | R74: PLANILLA DEL MES | T74: 450 | U74: 0 | W74: 1
A75: 69 | C75: 20160400 | D75: 201604060002 | E75: M9 | F75: 791000 | I75: PEN | L75: 00 | N75: 0 | O75: 2016-04-30 | Q75: 2016-04-30 | R75: PLANILLA DEL MES | T75: 0 | U75: 450 | W75: 1
A76: 70 | C76: 20160400 | D76: 201604050006 | E76: M1 | F76: 411100 | I76: PEN | L76: 00 | N76: 6325478 | O76: 2016-04-30 | Q76: 2016-04-30 | R76: PAGO DE PLANILLA | T76: 4350 | U76: 0 | W76: 1
A77: 71 | C77: 20160400 | D77: 201604050006 | E77: M2 | F77: 104100 | I77: PEN | L77: 00 | N77: 6325478 | O77: 2016-04-30 | Q77: 2016-04-30 | R77: PAGO DE PLANILLA | T77: 0 | U77: 4350 | W77: 1
A78: 72 | C78: 20160400 | D78: 201604060003 | E78: M1 | F78: 123200 | I78: PEN | J78: 6 | K78: 20456789123 | L78: LET | N78: 012016 | O78: 2016-04-30 | P78: 2016-06-30 | Q78: 2016-04-30 | R78: CANDE FACTURA POR LETRAS | T78: 2675 | U78: 0 | W78: 1
A79: 73 | C79: 20160400 | D79: 201604060003 | E79: M2 | F79: 123200 | I79: PEN | J79: 6 | K79: 20456789123 | L79: LET | N79: 022016 | O79: 2016-04-30 | P79: 2016-06-30 | Q79: 2016-04-30 | R79: CANDE FACTURA POR LETRAS | T79: 2725 | U79: 0 | W79: 1
A80: 74 | C80: 20160400 | D80: 201604060003 | E80: M3 | F80: 772200 | I80: PEN | J80: 6 | K80: 20456789123 | L80: 01 | M80: 0001 | N80: 2 | O80: 2016-04-30 | P80: 2016-06-30 | Q80: 2016-04-30 | R80: CANDE FACTURA POR LETRAS | T80: 0 | U80: 150 | W80: 1
A81: 75 | C81: 20160400 | D81: 201604060003 | E81: M4 | F81: 121200 | I81: PEN | J81: 6 | K81: 20456789123 | L81: 01 | M81: 0001 | N81: 2 | O81: 2016-04-30 | P81: 2016-06-30 | Q81: 2016-04-30 | R81: CANDE FACTURA POR LETRAS | T81: 0 | U81: 5250 | W81: 1
A82: 76 | C82: 20160400 | D82: 201604060004 | E82: M1 | F82: 691110 | I82: PEN | L82: 00 | N82: 0 | O82: 2016-04-30 | Q82: 2016-04-30 | R82: COSTO E VENTA DEL MES | T82: 7500 | U82: 0 | W82: 1
A83: 77 | C83: 20160400 | D83: 201604060004 | E83: M2 | F83: 201110 | I83: PEN | L83: 00 | N83: 0 | O83: 2016-04-30 | Q83: 2016-04-30 | R83: COSTO E VENTA DEL MES | T83: 0 | U83: 7500 | W83: 1
A84: 78 | C84: 20160400 | D84: 201604060004 | E84: M3 | F84: 611100 | I84: PEN | L84: 00 | N84: 0 | O84: 2016-04-30 | Q84: 2016-04-30 | R84: COSTO E VENTA DEL MES | T84: 7500 | U84: 0 | W84: 1
A85: 79 | C85: 20160400 | D85: 201604060004 | E85: M4 | F85: 791000 | I85: PEN | L85: 00 | N85: 0 | O85: 2016-04-30 | Q85: 2016-04-30 | R85: COSTO E VENTA DEL MES | T85: 0 | U85: 7500 | W85: 1

Sheet PC5152
A1: 5.4 LIBRO DIARIO DE FORMATO SIMPLIFICADO - DETALLE DEL PLAN CONTABLE UTILIZADO | S1: GRUPO
A2: =IF(año>0,año,"") -> 2016 | S2: >0
A4: Fila / Campo | B4: 0 | C4: 1 | D4: 2 | E4: 3 | F4: 4 | G4: 5 | H4: 6 | I4: 7 | J4: 8
A5: =ROW()-6 | B5: Para los códigos de Estado 8 y 9 El ingreso es manual | C5: Periodo | D5: Código de la cuenta contable | E5: Descripción de la Cuenta Contable | F5: Código del Plan de Cuentas | G5: Descripción del Plan de Cuentas utilizado | H5: Código de la Cuenta Contable Corporativa desagregada hasta el nivel máximo de dígitos utilizado, cuando deban consolidar sus estados financieros según la Superintendencia del Mercado de Valores | I5: Descripción de la Cuenta Contable Corporativa desagregada al nivel máximo de dígitos utilizado | J5: Indica el estado de la operación
A6: x | B6: x | C6: x | D6: REGISTRO | E6: NOMBRE | F6: x | G6: x | H6: x | I6: x | J6: x
A7: 1 | C7: 20160430 | D7: 101000 | E7: Caja | F7: 01 | G7: - | J7: 1
A8: 2 | C8: 20160430 | D8: 102000 | E8: Fondos fijos | F8: 01 | G8: - | J8: 1
A9: 3 | C9: 20160430 | D9: 103000 | E9: Efectivo en Tránsito | F9: 01 | G9: - | J9: 1
A10: 4 | C10: 20160430 | D10: 104100 | E10: Cuentas corrientes operativas | F10: 01 | G10: - | J10: 1
A11: 5 | C11: 20160430 | D11: 104200 | E11: Cuentas corrientes para fines específicos | F11: 01 | G11: - | J11: 1
A12: 6 | C12: 20160430 | D12: 105100 | E12: Otros equivalentes de efectivo | F12: 01 | G12: - | J12: 1
A13: 7 | C13: 20160430 | D13: 106100 | E13: Depósitos de ahorro | F13: 01 | G13: - | J13: 1
A14: 8 | C14: 20160430 | D14: 106200 | E14: Depósitos a plazo | F14: 01 | G14: - | J14: 1
A15: 9 | C15: 20160430 | D15: 107100 | E15: Fondos Sujetos a Restricción | F15: 01 | G15: - | J15: 1
A16: 10 | C16: 20160430 | D16: 111110 | E16: Costo | F16: 01 | G16: - | J16: 1
A17: 11 | C17: 20160430 | D17: 111120 | E17: Valor Razonable | F17: 01 | G17: - | J17: 1
A18: 12 | C18: 20160430 | D18: 111210 | E18: Costo | F18: 01 | G18: - | J18: 1
A19: 13 | C19: 20160430 | D19: 111220 | E19: Valor Razonable | F19: 01 | G19: - | J19: 1
A20: 14 | C20: 20160430 | D20: 111310 | E20: Costo | F20: 01 | G20: - | J20: 1
A21: 15 | C21: 20160430 | D21: 111320 | E21: Valor Razonable | F21: 01 | G21: - | J21: 1
A22: 16 | C22: 20160430 | D22: 111410 | E22: Costo | F22: 01 | G22: - | J22: 1
A23: 17 | C23: 20160430 | D23: 111420 | E23: Valor Razonable | F23: 01 | G23: - | J23: 1
A24: 18 | C24: 20160430 | D24: 111510 | E24: Costo | F24: 01 | G24: - | J24: 1
A25: 19 | C25: 20160430 | D25: 111520 | E25: Valor Razonable | F25: 01 | G25: - | J25: 1
A26: 20 | C26: 20160430 | D26: 112110 | E26: Costo | F26: 01 | G26: - | J26: 1
A27: 21 | C27: 20160430 | D27: 112120 | E27: Valor Razonable | F27: 01 | G27: - | J27: 1
A28: 22 | C28: 20160430 | D28: 112210 | E28: Costo | F28: 01 | G28: - | J28: 1
A29: 23 | C29: 20160430 | D29: 112220 | E29: Valor Razonable | F29: 01 | G29: - | J29: 1
A30: 24 | C30: 20160430 | D30: 112310 | E30: Costo | F30: 01 | G30: - | J30: 1
A31: 25 | C31: 20160430 | D31: 112320 | E31: Valor Razonable | F31: 01 | G31: - | J31: 1
A32: 26 | C32: 20160430 | D32: 112410 | E32: Costo | F32: 01 | G32: - | J32: 1
A33: 27 | C33: 20160430 | D33: 112420 | E33: Valor Razonable | F33: 01 | G33: - | J33: 1
A34: 28 | C34: 20160430 | D34: 113110 | E34: Costo | F34: 01 | G34: - | J34: 1
A35: 29 | C35: 20160430 | D35: 113120 | E35: Valor Razonable | F35: 01 | G35: - | J35: 1
A36: 30 | C36: 20160430 | D36: 113210 | E36: Costo | F36: 01 | G36: - | J36: 1
A37: 31 | C37: 20160430 | D37: 113220 | E37: Valor Razonable | F37: 01 | G37: - | J37: 1
A38: 32 | C38: 20160430 | D38: 121100 | E38: No emitidas | F38: 01 | G38: - | J38: 1
A39: 33 | C39: 20160430 | D39: 121200 | E39: Emitidas en cartera | F39: 01 | G39: - | J39: 1
A40: 34 | C40: 20160430 | D40: 121300 | E40: En cobranza | F40: 01 | G40: - | J40: 1
A41: 35 | C41: 20160430 | D41: 121400 | E41: En descuento | F41: 01 | G41: - | J41: 1
A42: 36 | C42: 20160430 | D42: 122000 | E42: Anticipos de clientes | F42: 01 | G42: - | J42: 1
A43: 37 | C43: 20160430 | D43: 123100 | E43: En cartera | F43: 01 | G43: - | J43: 1
A44: 38 | C44: 20160430 | D44: 123200 | E44: En cobranza | F44: 01 | G44: - | J44: 1
A45: 39 | C45: 20160430 | D45: 123300 | E45: En descuento | F45: 01 | G45: - | J45: 1
A46: 40 | C46: 20160430 | D46: 131110 | E46: Matriz | F46: 01 | G46: - | J46: 1
A47: 41 | C47: 20160430 | D47: 131120 | E47: Subsidiarias | F47: 01 | G47: - | J47: 1
A48: 42 | C48: 20160430 | D48: 131130 | E48: Asociadas | F48: 01 | G48: - | J48: 1
A49: 43 | C49: 20160430 | D49: 131140 | E49: Sucursales | F49: 01 | G49: - | J49: 1
A50: 44 | C50: 20160430 | D50: 131150 | E50: Otros | F50: 01 | G50: - | J50: 1
A51: 45 | C51: 20160430 | D51: 131210 | E51: Matriz | F51: 01 | G51: - | J51: 1
A52: 46 | C52: 20160430 | D52: 131220 | E52: Subsidiarias | F52: 01 | G52: - | J52: 1
A53: 47 | C53: 20160430 | D53: 131230 | E53: Asociadas | F53: 01 | G53: - | J53: 1
A54: 48 | C54: 20160430 | D54: 131240 | E54: Sucursales | F54: 01 | G54: - | J54: 1
A55: 49 | C55: 20160430 | D55: 131250 | E55: Otros | F55: 01 | G55: - | J55: 1
A56: 50 | C56: 20160430 | D56: 131310 | E56: Matriz | F56: 01 | G56: - | J56: 1
A57: 51 | C57: 20160430 | D57: 131320 | E57: Subsidiarias | F57: 01 | G57: - | J57: 1
A58: 52 | C58: 20160430 | D58: 131330 | E58: Asociadas | F58: 01 | G58: - | J58: 1
A59: 53 | C59: 20160430 | D59: 131340 | E59: Sucursales | F59: 01 | G59: - | J59: 1
A60: 54 | C60: 20160430 | D60: 131350 | E60: Otros | F60: 01 | G60: - | J60: 1
A61: 55 | C61: 20160430 | D61: 131410 | E61: Matriz | F61: 01 | G61: - | J61: 1
A62: 56 | C62: 20160430 | D62: 131420 | E62: Subsidiarias | F62: 01 | G62: - | J62: 1
A63: 57 | C63: 20160430 | D63: 131430 | E63: Asociadas | F63: 01 | G63: - | J63: 1
A64: 58 | C64: 20160430 | D64: 131440 | E64: Sucursales | F64: 01 | G64: - | J64: 1
A65: 59 | C65: 20160430 | D65: 131450 | E65: Otros | F65: 01 | G65: - | J65: 1
A66: 60 | C66: 20160430 | D66: 132110 | E66: Matriz | F66: 01 | G66: - | J66: 1
A67: 61 | C67: 20160430 | D67: 132120 | E67: Subsidiarias | F67: 01 | G67: - | J67: 1
A68: 62 | C68: 20160430 | D68: 132130 | E68: Asociadas | F68: 01 | G68: - | J68: 1
A69: 63 | C69: 20160430 | D69: 132140 | E69: Sucursales | F69: 01 | G69: - | J69: 1
A70: 64 | C70: 20160430 | D70: 132150 | E70: Otros | F70: 01 | G70: - | J70: 1
A71: 65 | C71: 20160430 | D71: 133110 | E71: Matriz | F71: 01 | G71: - | J71: 1
A72: 66 | C72: 20160430 | D72: 133120 | E72: Subsidiarias | F72: 01 | G72: - | J72: 1
A73: 67 | C73: 20160430 | D73: 133130 | E73: Asociadas | F73: 01 | G73: - | J73: 1
A74: 68 | C74: 20160430 | D74: 133140 | E74: Sucursales | F74: 01 | G74: - | J74: 1
A75: 69 | C75: 20160430 | D75: 133150 | E75: Otros | F75: 01 | G75: - | J75: 1
A76: 70 | C76: 20160430 | D76: 133210 | E76: Matriz | F76: 01 | G76: - | J76: 1
A77: 71 | C77: 20160430 | D77: 133220 | E77: Subsidiarias | F77: 01 | G77: - | J77: 1
A78: 72 | C78: 20160430 | D78: 133230 | E78: Asociadas | F78: 01 | G78: - | J78: 1
A79: 73 | C79: 20160430 | D79: 133240 | E79: Sucursales | F79: 01 | G79: - | J79: 1
A80: 74 | C80: 20160430 | D80: 133250 | E80: Otros | F80: 01 | G80: - | J80: 1
A81: 75 | C81: 20160430 | D81: 133310 | E81: Matriz | F81: 01 | G81: - | J81: 1
A82: 76 | C82: 20160430 | D82: 133320 | E82: Subsidiarias | F82: 01 | G82: - | J82: 1
A83: 77 | C83: 20160430 | D83: 133330 | E83: Asociadas | F83: 01 | G83: - | J83: 1
A84: 78 | C84: 20160430 | D84: 133340 | E84: Sucursales | F84: 01 | G84: - | J84: 1
A85: 79 | C85: 20160430 | D85: 133350 | E85: Otros | F85: 01 | G85: - | J85: 1
A86: 80 | C86: 20160430 | D86: 141100 | E86: Préstamos | F86: 01 | G86: - | J86: 1
A87: 81 | C87: 20160430 | D87: 141200 | E87: Adelanto de remuneraciones | F87: 01 | G87: - | J87: 1
A88: 82 | C88: 20160430 | D88: 141300 | E88: Entregas a rendir cuenta | F88: 01 | G88: - | J88: 1
A89: 83 | C89: 20160430 | D89: 141900 | E89: Otras cuentas por cobrar al personal | F89: 01 | G89: - | J89: 1
A90: 84 | C90: 20160430 | D90: 142100 | E90: Suscripciones por cobrar a socios o accionistas | F90: 01 | G90: - | J90: 1
A91: 85 | C91: 20160430 | D91: 142200 | E91: Préstamos | F91: 01 | G91: - | J91: 1
A92: 86 | C92: 20160430 | D92: 143100 | E92: Préstamos | F92: 01 | G92: - | J92: 1
A93: 87 | C93: 20160430 | D93: 143200 | E93: Adelanto de dietas | F93: 01 | G93: - | J93: 1
A94: 88 | C94: 20160430 | D94: 143300 | E94: Entregas a rendir cuenta | F94: 01 | G94: - | J94: 1
A95: 89 | C95: 20160430 | D95: 144100 | E95: Préstamos | F95: 01 | G95: - | J95: 1
A96: 90 | C96: 20160430 | D96: 144200 | E96: Adelanto de remuneraciones | F96: 01 | G96: - | J96: 1
A97: 91 | C97: 20160430 | D97: 144300 | E97: Entregas a rendir cuenta | F97: 01 | G97: - | J97: 1
A98: 92 | C98: 20160430 | D98: 148000 | E98: Diversas | F98: 01 | G98: - | J98: 1
A99: 93 | C99: 20160430 | D99: 161100 | E99: Con garantía | F99: 01 | G99: - | J99: 1
A100: 94 | C100: 20160430 | D100: 161200 | E100: Sin garantía | F100: 01 | G100: - | J100: 1
A101: 95 | C101: 20160430 | D101: 162100 | E101: Compañías aseguradoras | F101: 01 | G101: - | J101: 1
A102: 96 | C102: 20160430 | D102: 162200 | E102: Transportadoras | F102: 01 | G102: - | J102: 1
A103: 97 | C103: 20160430 | D103: 162300 | E103: Servicios públicos | F103: 01 | G103: - | J103: 1
A104: 98 | C104: 20160430 | D104: 162400 | E104: Tributos | F104: 01 | G104: - | J104: 1
A105: 99 | C105: 20160430 | D105: 162900 | E105: Otras | F105: 01 | G105: - | J105: 1
A106: 100 | C106: 20160430 | D106: 163100 | E106: Intereses | F106: 01 | G106: - | J106: 1
A107: 101 | C107: 20160430 | D107: 163200 | E107: Regalías | F107: 01 | G107: - | J107: 1
A108: 102 | C108: 20160430 | D108: 163300 | E108: Dividendos | F108: 01 | G108: - | J108: 1
A109: 103 | C109: 20160430 | D109: 164100 | E109: Préstamos de instituciones financieras | F109: 01 | G109: - | J109: 1
A110: 104 | C110: 20160430 | D110: 164200 | E110: Préstamos de instituciones no financieras | F110: 01 | G110: - | J110: 1
A111: 105 | C111: 20160430 | D111: 164400 | E111: Depósitos en garantía por alquileres | F111: 01 | G111: - | J111: 1
A112: 106 | C112: 20160430 | D112: 164900 | E112: Otros depósitos en garantía | F112: 01 | G112: - | J112: 1
A113: 107 | C113: 20160430 | D113: 165100 | E113: Inversión mobiliaria | F113: 01 | G113: - | J113: 1
A114: 108 | C114: 20160430 | D114: 165200 | E114: Inversión inmobiliaria | F114: 01 | G114: - | J114: 1
A115: 109 | C115: 20160430 | D115: 165300 | E115: Inmuebles maquinaria y equipo | F115: 01 | G115: - | J115: 1
A116: 110 | C116: 20160430 | D116: 165400 | E116: Intangibles | F116: 01 | G116: - | J116: 1
A117: 111 | C117: 20160430 | D117: 165500 | E117: Activos biológicos | F117: 01 | G117: - | J117: 1
A118: 112 | C118: 20160430 | D118: 166100 | E118: Instrumentos financieros primarios | F118: 01 | G118: - | J118: 1
A119: 113 | C119: 20160430 | D119: 166210 | E119: Cartera de negociación | F119: 01 | G119: - | J119: 1
A120: 114 | C120: 20160430 | D120: 166220 | E120: Instrumentos de cobertura | F120: 01 | G120: - | J120: 1
A121: 115 | C121: 20160430 | D121: 168100 | E121: Entregas a rendir cuenta a terceros | F121: 01 | G121: - | J121: 1
A122: 116 | C122: 20160430 | D122: 168900 | E122: Otras cuentas por cobrar diversas | F122: 01 | G122: - | J122: 1
A123: 117 | C123: 20160430 | D123: 171110 | E123: Matriz | F123: 01 | G123: - | J123: 1
A124: 118 | C124: 20160430 | D124: 171120 | E124: Subsidiarias | F124: 01 | G124: - | J124: 1
A125: 119 | C125: 20160430 | D125: 171130 | E125: Asociadas | F125: 01 | G125: - | J125: 1
A126: 120 | C126: 20160430 | D126: 171140 | E126: Sucursales | F126: 01 | G126: - | J126: 1
A127: 121 | C127: 20160430 | D127: 171150 | E127: Otros | F127: 01 | G127: - | J127: 1
A128: 122 | C128: 20160430 | D128: 171210 | E128: Matriz | F128: 01 | G128: - | J128: 1
A129: 123 | C129: 20160430 | D129: 171220 | E129: Subsidiarias | F129: 01 | G129: - | J129: 1
A130: 124 | C130: 20160430 | D130: 171230 | E130: Asociadas | F130: 01 | G130: - | J130: 1
A131: 125 | C131: 20160430 | D131: 171240 | E131: Sucursales | F131: 01 | G131: - | J131: 1
A132: 126 | C132: 20160430 | D132: 171250 | E132: Otros | F132: 01 | G132: - | J132: 1
A133: 127 | C133: 20160430 | D133: 173110 | E133: Matriz | F133: 01 | G133: - | J133: 1
A134: 128 | C134: 20160430 | D134: 173120 | E134: Subsidiarias | F134: 01 | G134: - | J134: 1
A135: 129 | C135: 20160430 | D135: 173130 | E135: Asociadas | F135: 01 | G135: - | J135: 1
A136: 130 | C136: 20160430 | D136: 173140 | E136: Sucursales | F136: 01 | G136: - | J136: 1
A137: 131 | C137: 20160430 | D137: 173150 | E137: Otros | F137: 01 | G137: - | J137: 1
A138: 132 | C138: 20160430 | D138: 173210 | E138: Matriz | F138: 01 | G138: - | J138: 1
A139: 133 | C139: 20160430 | D139: 173220 | E139: Subsidiarias | F139: 01 | G139: - | J139: 1
A140: 134 | C140: 20160430 | D140: 173230 | E140: Asociadas | F140: 01 | G140: - | J140: 1
A141: 135 | C141: 20160430 | D141: 173240 | E141: Sucursales | F141: 01 | G141: - | J141: 1
A142: 136 | C142: 20160430 | D142: 173250 | E142: Otros | F142: 01 | G142: - | J142: 1
A143: 137 | C143: 20160430 | D143: 173310 | E143: Matriz | F143: 01 | G143: - | J143: 1
A144: 138 | C144: 20160430 | D144: 173320 | E144: Subsidiarias | F144: 01 | G144: - | J144: 1
A145: 139 | C145: 20160430 | D145: 173330 | E145: Asociadas | F145: 01 | G145: - | J145: 1
A146: 140 | C146: 20160430 | D146: 173340 | E146: Otros | F146: 01 | G146: - | J146: 1
A147: 141 | C147: 20160430 | D147: 174000 | E147: Depósitos otorgados en garantía | F147: 01 | G147: - | J147: 1
A148: 142 | C148: 20160430 | D148: 175100 | E148: Inversión mobiliaria | F148: 01 | G148: - | J148: 1
A149: 143 | C149: 20160430 | D149: 175200 | E149: Inversión inmobiliaria | F149: 01 | G149: - | J149: 1
A150: 144 | C150: 20160430 | D150: 175300 | E150: Inmuebles maquinaria y equipo | F150: 01 | G150: - | J150: 1
A151: 145 | C151: 20160430 | D151: 175400 | E151: Intangibles | F151: 01 | G151: - | J151: 1
A152: 146 | C152: 20160430 | D152: 175500 | E152: Activos biológicos | F152: 01 | G152: - | J152: 1
A153: 147 | C153: 20160430 | D153: 176000 | E153: Activos por instrumentos financieros | F153: 01 | G153: - | J153: 1
A154: 148 | C154: 20160430 | D154: 178000 | E154: Otras cuentas por cobrar diversas | F154: 01 | G154: - | J154: 1
A155: 149 | C155: 20160430 | D155: 181000 | E155: Costos financieros | F155: 01 | G155: - | J155: 1
A156: 150 | C156: 20160430 | D156: 182000 | E156: Seguros | F156: 01 | G156: - | J156: 1
A157: 151 | C157: 20160430 | D157: 183000 | E157: Alquileres | F157: 01 | G157: - | J157: 1
A158: 152 | C158: 20160430 | D158: 184000 | E158: Primas pagadas por opciones | F158: 01 | G158: - | J158: 1
A159: 153 | C159: 20160430 | D159: 185000 | E159: Mantenimiento de activos inmovilizados | F159: 01 | G159: - | J159: 1
A160: 154 | C160: 20160430 | D160: 189000 | E160: Otros gastos contratados por anticipado | F160: 01 | G160: - | J160: 1
A161: 155 | C161: 20160430 | D161: 191100 | E161: Facturas boletas y otros comprobantes por cobrar | F161: 01 | G161: - | J161: 1
A162: 156 | C162: 20160430 | D162: 191300 | E162: Letras por cobrar | F162: 01 | G162: - | J162: 1
A163: 157 | C163: 20160430 | D163: 192100 | E163: Facturas boletas y otros comprobantes por cobrar | F163: 01 | G163: - | J163: 1
A164: 158 | C164: 20160430 | D164: 192200 | E164: Letras por cobrar | F164: 01 | G164: - | J164: 1
A165: 159 | C165: 20160430 | D165: 193100 | E165: Personal | F165: 01 | G165: - | J165: 1
A166: 160 | C166: 20160430 | D166: 193200 | E166: Accionistas (o socios) | F166: 01 | G166: - | J166: 1
A167: 161 | C167: 20160430 | D167: 193300 | E167: Directores | F167: 01 | G167: - | J167: 1
A168: 162 | C168: 20160430 | D168: 193400 | E168: Gerentes | F168: 01 | G168: - | J168: 1
A169: 163 | C169: 20160430 | D169: 193800 | E169: Diversas | F169: 01 | G169: - | J169: 1
A170: 164 | C170: 20160430 | D170: 194100 | E170: Préstamos | F170: 01 | G170: - | J170: 1
A171: 165 | C171: 20160430 | D171: 194200 | E171: Reclamaciones a terceros | F171: 01 | G171: - | J171: 1
A172: 166 | C172: 20160430 | D172: 194300 | E172: Intereses regalías y dividendos | F172: 01 | G172: - | J172: 1
A173: 167 | C173: 20160430 | D173: 194400 | E173: Depósitos otorgados en garantía | F173: 01 | G173: - | J173: 1
A174: 168 | C174: 20160430 | D174: 194500 | E174: Venta de activo inmovilizado | F174: 01 | G174: - | J174: 1
A175: 169 | C175: 20160430 | D175: 194600 | E175: Activos por instrumentos financieros | F175: 01 | G175: - | J175: 1
A176: 170 | C176: 20160430 | D176: 194900 | E176: Otras cuentas por cobrar diversas | F176: 01 | G176: - | J176: 1
A177: 171 | C177: 20160430 | D177: 195100 | E177: Préstamos | F177: 01 | G177: - | J177: 1
A178: 172 | C178: 20160430 | D178: 195300 | E178: Intereses regalías y dividendos | F178: 01 | G178: - | J178: 1
A179: 173 | C179: 20160430 | D179: 195400 | E179: Depósitos otorgados en garantía | F179: 01 | G179: - | J179: 1
A180: 174 | C180: 20160430 | D180: 195500 | E180: Venta de activo inmovilizado | F180: 01 | G180: - | J180: 1
A181: 175 | C181: 20160430 | D181: 195600 | E181: Activos por instrumentos financieros | F181: 01 | G181: - | J181: 1
A182: 176 | C182: 20160430 | D182: 195800 | E182: Otras cuentas por cobrar diversas | F182: 01 | G182: - | J182: 1
A183: 177 | C183: 20160430 | D183: 201110 | E183: Costo | F183: 01 | G183: - | J183: 1
A184: 178 | C184: 20160430 | D184: 201120 | E184: Valor razonable | F184: 01 | G184: - | J184: 1
A185: 179 | C185: 20160430 | D185: 202000 | E185: Mercaderías de extracción | F185: 01 | G185: - | J185: 1
A186: 180 | C186: 20160430 | D186: 203100 | E186: De origen animal | F186: 01 | G186: - | J186: 1
A187: 181 | C187: 20160430 | D187: 203200 | E187: De origen vegetal | F187: 01 | G187: - | J187: 1
A188: 182 | C188: 20160430 | D188: 204000 | E188: Mercaderías inmuebles | F188: 01 | G188: - | J188: 1
A189: 183 | C189: 20160430 | D189: 208000 | E189: Otras mercaderías | F189: 01 | G189: - | J189: 1
A190: 184 | C190: 20160430 | D190: 211000 | E190: Productos manufacturados | F190: 01 | G190: - | J190: 1
A191: 185 | C191: 20160430 | D191: 212000 | E191: Productos de extracción terminados | F191: 01 | G191: - | J191: 1
A192: 186 | C192: 20160430 | D192: 213110 | E192: Costo | F192: 01 | G192: - | J192: 1
A193: 187 | C193: 20160430 | D193: 213120 | E193: Valor razonable | F193: 01 | G193: - | J193: 1
A194: 188 | C194: 20160430 | D194: 213210 | E194: Costo | F194: 01 | G194: - | J194: 1
A195: 189 | C195: 20160430 | D195: 213220 | E195: Valor razonable | F195: 01 | G195: - | J195: 1
A196: 190 | C196: 20160430 | D196: 214000 | E196: Productos inmuebles | F196: 01 | G196: - | J196: 1
A197: 191 | C197: 20160430 | D197: 215000 | E197: Existencias de servicios terminados | F197: 01 | G197: - | J197: 1
A198: 192 | C198: 20160430 | D198: 217000 | E198: Otros productos terminados | F198: 01 | G198: - | J198: 1
A199: 193 | C199: 20160430 | D199: 218000 | E199: Costos de financiación – Productos terminados | F199: 01 | G199: - | J199: 1
A200: 194 | C200: 20160430 | D200: 221000 | E200: Subproductos | F200: 01 | G200: - | J200: 1
A201: 195 | C201: 20160430 | D201: 222000 | E201: Desechos y desperdicios | F201: 01 | G201: - | J201: 1
... 1679 more rows

Sheet Manual
A1: Videos Tutoriales (Manual)
A3: Parámetros
B4: Parámetros Empresa
C5: https://youtu.be/_0_BLttDwC8
B6: Parámetros Tipos de Voucher
C7: https://youtu.be/Y_H-2WTJ4eY
B8: Parámetros Plan de Cuentas
C9: https://youtu.be/FGZavW_GJpo
B10: Parámetros Cuentas Corrientes (Bancos)
C11: https://youtu.be/84ToT6lCKFE
B12: Parámetros Caja
C13: https://youtu.be/95gqv2DoA2g
B14: Parámetros Entidades
C15: https://youtu.be/u-wHTNqrkgs
B16: Parámetros Asientos Base
C17: https://youtu.be/ON803BoxSZI
A19: Tablas
B20: Tablas (Mantenimiento)
C21: https://youtu.be/jn7SwrXsV4M
A23: Utilitarios
B24: Base de Datos
C25: https://youtu.be/rEj6yhJb3kA
B26: Análisis de Cuenta
C27: https://youtu.be/KkNYkC3TE38
B28: Usuario y Clave
C29: https://youtu.be/S7xw66nzc6M
B30: Backup
C31: https://youtu.be/gRS5rP1Ia2Y
A33: Diario
B34: Voucher Diario 1 - Ingreso de Asiento
C35: https://youtu.be/RUMito3Cjeg
B36: Voucher Diario 2 - Reporte de Asiento
C37: https://youtu.be/Jv5ZjPcv7nI
B38: Voucher Diario 3 - Editar Asiento
C39: https://youtu.be/YCDS5x0EZro
B40: Voucher Diario 4 - Asiento de Reapertura
C41: https://youtu.be/jI_45w5qLx4
B42: Voucher Diario 5 – Canje de Factura por Letras
C43: https://youtu.be/Qjyt4BYzZAU
A45: Voucher Compras
B46: Voucher Compras 1 - Asientos Predeterminados
C47: https://youtu.be/oxq9vcwnPg8
B48: Voucher Compras 2 - Compra al crédito
C49: https://youtu.be/TnUZ4Az4O18
B50: Voucher Compras 3 - Compra al contado con banco
C51: https://youtu.be/ChcmTLFeKK0
B52: Voucher Compras 4 - Compra al contado con caja
C53: https://youtu.be/ryGGGtFbtmQ
A55: Voucher Ventas
B56: Voucher Ventas 1 - Asientos predeterminados
C57: https://youtu.be/waJKZOEY8nE
B58: Voucher Ventas 2 - Venta al crédito
C59: https://youtu.be/Y0Us1zI12PQ
B60: Voucher Ventas 3 - Venta al contado con banco
C61: https://youtu.be/fHpBxjqU7_E
B62: Voucher Ventas 4 - Venta al contado con caja
C63: https://youtu.be/LEHeA1Y2eN0
A65: Voucher Caja y Bancos
B66: Voucher Caja y Bancos 1 - Asientos predeterminados
C67: https://youtu.be/NyZptNjy4fg
B68: Voucher Caja y Bancos 2 - Ingreso a Caja
C69: https://youtu.be/nzButw15tjw
B70: Voucher Caja y Bancos 3 - Ingreso a Cta. Cte. (Banco)
C71: https://youtu.be/B_wfM-eqYbc
B72: Voucher Caja y Bancos 4 - Egreso de Cta. Cte. (Banco)
C73: https://youtu.be/ml1RdN1K3uc
B74: Voucher Caja y Bancos 5 – Transferencia entre Ctas. Ctes. (Banco)
C75: https://youtu.be/3WF6gW6iVbA
B76: Voucher Caja y Bancos 6 – Transferencia entre Cajas
C77: https://youtu.be/Qf6W2C0CVc8
B78: Voucher Caja y Bancos 7 – Transferencia de Cta. Cte. a Caja
C79: https://youtu.be/UmD1rvofuq0

Sheet BD
A1: TABLAS | E1: VOUCHERS | I1: LIBROS | L1: UTILITARIOS
A2: 1 | B2: Empresa | D2: OK | E2: 1 | F2: Caja y Bancos | G2: estado | H2: OK | I2: 1 | J2: Caja | K2: OK | L2: 1 | M2: Analisis de Cuenta | N2: Diario, Caja y Bancos, Compras y Ventas.
A3: 2 | B3: Voucher | D3: OK | E3: 2 | F3: Compras | G3: estado | H3: OK | I3: 2 | J3: Bancos | K3: OK | L3: 2 | M3: Centralización
A4: 3 | B4: Comprobantes - Tipo comprobantes de Pago | D4: OK | E4: 3 | F4: Ventas | G4: estado | H4: OK | I4: 3 | J4: Compras | K4: OK | L4: 3 | M4: Estado de Cuenta
A5: 4 | B5: Documentos - Tipo de documentos de identidad | D5: OK | E5: 4 | F5: Diario | G5: estado | I5: 4 | J5: Ventas | K5: OK | L5: 4 | M5: Reiniciar Base de Datos
A6: 5 | B6: Plan de Cuentas | D6: OK | I6: 5 | J6: Diario | K6: OK | L6: 5 | M6: Reiniciar Entidades
A7: 6 | B7: Bancos | D7: OK | I7: 6 | J7: Diario Simplificado | K7: OK | L7: 6 | M7: Backups
A8: 7 | B8: Medio de Pago | D8: OK | I8: 7 | J8: Mayor | K8: OK
A9: 8 | B9: Libros | D9: OK | I9: 8 | J9: Hoja de Trabajo | K9: OK
A10: 9 | B10: Bancos Empresa | D10: OK | I10: 9 | J10: EE FF | K10: OK
A11: 10 | B11: Cajas Empresa | D11: OK
A12: 11 | B12: Entidades | C12: Clientes/Proveedores/Socios/Otros | D12: OK | I12: PLE
A13: 12 | B13: Estado de Cuenta de Entidades | D13: OK | I13: 1 | J13: Compras | K13: OK
A14: 13 | B14: Encabezado Asientos Automáticos | D14: OK | I14: 2 | J14: Ventas | K14: OK
A15: 14 | B15: Detalle Asientos Automáticos | D15: OK | I15: 3 | J15: Diario | K15: OK
A16: 15 | B16: Encabezado Diario | D16: OK | I16: 4 | J16: Diario Simplificado | K16: OK
A17: 16 | B17: Detalle Asiento Diario | D17: OK | I17: 5 | J17: PC | K17: OK
A18: 17 | B18: Encabezado Ventas Compras | D18: N/A
A19: 18 | B19: Detalle Asiento Ventas Compras | D19: N/A
A20: 19 | B20: Encabezado Asiento Caja y Bancos | D20: N/A
A21: 20 | B21: Detalle Asiento Caja y Bancos | D21: N/A
A22: 21 | B22: Tipo Bien | D22: OK
A23: 22 | B23: Tipo Moneda | D23: OK
A24: 23 | B24: Código de Aduana | D24: OK

Sheet Hoja5
A1: Formato | B1: 0801 | E1: Año | F1: 2015 | J1: Para seleccionar editable
A2: Asto Base | B2: C0001 | E2: Mes | F2: 01
E3: Periodo | F3: 20150100
A4: Tipo Voucher | B4: 01
A5: Voucher - CUO | B5: 01010001 | E5: Tipo Cambio | F5: 3.235
A6: Correlativo | B6: M1 o M-RER | E6: Moneda | F6: PEN
A7: Codigo estructur | B7: =CONCATENATE(F3,"&",B1,"&",B5,"&",B6) -> 20150100&0801&01010001&M1 o M-RER | E7: Bien | F7: 1
A9: Unidad de Operación | B9: 01
A10: Centro de costo | B10: 01001
A12: Fecha Contable | B12: 2015-01-15 | D12: T Compr | E12: 01
A13: Fecha Emisión | B13: 2015-01-13 | D13: Serie | E13: 1
A14: Fecha Venci | B14: 2015-01-25 | D14: Año Dua | E14: 2015
D15: Num Ini | E15: 1
A16: T documto | B16: 06 | D16: Num Fin | E16: 2
A17: RUC | B17: 20123456789 | D17: Une Num Ini y Num Final para el diario | E17: 1 - 2
A18: Entidad | B18: SAC
A20: Fecha emisión CdP Modificado | D20: Fecha Detracción
A21: Serie CdP Modificado | D21: Num Detracción
A22: Año Dua CdP Modificado
A23: Numero CdP Modificado
D24: Num Proyecto
A25: Compo No Domici | D25: Modalidad de Pago
D26: Estado
A31: NREGISTRO | B31: AÑO | C31: MES | D31: VOUCHER | E31: CODESTRUC | F31: PERIODO | G31: CUO | H31: CORRELATIVO | I31: FE | J31: FV | K31: CDP | L31: SERIE | M31: DUA | N31: NUMEROI | O31: NUMEROF | P31: NUM_I_Y_F | Q31: TDOC | R31: NUMDOC | S31: NOMBRE | T31: BI1 | U31: IGV1 | V31: BI1 | W31: IGV2 | X31: BI3 | Y31: IGV3 | Z31: NOGRAV | AA31: EXPORT | AB31: DESCTOBI | AC31: DESCTOIGV | AD31: EXONER | AE31: INAFEC | AF31: ISC | AG31: OTROS | AH31: TOTAL | AI31: MONEDA | AJ31: TCAMB | AK31: CDPNODOMIC | AL31: FE_CDP_M | AM31: CDP_M | AN31: SERIE_CDP_M | AO31: ADUANA | AP31: NUM_CDP_M | AQ31: FE_DETRAC | AR31: NUM_DETRAC | AS31: RETENC | AT31: TBIEN | AU31: CONTRATO | AV31: MEDIOPAGO | AW31: ESTADO
A34: NREGISTRO | B34: AÑO | C34: MES | D34: VOUCHER | E34: CODESTRUC | F34: PERIODO | G34: CUO | H34: CORRELATIVO | I34: UNID_OPER | J34: CENT_COSTO | K34: LIBRO | L34: MONEDA | M34: TDOC | N34: NUMDOC | O34: NOMBRE | P34: CDP | Q34: SERIE | R34: NUM_I_Y_F | S34: NUM_TRANSAC_BCOS | T34: FC | U34: FV | V34: FE | W34: CUENTA | X34: CTA2D | Y34: NOMBRECTA | Z34: CLAVE | AA34: DEBE | AB34: HABER | AC34: COLUM_RCV | AD34: FILTRO_CAJ_BCOS | AE34: DEBE_CAJ_BCOS | AF34: HABER_CAJ_BCOS | AG34: IMPORT_LDS | AH34: MEDIO_PAGO | AI34: DESCRIPC_OPER_BCOS | AJ34: GLOSA | AK34: GLOSAREF | AL34: ESTADO | AM34: ELEMENTO

Sheet Hoja1
A1: Una sola BD para entidad | G1: Ventas Electrónico | L1: BC20565893174201506
A2: que jale la entidad tan solo con registrar su código u ruc | G2: Compras Electrónico
A3: compras y ventas agregar numero final para boletas de venta y otros | G3: Libro Diario Electrónico
G4: Libro Diario Simplificado Electrónico
A5: Voucher para asientos automáticos | G5: Libro Mayor Electrónico
A6: Simplificar el pago del comprobante ya sea por caja o bancos | G6: Libro Caja Electrónico
G7: Libro Bancos Electrónico
A9: Centralización de caja, bancos, compras y ventas.
A11: DAOT
A12: AÑO - mes
A13: Backup
A17: Mantenimiento | J17: Reportes | R17: Utilitarios
A19: Parámetros | D19: Tablas | G19: Vouchers | J19: Libros contables | L19: EE FF | N19: PLE | P19: Estado de cuenta | R19: Reiniciar Base de Datos | T19: Acerca de..
A20: 1 | B20: Empresa | D20: 3 | E20: T Comprobantes | H20: Diario | J20: Caja | L20: Hoja de Trabajo | N20: Compras - 8.1 | P20: Antigüedad de Deuda | R20: Eliminar Data Base de Datos | T20: Autor
A21: 2 | B21: Voucher | D21: 4 | E21: T Documentos | H21: Compras | J21: Bancos | L21: Balance General | N21: Compras - 8.3 | P21: Por Tipo de Entidad | R21: Eliminar Entidades | T21: Contactos
A22: 5 | B22: Plan de Cuentas | D22: 6 | E22: Bancos | H22: Ventas | J22: Compras | L22: Estado de Resultados | N22: Ventas - 14.1 | P22: Por Entidad | R22: Eliminar Plan de Cuentas | T22: Manual
A23: 9 | B23: Bancos Empresa | D23: 7 | E23: Medio de Pago | H23: Caja y Bancos | J23: Ventas | N23: Ventas - 14.2 | P23: Detalle por Entidad | R23: Eliminar Cajas Empresa
A24: 10 | B24: Cajas Empresa | D24: 8 | E24: Libros | J24: Diario | N24: Diario - Diario Simplificado | R24: Eliminar Bancos Empresa
A25: 11 | B25: Entidades | D25: 21 | E25: Tipo Bien | J25: Diario Simplificado | N25: Plan Contable | R25: Eliminar Astos. Base
B26: Astos. Base | D26: 22 | E26: Tipo Moneda | J26: Mayor | R26: Abrir BD Plan de Cuentas
D27: 23 | E27: Código de Aduana | R27: Cambio Usuario y Clave
E28: Tipo de Cambio | R28: Backups
E29: Tipo Entidad
